Authority,Department,Spending Area,Expense Type,Posting Date,Reference,Amount,Supplier
OXFORDSHIRE CC,"CHILDRENS, YOUNG PEOPLE AND FAMILIES",CNTL ERLY HELP-BBLEY,MATERIALS,04/09/2019,000008776304261,-439.00,WWW.JOHNLEWIS.COM
OXFORDSHIRE CC,"CHILDRENS, YOUNG PEOPLE AND FAMILIES",ATV ADOPTION OXFORD,HIRE OF ACCOMMODATION AND FACILITIES,25/09/2019,000006631083948,-288.70,AIRBNB   HMAJQ2NDS3
OXFORDSHIRE CC,CORPORATE CORE,HOME LIBRARY SERVICE,VEHICLE EQUIPMENT AND EXPENSES - OTHER,16/09/2019,000006586223470,-200.00,J S VAN HIRE LTD
OXFORDSHIRE CC,"CHILDRENS, YOUNG PEOPLE AND FAMILIES",NORTH FSS- BANBURY,MATERIALS,11/09/2019,000008804871169,-171.99,WWW.ARGOS.CO.UK
OXFORDSHIRE CC,"CHILDRENS, YOUNG PEOPLE AND FAMILIES","	LOOKED AFTER SOUTH",MATERIALS,26/09/2019,000006636681932,-154.00,DENNISWILLECOM
OXFORDSHIRE CC,"CHILDRENS, YOUNG PEOPLE AND FAMILIES",THAME E&A HOME,MATERIALS,30/08/2019,000008759617889,-125.18,AMZ ENERGY SAVING BULB
OXFORDSHIRE CC,ENVIRONMENT AND ECONOMY,S38 INSPECT & OTHER,PAYMENTS TO TRANSPORT OPERATORS,27/09/2019,000006643215640,-108.00,TRAINLINE
OXFORDSHIRE CC,"CHILDRENS, YOUNG PEOPLE AND FAMILIES","	LOOKED AFTER CITY 1",PAYMENTS TO TRANSPORT OPERATORS,16/09/2019,000006586223442,-96.55,TRAINLINE.COM
OXFORDSHIRE CC,"CHILDRENS, YOUNG PEOPLE AND FAMILIES","	LOOKED AFTER SOUTH",CLOTHING AND UNIFORMS,25/09/2019,000006631083952,-72.00,WWW.LABEEBY.CO.UK
OXFORDSHIRE CC,"CHILDRENS, YOUNG PEOPLE AND FAMILIES","	LOOKED AFTER CITY 1",REGISTRATION AND INSPECTION FEES,16/09/2019,000006586223446,-69.00,ARGOS RETAIL GROUP
OXFORDSHIRE CC,"CHILDRENS, YOUNG PEOPLE AND FAMILIES","	FPT CITY",FURNITURE,13/09/2019,000008816587665,-67.00,KIDS FUNTIME BEDS LTD
OXFORDSHIRE CC,CORPORATE CORE,SNR LEADERSHIP TEAM,PAYMENTS TO TRANSPORT OPERATORS,19/09/2019,000006604611042,-64.60,WWW.GWR.COM
OXFORDSHIRE CC,"CHILDRENS, YOUNG PEOPLE AND FAMILIES","	LOOKED AFTER CITY 1",PAYMENT TO GOVERNMENT DEPARTMENTS,20/09/2019,000006610418326,-54.93,APPLICATION PORTAL NOR
OXFORDSHIRE CC,"CHILDRENS, YOUNG PEOPLE AND FAMILIES",NTH EARLY HELP-BCSTR,PAYMENTS TO TRANSPORT OPERATORS,27/09/2019,000006643215688,-51.50,WWW.GWR.COM
OXFORDSHIRE CC,ENVIRONMENT AND ECONOMY,P&S OPERATIONAL REV,STAFF SUBSISTENCE,04/09/2019,000008776304057,-50.00,
OXFORDSHIRE CC,CORPORATE CORE,,"SUPPLIES, STATIONERY AND MATERIALS",20/09/2019,000006610418642,-47.26,LYRECO UK LTD
OXFORDSHIRE CC,SOCIAL AND COMMUNITY SERVICES,UASC 16&17,PAYMENTS TO TRANSPORT OPERATORS,13/09/2019,000008816587615,-34.05,GWR OXFORD TO
OXFORDSHIRE CC,"CHILDRENS, YOUNG PEOPLE AND FAMILIES","	LOOKED AFTER CITY 2",PAYMENTS TO VOLUNTARY BODIES,27/09/2019,000006643216440,-30.00,ST JOHN AMBULANCE
OXFORDSHIRE CC,"CHILDRENS, YOUNG PEOPLE AND FAMILIES","	LOOKED AFTER NORTH",MATERIALS,17/09/2019,000006594363498,-29.90,AMZNMKTPLACE AMAZON.CO
OXFORDSHIRE CC,CORPORATE CORE,,"SUPPLIES, STATIONERY AND MATERIALS",30/08/2019,000008759618071,-21.84,LYRECO UK LTD
OXFORDSHIRE CC,CORPORATE CORE,"	ORGANISATIONAL DEV'T",TRAINING RELATED EXPENDITURE,29/08/2019,000008754025973,-20.09,EB  DIVERSITY AMP INCL
OXFORDSHIRE CC,ENVIRONMENT AND ECONOMY,"	COUNTY PRINT FINSHRS","BOOKS, DVDS AND CDS",24/09/2019,000006626493006,-17.95,FISHPOND CO NZ
OXFORDSHIRE CC,"CHILDRENS, YOUNG PEOPLE AND FAMILIES",NORTH FSS- BANBURY,MATERIALS,03/09/2019,000008773367517,-12.95,WWW.ARGOS.CO.UK
OXFORDSHIRE CC,"CHILDRENS, YOUNG PEOPLE AND FAMILIES","	LOOKED AFTER SOUTH",MATERIALS,26/09/2019,000006636681934,-12.32,DENNISWILLECOM
OXFORDSHIRE CC,"CHILDRENS, YOUNG PEOPLE AND FAMILIES","	LOOKED AFTER NORTH",MATERIALS,04/09/2019,000008776303967,-11.99,AMZNMKTPLACE AMAZON.CO
OXFORDSHIRE CC,"CHILDRENS, YOUNG PEOPLE AND FAMILIES",DIDCOT MOVE-ON HOME,PAYMENTS TO TRANSPORT OPERATORS,25/09/2019,000006631083916,-10.10,GWR DIDCOT PKWY TO
OXFORDSHIRE CC,SOCIAL AND COMMUNITY SERVICES,DIDCOT MOVE-ON HOME,PAYMENTS TO TRANSPORT OPERATORS,03/09/2019,000008773367525,-10.10,WWW.GWR.COM
OXFORDSHIRE CC,"CHILDRENS, YOUNG PEOPLE AND FAMILIES",0-5 STDS & PROGRESS,PAYMENTS TO VOLUNTARY BODIES,20/09/2019,000006610418610,-10.00,WP-THE BRITISH ASS
OXFORDSHIRE CC,"CHILDRENS, YOUNG PEOPLE AND FAMILIES","	LOOKED AFTER NORTH",MATERIALS,05/09/2019,000008780513713,-10.00,AMZNMKTPLACE AMAZON.CO
OXFORDSHIRE CC,SOCIAL AND COMMUNITY SERVICES,CSS WANTAGE,CATERING PROVISIONS,05/09/2019,000008780514853,-4.50,ASDA GROCERIES ONLINE
OXFORDSHIRE CC,CORPORATE CORE,,"SUPPLIES, STATIONERY AND MATERIALS",30/08/2019,000008759618073,-3.12,LYRECO UK LTD
OXFORDSHIRE CC,"CHILDRENS, YOUNG PEOPLE AND FAMILIES",WITNEY,CATERING PROVISIONS,24/09/2019,000006626493074,-2.00,SAINSBURYS TO YOU 0632
OXFORDSHIRE CC,"CHILDRENS, YOUNG PEOPLE AND FAMILIES",THAME E&A HOME,CATERING PROVISIONS,16/09/2019,000006586223596,-1.70,SAINSBURYS TO YOU 0600
OXFORDSHIRE CC,"CHILDRENS, YOUNG PEOPLE AND FAMILIES",THAME E&A HOME,CATERING PROVISIONS,10/09/2019,000008800226257,-1.55,SAINSBURYS TO YOU 0600
OXFORDSHIRE CC,"CHILDRENS, YOUNG PEOPLE AND FAMILIES",EYNSHAM,CATERING PROVISIONS,18/09/2019,000006598638104,-1.50,TESCO STORES 2008
OXFORDSHIRE CC,SOCIAL AND COMMUNITY SERVICES,CSS WANTAGE,CATERING PROVISIONS,05/09/2019,000008780514847,-1.25,ASDA GROCERIES ONLINE
OXFORDSHIRE CC,SOCIAL AND COMMUNITY SERVICES,CSS BICESTER,CATERING PROVISIONS,10/09/2019,000008800225823,-.80,SAINSBURYS (2243)
OXFORDSHIRE CC,"CHILDRENS, YOUNG PEOPLE AND FAMILIES","	40 THE MOORS",CATERING PROVISIONS,09/09/2019,000008792609451,-.36,ASDA GROCERIES ONLINE
OXFORDSHIRE CC,"CHILDRENS, YOUNG PEOPLE AND FAMILIES","	40 THE MOORS",CATERING PROVISIONS,16/09/2019,000006586223606,-.20,ASDA GROCERIES ONLINE
OXFORDSHIRE CC,"CHILDRENS, YOUNG PEOPLE AND FAMILIES","	LEADING THE EYFS Q&I","SUPPLIES, STATIONERY AND MATERIALS",26/09/2019,000006636682038,.34,AMZNMKTPLACE
OXFORDSHIRE CC,SOCIAL AND COMMUNITY SERVICES,RESIDENTIAL STRATEGY,CATERING PROVISIONS,02/09/2019,000008766709265,.55,CO-OPERATIVE FOOD
OXFORDSHIRE CC,"CHILDRENS, YOUNG PEOPLE AND FAMILIES",EYNSHAM,CATERING,02/09/2019,000008766709211,.60,WAITROSE 142
OXFORDSHIRE CC,"CHILDRENS, YOUNG PEOPLE AND FAMILIES",WITNEY,CATERING PROVISIONS,04/09/2019,000008776303931,.65,SAINSBURYS SACAT 0632
OXFORDSHIRE CC,"CHILDRENS, YOUNG PEOPLE AND FAMILIES",UASC 16&17,OTHER TRANSPORT ARRANGEMENTS,10/09/2019,000008800226173,.80,CHERWELL
OXFORDSHIRE CC,"CHILDRENS, YOUNG PEOPLE AND FAMILIES",CNTL EARLY HELP-BRTN,POSTAGE AND DELIVERY,06/09/2019,000008785349239,.83,POST OFFICE COUNTER
OXFORDSHIRE CC,"CHILDRENS, YOUNG PEOPLE AND FAMILIES",UASC 16&17,OTHER EXPENSES,17/09/2019,000006594363468,1.00,CARD FACTORY
OXFORDSHIRE CC,"CHILDRENS, YOUNG PEOPLE AND FAMILIES","	RIVERSIDE CENTRE",SUBSCRIPTIONS,13/09/2019,000008816587911,1.00,BRITISH CANOEING
OXFORDSHIRE CC,SOCIAL AND COMMUNITY SERVICES,"	MTFC",OTHER TRANSPORT ARRANGEMENTS,12/09/2019,000008810412345,1.00,CAR PARK CHARGES
OXFORDSHIRE CC,"CHILDRENS, YOUNG PEOPLE AND FAMILIES","	LOOKED AFTER SOUTH",OTHER TRANSPORT ARRANGEMENTS,12/09/2019,000008810412615,1.00,PARKING CHARGE
OXFORDSHIRE CC,"CHILDRENS, YOUNG PEOPLE AND FAMILIES",EYNSHAM,MATERIALS,09/09/2019,000008792609545,1.00,POUNDLAND LTD
OXFORDSHIRE CC,"CHILDRENS, YOUNG PEOPLE AND FAMILIES","	LOOKED AFTER SOUTH",REGISTRATION AND INSPECTION FEES,03/09/2019,000008773367783,1.00,SHIRE PLAY LIMITED
OXFORDSHIRE CC,"CHILDRENS, YOUNG PEOPLE AND FAMILIES","	LOOKED AFTER SOUTH",REGISTRATION AND INSPECTION FEES,03/09/2019,000008773367781,1.00,SHIRE PLAY LIMITED
OXFORDSHIRE CC,"CHILDRENS, YOUNG PEOPLE AND FAMILIES","	LOOKED AFTER SOUTH",SUBSCRIPTIONS,29/08/2019,000008754026049,1.00,RUSHDEN GOLD RANGE
OXFORDSHIRE CC,"CHILDRENS, YOUNG PEOPLE AND FAMILIES",CNTL ERLY HELP-BBLEY,CATERING PROVISIONS,23/09/2019,000006618484856,1.09,LIDL GB OXFORD
OXFORDSHIRE CC,"CHILDRENS, YOUNG PEOPLE AND FAMILIES",HOUSE PROJECT,OTHER TRANSPORT ARRANGEMENTS,04/09/2019,000008776304241,1.20,OXFORD BUS COMPANY
OXFORDSHIRE CC,CORPORATE CORE,REGISTRAR,CATERING PROVISIONS,27/09/2019,000006643215648,1.25,SPAR SUPER STORE
OXFORDSHIRE CC,CORPORATE CORE,REGISTRAR,CATERING PROVISIONS,10/09/2019,000008800226009,1.25,SPAR SUPER STORE
OXFORDSHIRE CC,CORPORATE CORE,REGISTRAR,CATERING PROVISIONS,30/08/2019,000008759617945,1.25,SPAR SUPER STORE
OXFORDSHIRE CC,"CHILDRENS, YOUNG PEOPLE AND FAMILIES","	LOOKED AFTER NORTH",CATERING,27/09/2019,000006643216528,1.39,MCDONALDS
OXFORDSHIRE CC,"CHILDRENS, YOUNG PEOPLE AND FAMILIES",CNTL ERLY HELP-BBLEY,CATERING PROVISIONS,16/09/2019,000006586223814,1.39,NISA DELTEYS
OXFORDSHIRE CC,"CHILDRENS, YOUNG PEOPLE AND FAMILIES",CNTL ERLY HELP-BBLEY,CATERING PROVISIONS,10/09/2019,000008800226639,1.39,NISA DELTEYS
OXFORDSHIRE CC,"CHILDRENS, YOUNG PEOPLE AND FAMILIES","	LOOKED AFTER NORTH",CATERING,05/09/2019,000008780513509,1.39,MCDONALDS
OXFORDSHIRE CC,"CHILDRENS, YOUNG PEOPLE AND FAMILIES",CNTL ERLY HELP-BBLEY,CATERING PROVISIONS,02/09/2019,000008766709553,1.39,NISA DELTEYS
OXFORDSHIRE CC,"CHILDRENS, YOUNG PEOPLE AND FAMILIES","	LOOKED AFTER CITY 2",POSTAGE AND DELIVERY,23/09/2019,000006618484858,1.40,POST OFFICE COUNTER
OXFORDSHIRE CC,"CHILDRENS, YOUNG PEOPLE AND FAMILIES","	LOOKED AFTER SOUTH",MATERIALS,23/09/2019,000006618484868,1.49,CARD FACTORY
OXFORDSHIRE CC,"CHILDRENS, YOUNG PEOPLE AND FAMILIES",ATV ADOPTION OXFORD,POSTAGE AND DELIVERY,26/09/2019,000006636681926,1.50,ROYAL MAIL CHARGES
OXFORDSHIRE CC,"CHILDRENS, YOUNG PEOPLE AND FAMILIES",ATV ADOPTION OXFORD,POSTAGE AND DELIVERY,26/09/2019,000006636681928,1.50,ROYAL MAIL CHARGES
OXFORDSHIRE CC,"CHILDRENS, YOUNG PEOPLE AND FAMILIES","	LOOKED AFTER NORTH",OTHER TRANSPORT ARRANGEMENTS,25/09/2019,000006631084136,1.50,TFL TRAVEL CH
OXFORDSHIRE CC,SOCIAL AND COMMUNITY SERVICES,LEAVING CARE NORTH,OTHER TRANSPORT ARRANGEMENTS,24/09/2019,000006626493248,1.50,PARKJOCKEY LONDON
OXFORDSHIRE CC,"CHILDRENS, YOUNG PEOPLE AND FAMILIES","	LOOKED AFTER NORTH",CATERING PROVISIONS,18/09/2019,000006598637862,1.50,WM MORRISONS STORE
OXFORDSHIRE CC,CORPORATE CORE,INCOME TEAM,PAYMENT TO GOVERNMENT DEPARTMENTS,17/09/2019,000006594363806,1.50,WWW.GOV.UK
OXFORDSHIRE CC,CORPORATE CORE,INCOME TEAM,PAYMENT TO GOVERNMENT DEPARTMENTS,16/09/2019,000006586223898,1.50,WWW.GOV.UK
OXFORDSHIRE CC,"CHILDRENS, YOUNG PEOPLE AND FAMILIES","	MALTFIELD HOUSE",CATERING PROVISIONS,11/09/2019,000008804871247,1.50,CO-OPERATIVE FOOD
OXFORDSHIRE CC,"CHILDRENS, YOUNG PEOPLE AND FAMILIES",HOUSE PROJECT,OTHER TRANSPORT ARRANGEMENTS,11/09/2019,000008804871387,1.50,PARKING CHARGE
OXFORDSHIRE CC,CORPORATE CORE,INCOME TEAM,PAYMENT TO GOVERNMENT DEPARTMENTS,11/09/2019,000008804871409,1.50,WWW.GOV.UK
OXFORDSHIRE CC,CORPORATE CORE,INCOME TEAM,PAYMENT TO GOVERNMENT DEPARTMENTS,11/09/2019,000008804871411,1.50,WWW.GOV.UK
OXFORDSHIRE CC,"CHILDRENS, YOUNG PEOPLE AND FAMILIES",THAME E&A HOME,OTHER TRANSPORT ARRANGEMENTS,09/09/2019,000008792609241,1.50,PARKJOCKEY LONDON
OXFORDSHIRE CC,CORPORATE CORE,INCOME TEAM,PAYMENT TO GOVERNMENT DEPARTMENTS,30/08/2019,000008759618085,1.50,WWW.GOV.UK
OXFORDSHIRE CC,"CHILDRENS, YOUNG PEOPLE AND FAMILIES","	LEAVING CARE NORTH",BIRTHDAY ALLOWANCE,30/08/2019,000008759617961,1.50,WM MORRISONS STORE
OXFORDSHIRE CC,SOCIAL AND COMMUNITY SERVICES,CSS - OXFORD,CATERING PROVISIONS,25/09/2019,000006631083880,1.54,ALDI STORES 775-142
OXFORDSHIRE CC,SOCIAL AND COMMUNITY SERVICES,CSS - DIDCOT,CATERING PROVISIONS,26/09/2019,000006636682026,1.55,TESCO STORE 2413
OXFORDSHIRE CC,ENVIRONMENT AND ECONOMY,HARD FM,OTHER TRANSPORT ARRANGEMENTS,06/09/2019,000008785348999,1.60,NCP BANBURY MARLBOROUG
OXFORDSHIRE CC,"CHILDRENS, YOUNG PEOPLE AND FAMILIES","	LOOKED AFTER NORTH",OTHER TRANSPORT ARRANGEMENTS,29/08/2019,000008754026029,1.60,NCP BANBURY MARLBOROUG
OXFORDSHIRE CC,"CHILDRENS, YOUNG PEOPLE AND FAMILIES","	LOOKED AFTER NORTH",OTHER TRANSPORT ARRANGEMENTS,29/08/2019,000008754026031,1.60,NCP BANBURY MARLBOROUG
OXFORDSHIRE CC,"CHILDRENS, YOUNG PEOPLE AND FAMILIES","	LOOKED AFTER NORTH",OTHER TRANSPORT ARRANGEMENTS,29/08/2019,000008754026033,1.60,NCP BANBURY MARLBOROUG
OXFORDSHIRE CC,"CHILDRENS, YOUNG PEOPLE AND FAMILIES","	MUSIC UNALLOCABLE",CATERING PROVISIONS,29/08/2019,000008754025967,1.60,TESCO STORE 2413
OXFORDSHIRE CC,"CHILDRENS, YOUNG PEOPLE AND FAMILIES","	40 THE MOORS",POSTAGE AND DELIVERY,18/09/2019,000006598637474,1.90,POST OFFICE COUNTER
OXFORDSHIRE CC,"CHILDRENS, YOUNG PEOPLE AND FAMILIES",NORTH FSS- BANBURY,REGISTRATION AND INSPECTION FEES,29/08/2019,000008754025957,1.90,PAYPAL  ROYAL MAIL
OXFORDSHIRE CC,"CHILDRENS, YOUNG PEOPLE AND FAMILIES",EYNSHAM,CATERING PROVISIONS,25/09/2019,000006631084112,2.00,SAINSBURYS SAC2305SAC
OXFORDSHIRE CC,"CHILDRENS, YOUNG PEOPLE AND FAMILIES","	LEAVING CARE CITY 1",CATERING PROVISIONS,23/09/2019,000006618484632,2.00,TESCO STORE 2990
OXFORDSHIRE CC,ENVIRONMENT AND ECONOMY,"	BUSINESS SYST STAFF",HIRE OF ACCOMMODATION AND FACILITIES,19/09/2019,000006604610972,2.00,PREMIER INN
OXFORDSHIRE CC,SOCIAL AND COMMUNITY SERVICES,LOOKED AFTER NORTH,OTHER TRANSPORT ARRANGEMENTS,18/09/2019,000006598636772,2.00,OCC P&R WATER EATON
OXFORDSHIRE CC,SOCIAL AND COMMUNITY SERVICES,WITNEY MOVE ON HOME,OTHER TRANSPORT ARRANGEMENTS,17/09/2019,000006594363556,2.00,SEACOURT PARK AND RIDE
OXFORDSHIRE CC,"CHILDRENS, YOUNG PEOPLE AND FAMILIES",PANEL COSTS,MATERIALS,13/09/2019,000008816587661,2.00,POUNDLAND LTD 1586
OXFORDSHIRE CC,ENVIRONMENT AND ECONOMY,V2GO,OTHER TRANSPORT ARRANGEMENTS,12/09/2019,000008810412185,2.00,SEACOURT PARK AND RIDE
OXFORDSHIRE CC,"CHILDRENS, YOUNG PEOPLE AND FAMILIES",CNTL EARLY HELP-RHIL,CATERING PROVISIONS,06/09/2019,000008785349307,2.00,SAINSBURYS SAC2305SAC
OXFORDSHIRE CC,"CHILDRENS, YOUNG PEOPLE AND FAMILIES",CNTL ERLY HELP-BBLEY,MATERIALS,05/09/2019,000008780515771,2.00,POUNDLAND LTD 1586
OXFORDSHIRE CC,"CHILDRENS, YOUNG PEOPLE AND FAMILIES","	LEAVING CARE NORTH",PAYMENTS TO TRANSPORT OPERATORS,04/09/2019,000008776304135,2.00,OXFORD PARKWAY
OXFORDSHIRE CC,"CHILDRENS, YOUNG PEOPLE AND FAMILIES",HOUSE PROJECT,OTHER TRANSPORT ARRANGEMENTS,04/09/2019,000008776304239,2.00,OXFORD BUS COMPANY
OXFORDSHIRE CC,SOCIAL AND COMMUNITY SERVICES,ADULT SERVICES IMPROVEMENT BOARD,CATERING PROVISIONS,03/09/2019,000008773367483,2.00,MARKS&SPENCER PLC SF
OXFORDSHIRE CC,"CHILDRENS, YOUNG PEOPLE AND FAMILIES",HOUSE PROJECT,OTHER TRANSPORT ARRANGEMENTS,29/08/2019,000008754026041,2.00,OXFORD BUS COMPANY
OXFORDSHIRE CC,"CHILDRENS, YOUNG PEOPLE AND FAMILIES",FAMILY SUPPORT 2,HARDWARE AND CROCKERY,24/09/2019,000006626493374,2.01,SCREWFIX OXFORD BOTLEY
OXFORDSHIRE CC,"CHILDRENS, YOUNG PEOPLE AND FAMILIES",KEEP ON CARING,POSTAGE AND DELIVERY,24/09/2019,000006626493060,2.03,POST OFFICE COUNTER
OXFORDSHIRE CC,"CHILDRENS, YOUNG PEOPLE AND FAMILIES",THAME E&A HOME,CATERING PROVISIONS,20/09/2019,000006610418632,2.05,SAINSBURYS SACAT 0631
OXFORDSHIRE CC,"CHILDRENS, YOUNG PEOPLE AND FAMILIES","	LOOKED AFTER CITY 2",CATERING,29/08/2019,000008754025945,2.09,MCDONALDS
OXFORDSHIRE CC,"CHILDRENS, YOUNG PEOPLE AND FAMILIES","	LOOKED AFTER CITY 2",OTHER TRANSPORT ARRANGEMENTS,27/09/2019,000006643215928,2.10,APCOA CONNECT - FGW
OXFORDSHIRE CC,"CHILDRENS, YOUNG PEOPLE AND FAMILIES",CNTL ERLY HELP-BBLEY,POSTAGE AND DELIVERY,02/09/2019,000008766709589,2.12,POST OFFICE COUNTER
OXFORDSHIRE CC,"CHILDRENS, YOUNG PEOPLE AND FAMILIES",CNTL ERLY HELP-BBLEY,CATERING PROVISIONS,26/09/2019,000006636682074,2.18,TESCO STORE 2990
OXFORDSHIRE CC,"CHILDRENS, YOUNG PEOPLE AND FAMILIES",CNTL ERLY HELP-BBLEY,CATERING PROVISIONS,18/09/2019,000006598638042,2.18,TESCO STORE 2990
OXFORDSHIRE CC,"CHILDRENS, YOUNG PEOPLE AND FAMILIES",CNTL ERLY HELP-BBLEY,CATERING PROVISIONS,12/09/2019,000008810412525,2.18,TESCO STORE 2990
OXFORDSHIRE CC,"CHILDRENS, YOUNG PEOPLE AND FAMILIES",DIDCOT MOVE-ON HOME,CATERING PROVISIONS,29/08/2019,000008754026015,2.18,CO-OPERATIVE FOOD
OXFORDSHIRE CC,"CHILDRENS, YOUNG PEOPLE AND FAMILIES",CNTL ERLY HELP-BBLEY,CATERING PROVISIONS,29/08/2019,000008754026023,2.18,TESCO STORE 2990
OXFORDSHIRE CC,SOCIAL AND COMMUNITY SERVICES,CSS BICESTER,CATERING PROVISIONS,16/09/2019,000006586223262,2.20,SAINSBURYS SACAT (2243
OXFORDSHIRE CC,"CHILDRENS, YOUNG PEOPLE AND FAMILIES",WITNEY,CATERING PROVISIONS,06/09/2019,000008785348979,2.20,SAINSBURYS 0632
OXFORDSHIRE CC,SOCIAL AND COMMUNITY SERVICES,"	MTFC",OTHER TRANSPORT ARRANGEMENTS,29/08/2019,000008754025981,2.20,CHERWELL
OXFORDSHIRE CC,SOCIAL AND COMMUNITY SERVICES,WITNEY MOVE ON HOME,POSTAGE AND DELIVERY,16/09/2019,000006586223426,2.26,POST OFFICE COUNTER
OXFORDSHIRE CC,"CHILDRENS, YOUNG PEOPLE AND FAMILIES",EYNSHAM,CATERING PROVISIONS,27/09/2019,000006643216562,2.28,CO-OPERATIVE FOOD
OXFORDSHIRE CC,"CHILDRENS, YOUNG PEOPLE AND FAMILIES",EYNSHAM,CATERING PROVISIONS,02/09/2019,000008766709287,2.44,CO-OPERATIVE FOOD
OXFORDSHIRE CC,"CHILDRENS, YOUNG PEOPLE AND FAMILIES",CNTL EARLY HELP-RHIL,CATERING PROVISIONS,23/09/2019,000006618484882,2.45,CO-OPERATIVE FOOD
OXFORDSHIRE CC,"CHILDRENS, YOUNG PEOPLE AND FAMILIES","	LEAVING CARE NORTH",CATERING,02/09/2019,000008766709435,2.45,COSTA TEMPLAR SQUARE O
OXFORDSHIRE CC,"CHILDRENS, YOUNG PEOPLE AND FAMILIES","	LEAVING CARE NORTH",OTHER EXPENSES,26/09/2019,000006636682070,2.50,SAINSBURYS SAC2305SAC
OXFORDSHIRE CC,"CHILDRENS, YOUNG PEOPLE AND FAMILIES",THAME E&A HOME,VEHICLE FUEL,26/09/2019,000006636681866,2.50,SAINSBURYS PFS0184
OXFORDSHIRE CC,SOCIAL AND COMMUNITY SERVICES,CSS WALLINGFORD,CATERING PROVISIONS,25/09/2019,000006631083960,2.50,WAITROSE 675
OXFORDSHIRE CC,"CHILDRENS, YOUNG PEOPLE AND FAMILIES","	ASSESS TEAM SOUTH",STATIONERY,04/09/2019,000008776304255,2.50,WWW.THEWORKS.CO.UK
OXFORDSHIRE CC,"CHILDRENS, YOUNG PEOPLE AND FAMILIES",THAME E&A HOME,CATERING PROVISIONS,04/09/2019,000008776303947,2.50,SAINSBURYS (2305)
OXFORDSHIRE CC,SOCIAL AND COMMUNITY SERVICES,CSS BICESTER,CATERING PROVISIONS,03/09/2019,000008773367397,2.50,SAINSBURYS SACAT (2243
OXFORDSHIRE CC,"CHILDRENS, YOUNG PEOPLE AND FAMILIES","	LOOKED AFTER CITY 1",OTHER TRANSPORT ARRANGEMENTS,02/09/2019,000008766709347,2.50,DART-CHARGE
OXFORDSHIRE CC,"CHILDRENS, YOUNG PEOPLE AND FAMILIES",THAME E&A HOME,OTHER TRANSPORT ARRANGEMENTS,02/09/2019,000008766709259,2.50,UNION STREET CAR PARK
OXFORDSHIRE CC,ENVIRONMENT AND ECONOMY,HARD FM,OTHER TRANSPORT ARRANGEMENTS,29/08/2019,000008754025881,2.60,NCP BANBURY MARLBOROUG
OXFORDSHIRE CC,"CHILDRENS, YOUNG PEOPLE AND FAMILIES","	LOOKED AFTER SOUTH",CATERING PROVISIONS,29/08/2019,000008754025873,2.65,TESCO STORES 2038
OXFORDSHIRE CC,"CHILDRENS, YOUNG PEOPLE AND FAMILIES",CNTL ERLY HELP-BBLEY,POSTAGE AND DELIVERY,13/09/2019,000008816587867,2.67,POST OFFICE COUNTER
OXFORDSHIRE CC,"CHILDRENS, YOUNG PEOPLE AND FAMILIES","	LOOKED AFTER SOUTH",CATERING,20/09/2019,000006610418384,2.68,BK DIDCOT
OXFORDSHIRE CC,"CHILDRENS, YOUNG PEOPLE AND FAMILIES",WITNEY,CATERING PROVISIONS,18/09/2019,000006598636830,2.70,SAINSBURYS SACAT 0632
OXFORDSHIRE CC,SOCIAL AND COMMUNITY SERVICES,"	MTFC",CATERING PROVISIONS,29/08/2019,000008754025983,2.70,SAINSBURYS SACAT 0642
OXFORDSHIRE CC,ENVIRONMENT AND ECONOMY,V2GO,CATERING PROVISIONS,20/09/2019,000006610418376,2.75,SAINSBURYS SACAT 0730
OXFORDSHIRE CC,SOCIAL AND COMMUNITY SERVICES,"	MTFC",CATERING,12/09/2019,000008810412349,2.75,GREGGS PLC
OXFORDSHIRE CC,SOCIAL AND COMMUNITY SERVICES,CSS - OXFORD,CATERING PROVISIONS,17/09/2019,000006594363500,2.80,ALDI STORES 775-142
OXFORDSHIRE CC,SOCIAL AND COMMUNITY SERVICES,WITNEY MOVE ON HOME,OTHER TRANSPORT ARRANGEMENTS,17/09/2019,000006594363554,2.80,OXFORD BUS COMPANY
OXFORDSHIRE CC,"CHILDRENS, YOUNG PEOPLE AND FAMILIES",WITNEY,CATERING PROVISIONS,11/09/2019,000008804871377,2.80,SAINSBURYS SACAT 0632
OXFORDSHIRE CC,"CHILDRENS, YOUNG PEOPLE AND FAMILIES",DEPUTY DIRECTOR &MAN,MATERIALS,25/09/2019,000006631083934,2.85,SCRIBBLER
OXFORDSHIRE CC,"CHILDRENS, YOUNG PEOPLE AND FAMILIES",THAME E&A HOME,CATERING,18/09/2019,000006598637060,2.85,DOMINOS PIZZA
OXFORDSHIRE CC,"CHILDRENS, YOUNG PEOPLE AND FAMILIES",EYNSHAM,CATERING,02/09/2019,000008766709271,2.85,SAINSBURYS 0631
OXFORDSHIRE CC,SOCIAL AND COMMUNITY SERVICES,CSS - OXFORD,CATERING PROVISIONS,20/09/2019,000006610418214,2.94,ALDI STORES 775-142
OXFORDSHIRE CC,"CHILDRENS, YOUNG PEOPLE AND FAMILIES",HOUSE PROJECT,CATERING PROVISIONS,02/09/2019,000008766709565,2.95,WHSMITH
OXFORDSHIRE CC,"CHILDRENS, YOUNG PEOPLE AND FAMILIES",EYNSHAM,CATERING PROVISIONS,27/09/2019,000006643216468,3.00,CO-OPERATIVE FOOD
OXFORDSHIRE CC,"CHILDRENS, YOUNG PEOPLE AND FAMILIES",CNTL ERLY HELP-BBLEY,POSTAGE AND DELIVERY,13/09/2019,000008816587865,3.00,POST OFFICE COUNTER
OXFORDSHIRE CC,"CHILDRENS, YOUNG PEOPLE AND FAMILIES",EYNSHAM,CATERING PROVISIONS,09/09/2019,000008792609541,3.00,ASDA STORES
OXFORDSHIRE CC,SOCIAL AND COMMUNITY SERVICES,RESIDENTIAL STRATEGY,CATERING PROVISIONS,06/09/2019,000008785349009,3.00,SAINSBURYS SACAT 0730
OXFORDSHIRE CC,SOCIAL AND COMMUNITY SERVICES,SCHOOLS FM,CATERING PROVISIONS,06/09/2019,000008785349105,3.00,MARKS&SPENCER PLC
OXFORDSHIRE CC,"CHILDRENS, YOUNG PEOPLE AND FAMILIES",HOUSE PROJECT,OTHER TRANSPORT ARRANGEMENTS,30/08/2019,000008759617955,3.00,OXPENS CAR PARK
OXFORDSHIRE CC,"CHILDRENS, YOUNG PEOPLE AND FAMILIES","	LOOKED AFTER CITY 1",CATERING,06/09/2019,000008785349113,3.05,COSTA COFFEE 43037200
OXFORDSHIRE CC,SOCIAL AND COMMUNITY SERVICES,ADULT SERVICES IMPROVEMENT BOARD,CATERING PROVISIONS,17/09/2019,000006594363510,3.09,WAITROSE 211
OXFORDSHIRE CC,"CHILDRENS, YOUNG PEOPLE AND FAMILIES",EYNSHAM,CATERING PROVISIONS,17/09/2019,000006594363514,3.10,SAINSBURYS SACAT 0632
OXFORDSHIRE CC,"CHILDRENS, YOUNG PEOPLE AND FAMILIES",WITNEY,CATERING PROVISIONS,13/09/2019,000008816587619,3.10,SAINSBURYS SACAT 0632
OXFORDSHIRE CC,"CHILDRENS, YOUNG PEOPLE AND FAMILIES","	LEAVING CARE NORTH",PAYMENTS TO TRANSPORT OPERATORS,04/09/2019,000008776304133,3.10,OXFORD PARKWAY
OXFORDSHIRE CC,"CHILDRENS, YOUNG PEOPLE AND FAMILIES","	FAMILY SUPPORT CITY3",CATERING,26/09/2019,000006636681826,3.15,CAFE LOCO TRADING
OXFORDSHIRE CC,"CHILDRENS, YOUNG PEOPLE AND FAMILIES",DIDCOT MOVE-ON HOME,CATERING,17/09/2019,000006594363750,3.15,GREGGS PLC
OXFORDSHIRE CC,SOCIAL AND COMMUNITY SERVICES,CSS WALLINGFORD,CATERING PROVISIONS,10/09/2019,000008800225899,3.15,WAITROSE 675
OXFORDSHIRE CC,"CHILDRENS, YOUNG PEOPLE AND FAMILIES","	LOOKED AFTER CITY 2",CATERING,05/09/2019,000008780514775,3.17,MCDONALDS
OXFORDSHIRE CC,"CHILDRENS, YOUNG PEOPLE AND FAMILIES","	LOOKED AFTER SOUTH",CATERING PROVISIONS,03/09/2019,000008773367787,3.20,CO-OPERATIVE FOOD
OXFORDSHIRE CC,"CHILDRENS, YOUNG PEOPLE AND FAMILIES","	LOOKED AFTER SOUTH",SUBSCRIPTIONS,29/08/2019,000008754026051,3.20,RUSHDEN GOLD RANGE
OXFORDSHIRE CC,SOCIAL AND COMMUNITY SERVICES,DIDCOT MOVE-ON HOME,CATERING PROVISIONS,23/09/2019,000006618484574,3.25,CO-OP FOOD
OXFORDSHIRE CC,"CHILDRENS, YOUNG PEOPLE AND FAMILIES","	LEAVING CARE NORTH",OTHER EXPENSES,20/09/2019,000006610418390,3.25,COSTA COFFEE ABINGDON
OXFORDSHIRE CC,"CHILDRENS, YOUNG PEOPLE AND FAMILIES","	LEAVING CARE NORTH",OTHER EXPENSES,05/09/2019,000008780514205,3.25,STARBUCKS
OXFORDSHIRE CC,SOCIAL AND COMMUNITY SERVICES,"	MTFC",CATERING PROVISIONS,05/09/2019,000008780514669,3.27,TESCO STORES 4377
OXFORDSHIRE CC,"CHILDRENS, YOUNG PEOPLE AND FAMILIES",CNTL ERLY HELP-BBLEY,CATERING PROVISIONS,03/09/2019,000008773367793,3.27,TESCO STORE 2990
OXFORDSHIRE CC,SOCIAL AND COMMUNITY SERVICES,CSS - OXFORD,CATERING PROVISIONS,24/09/2019,000006626493052,3.28,ALDI STORES 775-142
OXFORDSHIRE CC,"CHILDRENS, YOUNG PEOPLE AND FAMILIES","	RIVERSIDE CENTRE",CATERING PROVISIONS,26/09/2019,000006636681876,3.30,SAINSBURYS SACAT 0600
OXFORDSHIRE CC,"CHILDRENS, YOUNG PEOPLE AND FAMILIES","	RIVERSIDE CENTRE",CATERING PROVISIONS,16/09/2019,000006586223350,3.34,CO-OPERATIVE FOOD
OXFORDSHIRE CC,"CHILDRENS, YOUNG PEOPLE AND FAMILIES",FAMILY SUPPORT 2,PAYMENTS TO TRANSPORT OPERATORS,11/09/2019,000008804871405,3.35,WWW.GWR.COM
OXFORDSHIRE CC,ENVIRONMENT AND ECONOMY,HARD FM,EQUIPMENT,16/09/2019,000006586223294,3.38,WILTS ELECTRICAL
OXFORDSHIRE CC,"CHILDRENS, YOUNG PEOPLE AND FAMILIES",WITNEY,CATERING PROVISIONS,16/09/2019,000006586223194,3.40,SAINSBURYS SACAT 0632
OXFORDSHIRE CC,"CHILDRENS, YOUNG PEOPLE AND FAMILIES",THAME E&A HOME,ENTERTAINMENT EXPENSES,10/09/2019,000008800225951,3.40,BICESTER LEISURE CENTR
OXFORDSHIRE CC,SOCIAL AND COMMUNITY SERVICES,CSS WITNEY,VEHICLE FUEL,05/09/2019,000008780513183,3.40,TESCO PFS 3418
OXFORDSHIRE CC,"CHILDRENS, YOUNG PEOPLE AND FAMILIES","	FPT NORTH",OTHER TRANSPORT ARRANGEMENTS,04/09/2019,000008776304097,3.40,PARKING CHARGE
OXFORDSHIRE CC,SOCIAL AND COMMUNITY SERVICES,CSS BICESTER,MATERIALS,17/09/2019,000006594363412,3.45,WILKO RETAIL LIMIT
OXFORDSHIRE CC,SOCIAL AND COMMUNITY SERVICES,DIDCOT MOVE-ON HOME,CATERING,12/09/2019,000008810412033,3.45,COSTA COFFEE 43042160
OXFORDSHIRE CC,SOCIAL AND COMMUNITY SERVICES,DIDCOT MOVE-ON HOME,CATERING PROVISIONS,02/09/2019,000008766709279,3.45,CO-OPERATIVE FOOD
OXFORDSHIRE CC,"CHILDRENS, YOUNG PEOPLE AND FAMILIES","	LOOKED AFTER NORTH",OTHER TRANSPORT ARRANGEMENTS,25/09/2019,000006631084134,3.50,HANBOROUGH STN
OXFORDSHIRE CC,"CHILDRENS, YOUNG PEOPLE AND FAMILIES","	LOOKED AFTER CITY 2",CATERING PROVISIONS,24/09/2019,000006626493376,3.50,THE BOX OF DELIGHTS
OXFORDSHIRE CC,"CHILDRENS, YOUNG PEOPLE AND FAMILIES",WITNEY,CATERING PROVISIONS,20/09/2019,000006610418166,3.50,SAINSBURYS SACAT 0632
OXFORDSHIRE CC,"CHILDRENS, YOUNG PEOPLE AND FAMILIES","	LEAVING CARE NORTH",OTHER EXPENSES,18/09/2019,000006598638036,3.50,WM MORRISONS STORE
OXFORDSHIRE CC,"CHILDRENS, YOUNG PEOPLE AND FAMILIES","	LOOKED AFTER NORTH",CATERING,17/09/2019,000006594363788,3.55,STARBUCKS
OXFORDSHIRE CC,"CHILDRENS, YOUNG PEOPLE AND FAMILIES","	LOOKED AFTER NORTH",CATERING,27/09/2019,000006643215782,3.58,MCDONALDS
OXFORDSHIRE CC,CORPORATE CORE,OPERATIONS,MATERIALS,09/09/2019,000008792609403,3.59,AMZNMKTPLACE
OXFORDSHIRE CC,"CHILDRENS, YOUNG PEOPLE AND FAMILIES","	LEAVING CARE NORTH",CATERING PROVISIONS,09/09/2019,000008792609475,3.59,CO-OPERATIVE FOOD
OXFORDSHIRE CC,"CHILDRENS, YOUNG PEOPLE AND FAMILIES",DIDCOT MOVE-ON HOME,CATERING PROVISIONS,16/09/2019,000006586223768,3.60,ICELAND
OXFORDSHIRE CC,"CHILDRENS, YOUNG PEOPLE AND FAMILIES",HOUSE PROJECT,VEHICLE FUEL,09/09/2019,000008792609635,3.60,TESCO PFS 2488
OXFORDSHIRE CC,SOCIAL AND COMMUNITY SERVICES,CSS WANTAGE,MATERIALS,27/09/2019,000006643216150,3.70,AMZNMKTPLACE AMAZON.CO
OXFORDSHIRE CC,"CHILDRENS, YOUNG PEOPLE AND FAMILIES","	LOOKED AFTER CITY 1",CATERING,20/09/2019,000006610418210,3.75,BOSWELLS CAFE COWLEY
OXFORDSHIRE CC,"CHILDRENS, YOUNG PEOPLE AND FAMILIES","	LOOKED AFTER NORTH",CATERING,06/09/2019,000008785349303,3.75,COSTA CARTERTON
OXFORDSHIRE CC,ENVIRONMENT AND ECONOMY,"	KNIGHTS COURT",HEALTH AND SAFETY EQUIPMENT,26/09/2019,000006636682048,3.79,AMZNMKTPLACE
OXFORDSHIRE CC,ENVIRONMENT AND ECONOMY,SIP MANAGEMENT,OTHER TRANSPORT ARRANGEMENTS,27/09/2019,000006643216492,3.80,STGCOACH/CTYLINK
OXFORDSHIRE CC,"CHILDRENS, YOUNG PEOPLE AND FAMILIES","	FAMILY SUPPORT CITY3",OTHER TRANSPORT ARRANGEMENTS,25/09/2019,000006631083834,3.80,OXFORD BUS COMPANY
OXFORDSHIRE CC,ENTERPRISEVC,VOXY,CATERING PROVISIONS,10/09/2019,000008800225887,3.82,ART CAFE
OXFORDSHIRE CC,"CHILDRENS, YOUNG PEOPLE AND FAMILIES","	LOOKED AFTER NORTH",CATERING,12/09/2019,000008810412555,3.85,COSTA COFFEE 43042160
OXFORDSHIRE CC,"CHILDRENS, YOUNG PEOPLE AND FAMILIES",EYNSHAM,CATERING PROVISIONS,26/09/2019,000006636682052,3.90,SAINSBURYS 0632
OXFORDSHIRE CC,"CHILDRENS, YOUNG PEOPLE AND FAMILIES",EYNSHAM,CATERING PROVISIONS,06/09/2019,000008785349325,3.95,TESCO STORES 4377
OXFORDSHIRE CC,"CHILDRENS, YOUNG PEOPLE AND FAMILIES","	FAMILY SUPPORT CITY3",OTHER EXPENSES,03/09/2019,000008773367703,3.95,WWW.ULTIMATEACTIVITY.C
OXFORDSHIRE CC,"CHILDRENS, YOUNG PEOPLE AND FAMILIES",EYNSHAM,DAY ACTIVITIES,02/09/2019,000008766709213,3.96,SUPERDRUG STORES PLC
OXFORDSHIRE CC,"CHILDRENS, YOUNG PEOPLE AND FAMILIES",DIDCOT MOVE-ON HOME,CATERING PROVISIONS,09/09/2019,000008792609565,3.98,ALDI 99 775
OXFORDSHIRE CC,SOCIAL AND COMMUNITY SERVICES,"	MTFC",CATERING,29/08/2019,000008754025985,3.98,MCDONALDS
OXFORDSHIRE CC,"CHILDRENS, YOUNG PEOPLE AND FAMILIES","	40 THE MOORS",MATERIALS,25/09/2019,000006631084042,3.99,AMAZON PRIME MA9FT0RK4
OXFORDSHIRE CC,"CHILDRENS, YOUNG PEOPLE AND FAMILIES","	LOOKED AFTER CITY 1",CATERING PROVISIONS,03/09/2019,000008773367721,3.99,SOUTH MIMMS STARBUCKS
OXFORDSHIRE CC,"CHILDRENS, YOUNG PEOPLE AND FAMILIES",THAME E&A HOME,VEHICLE FUEL,26/09/2019,000006636681900,4.00,THAME BP SF CONNECT
OXFORDSHIRE CC,"CHILDRENS, YOUNG PEOPLE AND FAMILIES","	FAMILY SUPPORT CITY3",ENTERTAINMENT EXPENSES,24/09/2019,000006626493294,4.00,HULLABALOO AND LASER Z
OXFORDSHIRE CC,"CHILDRENS, YOUNG PEOPLE AND FAMILIES",THAME E&A HOME,OTHER TRANSPORT ARRANGEMENTS,23/09/2019,000006618484572,4.00,WESTGATE OXFORD CAR PA
OXFORDSHIRE CC,"CHILDRENS, YOUNG PEOPLE AND FAMILIES","	FAMILY SUPPORT CITY3",OTHER TRANSPORT ARRANGEMENTS,19/09/2019,000006604610722,4.00,WESTGATE OXFORD CAR PA
OXFORDSHIRE CC,"CHILDRENS, YOUNG PEOPLE AND FAMILIES","	FAMILY SUPPORT CITY3",PAYMENT TO GOVERNMENT DEPARTMENTS,16/09/2019,000006586223164,4.00,BRENT PARKING
OXFORDSHIRE CC,SOCIAL AND COMMUNITY SERVICES,RESIDENTIAL STRATEGY,OTHER TRANSPORT ARRANGEMENTS,09/09/2019,000008792609233,4.00,WESTGATE OXFORD CAR PA
OXFORDSHIRE CC,"CHILDRENS, YOUNG PEOPLE AND FAMILIES",EYNSHAM,"SUPPLIES, STATIONERY AND MATERIALS",04/09/2019,000008776303919,4.00,SAINSBURYS SACAT 0631
OXFORDSHIRE CC,"CHILDRENS, YOUNG PEOPLE AND FAMILIES",HOUSE PROJECT,OTHER TRANSPORT ARRANGEMENTS,30/08/2019,000008759618065,4.00,OXPENS CAR PARK
OXFORDSHIRE CC,"CHILDRENS, YOUNG PEOPLE AND FAMILIES","	LOOKED AFTER CITY 2",CATERING,25/09/2019,000006631084010,4.05,STARBUCKS COFFEE
OXFORDSHIRE CC,SOCIAL AND COMMUNITY SERVICES,CSS - OXFORD,PAYMENTS TO VOLUNTARY BODIES,06/09/2019,000008785349013,4.05,THE SHAW TRUST CHA
OXFORDSHIRE CC,"CHILDRENS, YOUNG PEOPLE AND FAMILIES","	LOOKED AFTER SOUTH",CATERING PROVISIONS,24/09/2019,000006626493384,4.15,SAINSBURYS SACAT 4395
OXFORDSHIRE CC,SOCIAL AND COMMUNITY SERVICES,CSS WANTAGE,CATERING PROVISIONS,04/09/2019,000008776303905,4.15,SAINSBURYS SACAT 2244
OXFORDSHIRE CC,"CHILDRENS, YOUNG PEOPLE AND FAMILIES",DIDCOT MOVE-ON HOME,CATERING,20/09/2019,000006610418606,4.20,COSTA COFFEE
OXFORDSHIRE CC,"CHILDRENS, YOUNG PEOPLE AND FAMILIES","	FAMILY SUPPORT CITY3",CATERING,26/09/2019,000006636681824,4.25,CAFE LOCO TRADING
OXFORDSHIRE CC,"CHILDRENS, YOUNG PEOPLE AND FAMILIES","	FAMILY SUPPORT CITY3",CATERING,25/09/2019,000006631083836,4.25,CAFE LOCO TRADING
OXFORDSHIRE CC,"CHILDRENS, YOUNG PEOPLE AND FAMILIES","	FAMILY SUPPORT CITY3",CATERING,12/09/2019,000008810411919,4.25,CAFE LOCO TRADING
OXFORDSHIRE CC,"CHILDRENS, YOUNG PEOPLE AND FAMILIES","	RESIDENTIAL STRATEGY",CATERING PROVISIONS,06/09/2019,000008785349199,4.25,SAINSBURYS SACAT 0631
OXFORDSHIRE CC,"CHILDRENS, YOUNG PEOPLE AND FAMILIES","	HOME SUPPORT",CATERING PROVISIONS,09/09/2019,000008792609585,4.30,CO-OPERATIVE FOOD
OXFORDSHIRE CC,"CHILDRENS, YOUNG PEOPLE AND FAMILIES",EYNSHAM,CATERING,20/09/2019,000006610418164,4.34,CO-OPERATIVE FOOD
OXFORDSHIRE CC,"CHILDRENS, YOUNG PEOPLE AND FAMILIES","	LEAVING CARE NORTH",CATERING PROVISIONS,09/09/2019,000008792609471,4.39,OXFORD PEARTREE STARBU
OXFORDSHIRE CC,CORPORATE CORE,INCOME TEAM,PAYMENT TO GOVERNMENT DEPARTMENTS,20/09/2019,000006610418668,4.50,WWW.GOV.UK
OXFORDSHIRE CC,"CHILDRENS, YOUNG PEOPLE AND FAMILIES","	LOOKED AFTER NORTH",CATERING PROVISIONS,17/09/2019,000006594363452,4.50,ONE STOP 0375
OXFORDSHIRE CC,"CHILDRENS, YOUNG PEOPLE AND FAMILIES",THAME E&A HOME,VEHICLE FUEL,02/09/2019,000008766709261,4.50,TESCO PFS 2488
OXFORDSHIRE CC,"CHILDRENS, YOUNG PEOPLE AND FAMILIES",WITNEY,CATERING PROVISIONS,17/09/2019,000006594363464,4.52,LIDL GB  WITNEY
OXFORDSHIRE CC,SOCIAL AND COMMUNITY SERVICES,SERVICE IMPROVEMENT,CATERING PROVISIONS,17/09/2019,000006594363508,4.55,WAITROSE 211
OXFORDSHIRE CC,"CHILDRENS, YOUNG PEOPLE AND FAMILIES","	RESIDENTIAL STRATEGY",CATERING PROVISIONS,05/09/2019,000008780513463,4.59,TESCO STORE 2788
OXFORDSHIRE CC,"CHILDRENS, YOUNG PEOPLE AND FAMILIES",DIDCOT MOVE-ON HOME,CATERING PROVISIONS,19/09/2019,000006604610978,4.65,ICELAND
OXFORDSHIRE CC,ENVIRONMENT AND ECONOMY,HARD FM,MATERIALS,26/09/2019,000006636681858,4.74,CJ CLARKE TIMBER MERCH
OXFORDSHIRE CC,"CHILDRENS, YOUNG PEOPLE AND FAMILIES",CNTL ERLY HELP-BBLEY,CATERING PROVISIONS,06/09/2019,000008785349067,4.75,TESCO STORE 2994
OXFORDSHIRE CC,"CHILDRENS, YOUNG PEOPLE AND FAMILIES",THAME E&A HOME,CATERING PROVISIONS,26/09/2019,000006636681880,4.83,SAINSBURYS SACAT 2096
OXFORDSHIRE CC,SOCIAL AND COMMUNITY SERVICES,SCHOOLS FM,CATERING PROVISIONS,19/09/2019,000006604610822,4.84,TESCO STORES 2008
OXFORDSHIRE CC,"CHILDRENS, YOUNG PEOPLE AND FAMILIES",CSS WALLINGFORD,CATERING PROVISIONS,30/08/2019,000008759617881,4.90,WAITROSE 675
OXFORDSHIRE CC,"CHILDRENS, YOUNG PEOPLE AND FAMILIES",THAME E&A HOME,MATERIALS,23/09/2019,000006618484590,4.99,B&M RETAIL LTD
OXFORDSHIRE CC,SOCIAL AND COMMUNITY SERVICES,DIDCOT MOVE-ON HOME,CATERING PROVISIONS,20/09/2019,000006610418242,4.99,SAINSBURYS SACAT 2067
OXFORDSHIRE CC,"CHILDRENS, YOUNG PEOPLE AND FAMILIES",THAME E&A HOME,"SUPPLIES, STATIONERY AND MATERIALS",17/09/2019,000006594363456,4.99,GLYNSWOOD OF THAME
OXFORDSHIRE CC,ENVIRONMENT AND ECONOMY,CENTRAL LIBRARY,"SUPPLIES, STATIONERY AND MATERIALS",13/09/2019,000008816587835,4.99,RYMAN 1172
OXFORDSHIRE CC,"CHILDRENS, YOUNG PEOPLE AND FAMILIES","	LOOKED AFTER CITY 2",OTHER EXPENSES,30/08/2019,000008759617993,4.99,WWW.MCDONALDS.CO.UK
OXFORDSHIRE CC,ENVIRONMENT AND ECONOMY,"	OXFORDSHIRE MUSEUM",SECURITY COSTS,25/09/2019,000006631084016,5.00,BICESTER SHOE REPAIRS
OXFORDSHIRE CC,SOCIAL AND COMMUNITY SERVICES,CSS - BANBURY,CATERING PROVISIONS,23/09/2019,000006618484480,5.00,TESCO STORE 2064
OXFORDSHIRE CC,SOCIAL AND COMMUNITY SERVICES,CSS - OXFORD,MATERIALS,20/09/2019,000006610418234,5.00,POUNDLAND LTD
OXFORDSHIRE CC,SOCIAL AND COMMUNITY SERVICES,CSS - OXFORD,HARDWARE AND CROCKERY,20/09/2019,000006610418212,5.00,HOMEBASE LTD 091
OXFORDSHIRE CC,"CHILDRENS, YOUNG PEOPLE AND FAMILIES","	40 THE MOORS",MATERIALS,16/09/2019,000006586223456,5.00,POUNDLAND LTD
OXFORDSHIRE CC,"CHILDRENS, YOUNG PEOPLE AND FAMILIES","	FAMILY SUPPORT CITY3",OTHER TRANSPORT ARRANGEMENTS,16/09/2019,000006586223160,5.00,WESTGATE OXFORD CAR PA
OXFORDSHIRE CC,"CHILDRENS, YOUNG PEOPLE AND FAMILIES","	RIVERSIDE CENTRE",IT SOFTWARE,13/09/2019,000008816587907,5.00,BRITISHCANOEING
OXFORDSHIRE CC,"CHILDRENS, YOUNG PEOPLE AND FAMILIES","	FAMILY SUPPORT CITY3",OTHER TRANSPORT ARRANGEMENTS,13/09/2019,000008816587549,5.00,WESTGATE OXFORD CAR PA
OXFORDSHIRE CC,"CHILDRENS, YOUNG PEOPLE AND FAMILIES",WITNEY,CATERING PROVISIONS,12/09/2019,000008810411979,5.00,SAINSBURYS SACAT 0632
OXFORDSHIRE CC,"CHILDRENS, YOUNG PEOPLE AND FAMILIES",WITNEY,OTHER TRANSPORT ARRANGEMENTS,06/09/2019,000008785348969,5.00,OXPENS CAR PARK
OXFORDSHIRE CC,"CHILDRENS, YOUNG PEOPLE AND FAMILIES","	LEAVING CARE NORTH",CLOTHING AND UNIFORMS,02/09/2019,000008766709439,5.00,H & M
OXFORDSHIRE CC,"CHILDRENS, YOUNG PEOPLE AND FAMILIES",CNTL ERLY HELP-BBLEY,MATERIALS,02/09/2019,000008766709591,5.00,MASONS
OXFORDSHIRE CC,SOCIAL AND COMMUNITY SERVICES,CSS BICESTER,MATERIALS,29/08/2019,000008754025903,5.00,WILKO RETAIL LIMIT
OXFORDSHIRE CC,"CHILDRENS, YOUNG PEOPLE AND FAMILIES","	LEAVING CARE NORTH",CATERING,20/09/2019,000006610418534,5.03,MCDONALDS
OXFORDSHIRE CC,CORPORATE CORE,,"SUPPLIES, STATIONERY AND MATERIALS",16/09/2019,000006586223864,5.04,LYRECO UK LTD
OXFORDSHIRE CC,"CHILDRENS, YOUNG PEOPLE AND FAMILIES","	RESIDENTIAL STRATEGY",CATERING PROVISIONS,05/09/2019,000008780513457,5.15,TESCO STORE 2788
OXFORDSHIRE CC,"CHILDRENS, YOUNG PEOPLE AND FAMILIES","	LOOKED AFTER NORTH",OTHER EXPENSES,27/09/2019,000006643216668,5.20,TESCO PFS 3011
OXFORDSHIRE CC,"CHILDRENS, YOUNG PEOPLE AND FAMILIES",CNTL EARLY HELP-BRTN,ENTERTAINMENT EXPENSES,18/09/2019,000006598637784,5.20,HULLABALOO AND LASER Z
OXFORDSHIRE CC,"CHILDRENS, YOUNG PEOPLE AND FAMILIES","	LOOKED AFTER CITY 2",CATERING,16/09/2019,000006586223830,5.20,CAGNEYS COFFEE LOUNGE
OXFORDSHIRE CC,"CHILDRENS, YOUNG PEOPLE AND FAMILIES",EYNSHAM,CATERING PROVISIONS,27/09/2019,000006643216534,5.25,CO-OPERATIVE FOOD
OXFORDSHIRE CC,"CHILDRENS, YOUNG PEOPLE AND FAMILIES","	LOOKED AFTER SOUTH",CATERING PROVISIONS,16/09/2019,000006586223486,5.25,SAINSBURYS SAC2305SAC
OXFORDSHIRE CC,"CHILDRENS, YOUNG PEOPLE AND FAMILIES","	LOOKED AFTER NORTH",CATERING,27/09/2019,000006643216524,5.29,MCDONALDS
OXFORDSHIRE CC,"CHILDRENS, YOUNG PEOPLE AND FAMILIES","	LEAVING CARE NORTH",OTHER EXPENSES,02/09/2019,000008766709583,5.29,TESCO STORES 3398
OXFORDSHIRE CC,ENVIRONMENT AND ECONOMY,HARD FM,HARDWARE AND CROCKERY,18/09/2019,000006598636858,5.30,WICKES BANBURY
OXFORDSHIRE CC,ENTERPRISEVC,OTFC TEAM,CATERING PROVISIONS,30/08/2019,000008759617939,5.31,PPOINT_ SUREPRIDE LTD
OXFORDSHIRE CC,"CHILDRENS, YOUNG PEOPLE AND FAMILIES","	LOOKED AFTER CITY 2",CATERING,16/09/2019,000006586223832,5.35,CAGNEYS COFFEE LOUNGE
OXFORDSHIRE CC,ENVIRONMENT AND ECONOMY,HARD FM,HARDWARE AND CROCKERY,25/09/2019,000006631083864,5.39,WICKES BICESTER
OXFORDSHIRE CC,"CHILDRENS, YOUNG PEOPLE AND FAMILIES",THAME E&A HOME,VEHICLE FUEL,18/09/2019,000006598636810,5.48,THAME BP SF CONNECT
OXFORDSHIRE CC,ENVIRONMENT AND ECONOMY,HARD FM,EQUIPMENT,05/09/2019,000008780513595,5.48,W F SENATE
OXFORDSHIRE CC,SOCIAL AND COMMUNITY SERVICES,CSS WALLINGFORD,POSTAGE AND DELIVERY,30/08/2019,000008759617935,5.49,THE POST OFFICE
OXFORDSHIRE CC,"CHILDRENS, YOUNG PEOPLE AND FAMILIES","	FAMILY SUPPORT CITY3",ENTERTAINMENT EXPENSES,24/09/2019,000006626493292,5.50,HULLABALOO AND LASER Z
OXFORDSHIRE CC,ENVIRONMENT AND ECONOMY,SIP MANAGEMENT,CATERING PROVISIONS,20/09/2019,000006610418628,5.50,MARKS&SPENCER PLC
OXFORDSHIRE CC,"CHILDRENS, YOUNG PEOPLE AND FAMILIES","	RESIDENTIAL STRATEGY",CATERING PROVISIONS,02/09/2019,000008766709231,5.50,CO-OPERATIVE FOOD
OXFORDSHIRE CC,"CHILDRENS, YOUNG PEOPLE AND FAMILIES",THAME E&A HOME,VEHICLE FUEL,09/09/2019,000008792609637,5.57,THAME BP SF CONNECT
OXFORDSHIRE CC,SOCIAL AND COMMUNITY SERVICES,CSS - BANBURY,CATERING PROVISIONS,02/09/2019,000008766709193,5.58,CO-OPERATIVE FOOD
OXFORDSHIRE CC,"CHILDRENS, YOUNG PEOPLE AND FAMILIES",NTH EARLY HELP-BCSTR,PAYMENTS TO TRANSPORT OPERATORS,27/09/2019,000006643215684,5.60,WWW.GWR.COM
OXFORDSHIRE CC,SOCIAL AND COMMUNITY SERVICES,ADULT SERVICES IMPROVEMENT BOARD,CATERING PROVISIONS,23/09/2019,000006618484582,5.60,BLENHEIM SERVICE STATI
OXFORDSHIRE CC,"CHILDRENS, YOUNG PEOPLE AND FAMILIES",NTH FAM SUPRT-BCSTR,PAYMENTS TO TRANSPORT OPERATORS,16/09/2019,000006586223136,5.60,WWW.GWR.COM
OXFORDSHIRE CC,"CHILDRENS, YOUNG PEOPLE AND FAMILIES",WITNEY,CATERING PROVISIONS,02/09/2019,000008766709239,5.60,TESCO-STORES 2499
OXFORDSHIRE CC,"CHILDRENS, YOUNG PEOPLE AND FAMILIES","	40 THE MOORS",CATERING PROVISIONS,10/09/2019,000008800226281,5.61,THE VILLAGE SHOP
OXFORDSHIRE CC,"CHILDRENS, YOUNG PEOPLE AND FAMILIES","	FAMILY SUPPORT CITY3",CATERING,24/09/2019,000006626492986,5.65,CAFE LOCO TRADING
OXFORDSHIRE CC,SOCIAL AND COMMUNITY SERVICES,CSS - OXFORD,CATERING PROVISIONS,04/09/2019,000008776303973,5.67,ALDI STORES 775-142
OXFORDSHIRE CC,"CHILDRENS, YOUNG PEOPLE AND FAMILIES","	LOOKED AFTER SOUTH",CATERING,11/09/2019,000008804871383,5.69,MCDONALDS
OXFORDSHIRE CC,"CHILDRENS, YOUNG PEOPLE AND FAMILIES",DEPUTY DIRECTOR &MAN,CATERING PROVISIONS,19/09/2019,000006604610840,5.70,MARKS&SPENCER PLC
OXFORDSHIRE CC,SOCIAL AND COMMUNITY SERVICES,SCHOOLS FM,CATERING PROVISIONS,09/09/2019,000008792609345,5.70,MARKS&SPENCER PLC
OXFORDSHIRE CC,"CHILDRENS, YOUNG PEOPLE AND FAMILIES",THAME E&A HOME,CATERING,13/09/2019,000008816587649,5.73,MCDONALDS
OXFORDSHIRE CC,SOCIAL AND COMMUNITY SERVICES,ADULT SERVICES IMPROVEMENT BOARD,CATERING,19/09/2019,000006604610786,5.74,BOOKER LIMITED OXFORD
OXFORDSHIRE CC,"CHILDRENS, YOUNG PEOPLE AND FAMILIES",THAME E&A HOME,CATERING PROVISIONS,17/09/2019,000006594363458,5.75,CO-OPERATIVE FOOD
OXFORDSHIRE CC,SOCIAL AND COMMUNITY SERVICES,CSS - ABINGDON,CATERING PROVISIONS,05/09/2019,000008780513383,5.75,TESCO STORE 2413
OXFORDSHIRE CC,"CHILDRENS, YOUNG PEOPLE AND FAMILIES","	LOOKED AFTER SOUTH",MATERIALS,24/09/2019,000006626493388,5.78,CARD FACTORY
OXFORDSHIRE CC,"CHILDRENS, YOUNG PEOPLE AND FAMILIES","	LOOKED AFTER NORTH",CATERING,25/09/2019,000006631083962,5.79,MCDONALDS
OXFORDSHIRE CC,"CHILDRENS, YOUNG PEOPLE AND FAMILIES","	LOOKED AFTER NORTH",CATERING,20/09/2019,000006610418646,5.85,COSTA COFFEE 43043010
OXFORDSHIRE CC,"CHILDRENS, YOUNG PEOPLE AND FAMILIES",WITNEY,CATERING PROVISIONS,20/09/2019,000006610418170,5.85,SAINSBURYS 0632
OXFORDSHIRE CC,SOCIAL AND COMMUNITY SERVICES,LEAVING CARE NORTH,CATERING PROVISIONS,10/09/2019,000008800226289,5.90,WM MORRISONS STORE
OXFORDSHIRE CC,"CHILDRENS, YOUNG PEOPLE AND FAMILIES","	LOOKED AFTER CITY 1",CATERING,06/09/2019,000008785349111,5.90,COSTA COFFEE 43037200
OXFORDSHIRE CC,"CHILDRENS, YOUNG PEOPLE AND FAMILIES",WITNEY,CATERING PROVISIONS,04/09/2019,000008776303933,5.94,LIDL GB  WITNEY
OXFORDSHIRE CC,"CHILDRENS, YOUNG PEOPLE AND FAMILIES","	40 THE MOORS",DRUGS AND MEDICAL SUPPLIES,23/09/2019,000006618484818,5.95,SUPERDRUG STORES PLC
OXFORDSHIRE CC,"CHILDRENS, YOUNG PEOPLE AND FAMILIES",THAME E&A HOME,MATERIALS,23/09/2019,000006618484588,5.96,HOME BARGAINS
OXFORDSHIRE CC,"CHILDRENS, YOUNG PEOPLE AND FAMILIES","	LOOKED AFTER CITY 2",CLOTHING AND UNIFORMS,17/09/2019,000006594363670,5.99,SELECT
OXFORDSHIRE CC,"CHILDRENS, YOUNG PEOPLE AND FAMILIES","	LEAVING CARE NORTH",OTHER TRANSPORT ARRANGEMENTS,27/09/2019,000006643216100,6.00,3C_ BASINGSTOKE AND DE
OXFORDSHIRE CC,ENVIRONMENT AND ECONOMY,"	MUSEUM DEV OFFICER",OTHER TRANSPORT ARRANGEMENTS,27/09/2019,000006643216376,6.00,3C_ CAMBRIDGE LEISURE
OXFORDSHIRE CC,"CHILDRENS, YOUNG PEOPLE AND FAMILIES","	LOOKED AFTER SOUTH",OTHER TRANSPORT ARRANGEMENTS,26/09/2019,000006636682072,6.00,3C_ ECP - BRITANNIA IN
OXFORDSHIRE CC,"CHILDRENS, YOUNG PEOPLE AND FAMILIES","	LOOKED AFTER NORTH",CATERING,26/09/2019,000006636681936,6.00,PHOTO ME INTERNATIONAL
OXFORDSHIRE CC,"CHILDRENS, YOUNG PEOPLE AND FAMILIES",HOUSE PROJECT,CATERING PROVISIONS,18/09/2019,000006598637846,6.00,ASDA STORE 4442
OXFORDSHIRE CC,"CHILDRENS, YOUNG PEOPLE AND FAMILIES",HOUSE PROJECT,OTHER TRANSPORT ARRANGEMENTS,17/09/2019,000006594363778,6.00,WORCESTER STREET CAR P
OXFORDSHIRE CC,"CHILDRENS, YOUNG PEOPLE AND FAMILIES","	LOOKED AFTER CITY 1",OTHER TRANSPORT ARRANGEMENTS,17/09/2019,000006594363596,6.00,WORCESTER STREET CAR P
OXFORDSHIRE CC,SOCIAL AND COMMUNITY SERVICES,WITNEY MOVE ON HOME,CATERING PROVISIONS,16/09/2019,000006586223428,6.00,SAINSBURYS 0632
OXFORDSHIRE CC,"CHILDRENS, YOUNG PEOPLE AND FAMILIES","	LOOKED AFTER SOUTH",STATIONERY,13/09/2019,000008816587899,6.00,PHOTO ME INTERNATIONAL
OXFORDSHIRE CC,SOCIAL AND COMMUNITY SERVICES,SCHOOLS FM,CATERING PROVISIONS,10/09/2019,000008800226045,6.00,MARKS&SPENCER PLC
OXFORDSHIRE CC,SOCIAL AND COMMUNITY SERVICES,DIDCOT MOVE-ON HOME,STATIONERY,02/09/2019,000008766709277,6.00,PHOTO ME INTERNATIONAL
OXFORDSHIRE CC,ENVIRONMENT AND ECONOMY,"	FLEET OPERATIONS",OTHER TRANSPORT ARRANGEMENTS,02/09/2019,000008766709497,6.00,DART-CHARGE
OXFORDSHIRE CC,SOCIAL AND COMMUNITY SERVICES,CSS - OXFORD,CATERING PROVISIONS,16/09/2019,000006586223320,6.10,TESCO STORE 2994
OXFORDSHIRE CC,ENVIRONMENT AND ECONOMY,HARD FM,MATERIALS,26/09/2019,000006636681852,6.11,TOOLSTATION
OXFORDSHIRE CC,"CHILDRENS, YOUNG PEOPLE AND FAMILIES",EYNSHAM,CATERING PROVISIONS,19/09/2019,000006604610864,6.11,CO-OPERATIVE FOOD
OXFORDSHIRE CC,"CHILDRENS, YOUNG PEOPLE AND FAMILIES",UASC UNDER 16,"SUPPLIES, STATIONERY AND MATERIALS",10/09/2019,000008800225713,6.15,WILKO RETAIL LIMIT
OXFORDSHIRE CC,"CHILDRENS, YOUNG PEOPLE AND FAMILIES",THAME E&A HOME,CATERING,04/09/2019,000008776303987,6.16,MCDONALDS
OXFORDSHIRE CC,ENVIRONMENT AND ECONOMY,HARD FM,EQUIPMENT,05/09/2019,000008780513599,6.20,WILTS ELECTRICAL
OXFORDSHIRE CC,"CHILDRENS, YOUNG PEOPLE AND FAMILIES","	LOOKED AFTER CITY 1",MATERIALS,19/09/2019,000006604610874,6.21,CARD FACTORY
OXFORDSHIRE CC,SOCIAL AND COMMUNITY SERVICES,WITNEY MOVE ON HOME,CATERING PROVISIONS,16/09/2019,000006586223332,6.25,CO-OP GROUP 070582
OXFORDSHIRE CC,"CHILDRENS, YOUNG PEOPLE AND FAMILIES",THAME E&A HOME,VEHICLE FUEL,19/09/2019,000006604610764,6.28,THAME BP SF CONNECT
OXFORDSHIRE CC,CORPORATE CORE,SCHOOLS FM,CATERING PROVISIONS,16/09/2019,000006586223508,6.30,TESCO STORES
OXFORDSHIRE CC,"CHILDRENS, YOUNG PEOPLE AND FAMILIES","	RESIDENTIAL STRATEGY",CATERING,09/09/2019,000008792609187,6.30,MCDONALDS
OXFORDSHIRE CC,"CHILDRENS, YOUNG PEOPLE AND FAMILIES","	FAMILY SUPPORT CITY3",CATERING,18/09/2019,000006598636764,6.35,CAFE LOCO TRADING
OXFORDSHIRE CC,SOCIAL AND COMMUNITY SERVICES,RESIDENTIAL STRATEGY,CATERING PROVISIONS,16/09/2019,000006586223316,6.35,SAINSBURYS 0632
OXFORDSHIRE CC,SOCIAL AND COMMUNITY SERVICES,DIDCOT MOVE-ON HOME,CATERING PROVISIONS,16/09/2019,000006586223328,6.35,SAINSBURYS 0632
OXFORDSHIRE CC,"CHILDRENS, YOUNG PEOPLE AND FAMILIES","	FAMILY SUPPORT CITY3",ENTERTAINMENT EXPENSES,24/09/2019,000006626493296,6.40,HULLABALOO AND LASER Z
OXFORDSHIRE CC,"CHILDRENS, YOUNG PEOPLE AND FAMILIES",THAME E&A HOME,CATERING,10/09/2019,000008800225701,6.40,COSTA COFFEE 43041630
OXFORDSHIRE CC,"CHILDRENS, YOUNG PEOPLE AND FAMILIES","	LOOKED AFTER SOUTH",CATERING,20/09/2019,000006610418386,6.46,BK DIDCOT
OXFORDSHIRE CC,"CHILDRENS, YOUNG PEOPLE AND FAMILIES","	RESIDENTIAL STRATEGY",CATERING PROVISIONS,05/09/2019,000008780514629,6.49,OXFORD PEARTREE KFC
OXFORDSHIRE CC,"CHILDRENS, YOUNG PEOPLE AND FAMILIES","	FAMILY SUPPORT CITY3",CATERING,25/09/2019,000006631083838,6.50,CAFE LOCO TRADING
OXFORDSHIRE CC,"CHILDRENS, YOUNG PEOPLE AND FAMILIES","	RIVERSIDE CENTRE",MATERIALS,16/09/2019,000006586223346,6.50,HOBBYCRAFT
OXFORDSHIRE CC,ENVIRONMENT AND ECONOMY,HARD FM,MATERIALS,25/09/2019,000006631083862,6.51,TOOLSTATION LTD
OXFORDSHIRE CC,"CHILDRENS, YOUNG PEOPLE AND FAMILIES","	RESIDENTIAL STRATEGY",CATERING PROVISIONS,26/09/2019,000006636681836,6.55,TESCO STORE 2788
OXFORDSHIRE CC,"CHILDRENS, YOUNG PEOPLE AND FAMILIES",DIDCOT MOVE-ON HOME,CATERING,11/09/2019,000008804871347,6.55,COSTA COFFEE 43044275
OXFORDSHIRE CC,ENVIRONMENT AND ECONOMY,HARD FM,HARDWARE AND CROCKERY,04/09/2019,000008776303945,6.59,SCREWFIX OXFORD BOTLEY
OXFORDSHIRE CC,"CHILDRENS, YOUNG PEOPLE AND FAMILIES",NTH FAM SUPRT-BCSTR,PAYMENTS TO TRANSPORT OPERATORS,11/09/2019,000008804871147,6.60,WWW.GWR.COM
OXFORDSHIRE CC,"CHILDRENS, YOUNG PEOPLE AND FAMILIES",HOUSE PROJECT,POSTAGE AND DELIVERY,10/09/2019,000008800226655,6.60,THE POST OFFICE
OXFORDSHIRE CC,SOCIAL AND COMMUNITY SERVICES,VIVA,POSTAGE AND DELIVERY,02/09/2019,000008766709603,6.60,POST OFFICE COUNTER
OXFORDSHIRE CC,SOCIAL AND COMMUNITY SERVICES,DIDCOT MOVE-ON HOME,CATERING PROVISIONS,27/09/2019,000006643215468,6.69,TESCO STORE 2413
OXFORDSHIRE CC,SOCIAL AND COMMUNITY SERVICES,LEAVING CARE NORTH,CATERING PROVISIONS,27/09/2019,000006643216046,6.70,WM MORRISONS STORE
OXFORDSHIRE CC,ENVIRONMENT AND ECONOMY,SIP MANAGEMENT,CATERING PROVISIONS,23/09/2019,000006618484864,6.70,MARKS&SPENCER PLC
OXFORDSHIRE CC,SOCIAL AND COMMUNITY SERVICES,LOOKED AFTER NORTH,OTHER TRANSPORT ARRANGEMENTS,16/09/2019,000006586223170,6.70,M6 TOLL
OXFORDSHIRE CC,"CHILDRENS, YOUNG PEOPLE AND FAMILIES",NTH EARLY HELP-BCSTR,PAYMENTS TO TRANSPORT OPERATORS,13/09/2019,000008816587673,6.70,WWW.GWR.COM
OXFORDSHIRE CC,"CHILDRENS, YOUNG PEOPLE AND FAMILIES",NTH EARLY HELP-BCSTR,PAYMENTS TO TRANSPORT OPERATORS,13/09/2019,000008816587677,6.70,WWW.GWR.COM
OXFORDSHIRE CC,"CHILDRENS, YOUNG PEOPLE AND FAMILIES",HOUSE PROJECT,OTHER TRANSPORT ARRANGEMENTS,13/09/2019,000008816587889,6.70,M6 TOLL
OXFORDSHIRE CC,"CHILDRENS, YOUNG PEOPLE AND FAMILIES",HOUSE PROJECT,OTHER TRANSPORT ARRANGEMENTS,13/09/2019,000008816587891,6.70,M6 TOLL
OXFORDSHIRE CC,"CHILDRENS, YOUNG PEOPLE AND FAMILIES",DIDCOT MOVE-ON HOME,CATERING,09/09/2019,000008792609601,6.70,MCDONALDS
OXFORDSHIRE CC,"CHILDRENS, YOUNG PEOPLE AND FAMILIES",THAME E&A HOME,ENTERTAINMENT EXPENSES,02/09/2019,000008766709273,6.70,DIDCOT LEISURE CENTRE
OXFORDSHIRE CC,"CHILDRENS, YOUNG PEOPLE AND FAMILIES","	LOOKED AFTER CITY 1",OTHER TRANSPORT ARRANGEMENTS,29/08/2019,000008754025961,6.70,M6 TOLL
OXFORDSHIRE CC,"CHILDRENS, YOUNG PEOPLE AND FAMILIES","	LOOKED AFTER CITY 1",OTHER TRANSPORT ARRANGEMENTS,29/08/2019,000008754025963,6.70,M6 TOLL
OXFORDSHIRE CC,"CHILDRENS, YOUNG PEOPLE AND FAMILIES","	LOOKED AFTER CITY 2",OTHER TRANSPORT ARRANGEMENTS,29/08/2019,000008754025971,6.70,M6 TOLL
OXFORDSHIRE CC,"CHILDRENS, YOUNG PEOPLE AND FAMILIES","	40 THE MOORS",DRUGS AND MEDICAL SUPPLIES,09/09/2019,000008792609537,6.73,SUPERDRUG STORES PLC
OXFORDSHIRE CC,"CHILDRENS, YOUNG PEOPLE AND FAMILIES","	OSCB",DRUGS AND MEDICAL SUPPLIES,23/09/2019,000006618484518,6.75,"BOOTS,WITNEY"
OXFORDSHIRE CC,"CHILDRENS, YOUNG PEOPLE AND FAMILIES",WITNEY,MATERIALS,27/09/2019,000006643215254,6.77,AMZNMKTPLACE AMAZON.CO
OXFORDSHIRE CC,SOCIAL AND COMMUNITY SERVICES,CSS - OXFORD,CATERING PROVISIONS,11/09/2019,000008804871131,6.79,ALDI STORES 775-142
OXFORDSHIRE CC,"CHILDRENS, YOUNG PEOPLE AND FAMILIES","	LOOKED AFTER CITY 2",PAYMENTS TO TRANSPORT OPERATORS,27/09/2019,000006643215926,6.80,THE CHILTERN RLYWY
OXFORDSHIRE CC,"CHILDRENS, YOUNG PEOPLE AND FAMILIES","	FAMILY SUPPORT CITY3",OTHER TRANSPORT ARRANGEMENTS,23/09/2019,000006618484792,6.80,WWW.GWR.COM
OXFORDSHIRE CC,"CHILDRENS, YOUNG PEOPLE AND FAMILIES","	FAMILY SUPPORT CITY3",OTHER TRANSPORT ARRANGEMENTS,23/09/2019,000006618484794,6.80,WWW.GWR.COM
OXFORDSHIRE CC,"CHILDRENS, YOUNG PEOPLE AND FAMILIES","	FAMILY SUPPORT CITY3",OTHER TRANSPORT ARRANGEMENTS,23/09/2019,000006618484796,6.80,WWW.GWR.COM
OXFORDSHIRE CC,"CHILDRENS, YOUNG PEOPLE AND FAMILIES","	FAMILY SUPPORT CITY3",OTHER TRANSPORT ARRANGEMENTS,23/09/2019,000006618484798,6.80,WWW.GWR.COM
OXFORDSHIRE CC,"CHILDRENS, YOUNG PEOPLE AND FAMILIES","	FAMILY SUPPORT CITY3",OTHER TRANSPORT ARRANGEMENTS,23/09/2019,000006618484800,6.80,WWW.GWR.COM
OXFORDSHIRE CC,"CHILDRENS, YOUNG PEOPLE AND FAMILIES","	FAMILY SUPPORT CITY3",OTHER TRANSPORT ARRANGEMENTS,23/09/2019,000006618484802,6.80,WWW.GWR.COM
OXFORDSHIRE CC,"CHILDRENS, YOUNG PEOPLE AND FAMILIES","	FAMILY SUPPORT CITY3",OTHER TRANSPORT ARRANGEMENTS,23/09/2019,000006618484790,6.80,WWW.GWR.COM
OXFORDSHIRE CC,"CHILDRENS, YOUNG PEOPLE AND FAMILIES",FAMILY SUPPORT 2,PAYMENTS TO TRANSPORT OPERATORS,16/09/2019,000006586223934,6.80,WWW.GWR.COM
OXFORDSHIRE CC,"CHILDRENS, YOUNG PEOPLE AND FAMILIES","	FAMILY SUPPORT CITY3",OTHER TRANSPORT ARRANGEMENTS,16/09/2019,000006586223694,6.80,WWW.GWR.COM
OXFORDSHIRE CC,"CHILDRENS, YOUNG PEOPLE AND FAMILIES","	FAMILY SUPPORT CITY3",OTHER TRANSPORT ARRANGEMENTS,16/09/2019,000006586223696,6.80,WWW.GWR.COM
OXFORDSHIRE CC,"CHILDRENS, YOUNG PEOPLE AND FAMILIES","	FAMILY SUPPORT CITY3",OTHER TRANSPORT ARRANGEMENTS,16/09/2019,000006586223698,6.80,WWW.GWR.COM
OXFORDSHIRE CC,"CHILDRENS, YOUNG PEOPLE AND FAMILIES","	FAMILY SUPPORT CITY3",OTHER TRANSPORT ARRANGEMENTS,16/09/2019,000006586223700,6.80,WWW.GWR.COM
OXFORDSHIRE CC,"CHILDRENS, YOUNG PEOPLE AND FAMILIES","	FAMILY SUPPORT CITY3",OTHER TRANSPORT ARRANGEMENTS,16/09/2019,000006586223704,6.80,WWW.GWR.COM
OXFORDSHIRE CC,"CHILDRENS, YOUNG PEOPLE AND FAMILIES","	FAMILY SUPPORT CITY3",OTHER TRANSPORT ARRANGEMENTS,16/09/2019,000006586223706,6.80,WWW.GWR.COM
OXFORDSHIRE CC,"CHILDRENS, YOUNG PEOPLE AND FAMILIES","	FAMILY SUPPORT CITY3",OTHER TRANSPORT ARRANGEMENTS,16/09/2019,000006586223714,6.80,WWW.GWR.COM
OXFORDSHIRE CC,"CHILDRENS, YOUNG PEOPLE AND FAMILIES",NTH EARLY HELP-BCSTR,PAYMENTS TO TRANSPORT OPERATORS,12/09/2019,000008810412157,6.80,WWW.GWR.COM
OXFORDSHIRE CC,"CHILDRENS, YOUNG PEOPLE AND FAMILIES","	LOOKED AFTER CITY 2",OTHER TRANSPORT ARRANGEMENTS,12/09/2019,000008810412307,6.80,APCOA CONNECT - FGW
OXFORDSHIRE CC,"CHILDRENS, YOUNG PEOPLE AND FAMILIES","	LEAVING CARE NORTH",OTHER TRANSPORT ARRANGEMENTS,12/09/2019,000008810412611,6.80,BANBURY SSTP
OXFORDSHIRE CC,"CHILDRENS, YOUNG PEOPLE AND FAMILIES",FAMILY SUPPORT 2,PAYMENTS TO TRANSPORT OPERATORS,11/09/2019,000008804871403,6.80,WWW.GWR.COM
OXFORDSHIRE CC,"CHILDRENS, YOUNG PEOPLE AND FAMILIES","	PLACEMENT DUTY TEAM",PAYMENTS TO TRANSPORT OPERATORS,10/09/2019,000008800226481,6.80,BANBURY STATION T/O
OXFORDSHIRE CC,"CHILDRENS, YOUNG PEOPLE AND FAMILIES","	FAMILY SUPPORT CITY3",OTHER TRANSPORT ARRANGEMENTS,10/09/2019,000008800226493,6.80,WWW.GWR.COM
OXFORDSHIRE CC,"CHILDRENS, YOUNG PEOPLE AND FAMILIES","	FAMILY SUPPORT CITY3",OTHER TRANSPORT ARRANGEMENTS,10/09/2019,000008800226495,6.80,WWW.GWR.COM
OXFORDSHIRE CC,"CHILDRENS, YOUNG PEOPLE AND FAMILIES","	FAMILY SUPPORT CITY3",OTHER TRANSPORT ARRANGEMENTS,10/09/2019,000008800226499,6.80,WWW.GWR.COM
OXFORDSHIRE CC,"CHILDRENS, YOUNG PEOPLE AND FAMILIES","	FAMILY SUPPORT CITY3",OTHER TRANSPORT ARRANGEMENTS,10/09/2019,000008800226503,6.80,WWW.GWR.COM
OXFORDSHIRE CC,"CHILDRENS, YOUNG PEOPLE AND FAMILIES","	FAMILY SUPPORT CITY3",OTHER TRANSPORT ARRANGEMENTS,10/09/2019,000008800226505,6.80,WWW.GWR.COM
OXFORDSHIRE CC,"CHILDRENS, YOUNG PEOPLE AND FAMILIES","	PLACEMENT DUTY TEAM",PAYMENTS TO TRANSPORT OPERATORS,09/09/2019,000008792609515,6.80,BANBURY STATION T/O
OXFORDSHIRE CC,"CHILDRENS, YOUNG PEOPLE AND FAMILIES","	FAMILY SUPPORT CITY3",OTHER TRANSPORT ARRANGEMENTS,09/09/2019,000008792609517,6.80,WWW.GWR.COM
OXFORDSHIRE CC,"CHILDRENS, YOUNG PEOPLE AND FAMILIES","	FAMILY SUPPORT CITY3",OTHER TRANSPORT ARRANGEMENTS,09/09/2019,000008792609519,6.80,WWW.GWR.COM
OXFORDSHIRE CC,"CHILDRENS, YOUNG PEOPLE AND FAMILIES",NTH EARLY HELP-BCSTR,PAYMENTS TO TRANSPORT OPERATORS,03/09/2019,000008773367549,6.80,WWW.GWR.COM
OXFORDSHIRE CC,"CHILDRENS, YOUNG PEOPLE AND FAMILIES","	FAMILY SUPPORT CITY3",PAYMENTS TO TRANSPORT OPERATORS,02/09/2019,000008766709605,6.80,WWW.GWR.COM
OXFORDSHIRE CC,"CHILDRENS, YOUNG PEOPLE AND FAMILIES","	FAMILY SUPPORT CITY3",PAYMENTS TO TRANSPORT OPERATORS,02/09/2019,000008766709607,6.80,WWW.GWR.COM
OXFORDSHIRE CC,"CHILDRENS, YOUNG PEOPLE AND FAMILIES","	FAMILY SUPPORT CITY3",PAYMENTS TO TRANSPORT OPERATORS,02/09/2019,000008766709609,6.80,WWW.GWR.COM
OXFORDSHIRE CC,"CHILDRENS, YOUNG PEOPLE AND FAMILIES","	FAMILY SUPPORT CITY3",PAYMENTS TO TRANSPORT OPERATORS,02/09/2019,000008766709611,6.80,WWW.GWR.COM
OXFORDSHIRE CC,"CHILDRENS, YOUNG PEOPLE AND FAMILIES","	FAMILY SUPPORT CITY3",PAYMENTS TO TRANSPORT OPERATORS,02/09/2019,000008766709613,6.80,WWW.GWR.COM
OXFORDSHIRE CC,"CHILDRENS, YOUNG PEOPLE AND FAMILIES","	FAMILY SUPPORT CITY3",PAYMENTS TO TRANSPORT OPERATORS,02/09/2019,000008766709615,6.80,WWW.GWR.COM
OXFORDSHIRE CC,"CHILDRENS, YOUNG PEOPLE AND FAMILIES","	FAMILY SUPPORT CITY3",PAYMENTS TO TRANSPORT OPERATORS,02/09/2019,000008766709617,6.80,WWW.GWR.COM
OXFORDSHIRE CC,"CHILDRENS, YOUNG PEOPLE AND FAMILIES",WITNEY,CATERING PROVISIONS,30/08/2019,000008759617905,6.80,SAINSBURYS SACAT 0632
OXFORDSHIRE CC,SOCIAL AND COMMUNITY SERVICES,LOOKED AFTER NORTH,CATERING,16/09/2019,000006586223168,6.98,ROADCHEF M SERV UPAY L
OXFORDSHIRE CC,"CHILDRENS, YOUNG PEOPLE AND FAMILIES","	40 THE MOORS",HARDWARE AND CROCKERY,29/08/2019,000008754026005,6.98,OXFORD BUILDING SUPPLI
OXFORDSHIRE CC,"CHILDRENS, YOUNG PEOPLE AND FAMILIES",EYNSHAM,CATERING PROVISIONS,25/09/2019,000006631084210,6.99,TESCO DELIVERY SAVER1
OXFORDSHIRE CC,SOCIAL AND COMMUNITY SERVICES,ADULT SERVICES IMPROVEMENT BOARD,MATERIALS,19/09/2019,000006604610788,7.00,B&M RETAIL
OXFORDSHIRE CC,SOCIAL AND COMMUNITY SERVICES,WITNEY MOVE ON HOME,CATERING,16/09/2019,000006586223330,7.00,THE SHAKE SHOP
OXFORDSHIRE CC,"CHILDRENS, YOUNG PEOPLE AND FAMILIES","	LEAVING CARE NORTH",OTHER TRANSPORT ARRANGEMENTS,09/09/2019,000008792609469,7.00,WESTGATE OXFORD CAR PA
OXFORDSHIRE CC,"CHILDRENS, YOUNG PEOPLE AND FAMILIES",EYNSHAM,DAY ACTIVITIES,02/09/2019,000008766709209,7.00,CO-OPERATIVE FOOD
OXFORDSHIRE CC,"CHILDRENS, YOUNG PEOPLE AND FAMILIES","	RESIDENTIAL STRATEGY",CATERING PROVISIONS,12/09/2019,000008810411969,7.10,SAINSBURYS SACAT 0631
OXFORDSHIRE CC,SOCIAL AND COMMUNITY SERVICES,RESIDENTIAL STRATEGY,CATERING PROVISIONS,04/09/2019,000008776303961,7.10,TESCO STORE 2788
OXFORDSHIRE CC,"CHILDRENS, YOUNG PEOPLE AND FAMILIES",THAME E&A HOME,CATERING,24/09/2019,000006626493112,7.18,FRANKIE & BENNYS 5389
OXFORDSHIRE CC,"CHILDRENS, YOUNG PEOPLE AND FAMILIES",DIDCOT MOVE-ON HOME,CATERING PROVISIONS,04/09/2019,000008776304015,7.18,ICELAND
OXFORDSHIRE CC,"CHILDRENS, YOUNG PEOPLE AND FAMILIES","	40 THE MOORS",CATERING,02/09/2019,000008766709449,7.18,MCDONALDS
OXFORDSHIRE CC,"CHILDRENS, YOUNG PEOPLE AND FAMILIES","	FAMILY SUPPORT CITY3",CATERING PROVISIONS,06/09/2019,000008785348959,7.24,TESCO STORE 2788
OXFORDSHIRE CC,"CHILDRENS, YOUNG PEOPLE AND FAMILIES","	LOOKED AFTER NORTH",CATERING PROVISIONS,25/09/2019,000006631083850,7.25,STARBUCKS NEWBURY
OXFORDSHIRE CC,"CHILDRENS, YOUNG PEOPLE AND FAMILIES","	RESIDENTIAL STRATEGY",CATERING,16/09/2019,000006586223242,7.30,MCDONALDS
OXFORDSHIRE CC,SOCIAL AND COMMUNITY SERVICES,CSS WITNEY,VEHICLE FUEL,13/09/2019,000008816587547,7.30,TESCO PFS 3418
OXFORDSHIRE CC,"CHILDRENS, YOUNG PEOPLE AND FAMILIES",THAME E&A HOME,CATERING,29/08/2019,000008754025911,7.30,STARBUCKS COFFEE
OXFORDSHIRE CC,"CHILDRENS, YOUNG PEOPLE AND FAMILIES",NORTH FSS- BANBURY,REGISTRATION AND INSPECTION FEES,20/09/2019,000006610418316,7.40,PAYPAL  ROYAL MAIL
OXFORDSHIRE CC,"CHILDRENS, YOUNG PEOPLE AND FAMILIES",THAME E&A HOME,VEHICLE FUEL,16/09/2019,000006586223402,7.46,THAME BP SF CONNECT
OXFORDSHIRE CC,"CHILDRENS, YOUNG PEOPLE AND FAMILIES",NTH EARLY HELP-BCSTR,PAYMENTS TO TRANSPORT OPERATORS,23/09/2019,000006618484654,7.50,WWW.GWR.COM
OXFORDSHIRE CC,"CHILDRENS, YOUNG PEOPLE AND FAMILIES",EYNSHAM,CATERING PROVISIONS,12/09/2019,000008810412051,7.50,SAINSBURYS SACAT 0632
OXFORDSHIRE CC,"CHILDRENS, YOUNG PEOPLE AND FAMILIES","	LEAVING CARE NORTH",OTHER EXPENSES,12/09/2019,000008810412203,7.50,OXFORD W H SMITH
OXFORDSHIRE CC,"CHILDRENS, YOUNG PEOPLE AND FAMILIES",DIDCOT MOVE-ON HOME,PAYMENTS TO TRANSPORT OPERATORS,10/09/2019,000008800226589,7.50,GWR DIDCOT PKWY TO
OXFORDSHIRE CC,"CHILDRENS, YOUNG PEOPLE AND FAMILIES",MEMBERS ALLOWANCES,CATERING PROVISIONS,05/09/2019,000008780513577,7.50,WAITROSE 874
OXFORDSHIRE CC,"CHILDRENS, YOUNG PEOPLE AND FAMILIES",WITNEY,CATERING PROVISIONS,02/09/2019,000008766709223,7.55,CO-OP GROUP 070582
OXFORDSHIRE CC,SOCIAL AND COMMUNITY SERVICES,CSS BICESTER,CATERING PROVISIONS,17/09/2019,000006594363410,7.60,SAINSBURYS SACAT (2243
OXFORDSHIRE CC,"CHILDRENS, YOUNG PEOPLE AND FAMILIES","	40 THE MOORS",CATERING PROVISIONS,30/08/2019,000008759618041,7.60,TESCO STORE 2788
OXFORDSHIRE CC,"CHILDRENS, YOUNG PEOPLE AND FAMILIES","	RIVERSIDE CENTRE",CATERING PROVISIONS,03/09/2019,000008773367639,7.63,TESCO STORES 4377
OXFORDSHIRE CC,"CHILDRENS, YOUNG PEOPLE AND FAMILIES",THAME E&A HOME,CATERING,30/08/2019,000008759617897,7.64,GREGGS
OXFORDSHIRE CC,"CHILDRENS, YOUNG PEOPLE AND FAMILIES",DIDCOT MOVE-ON HOME,CATERING PROVISIONS,06/09/2019,000008785349061,7.65,SAINSBURYS SACAT 2067
OXFORDSHIRE CC,"CHILDRENS, YOUNG PEOPLE AND FAMILIES",WITNEY,CATERING PROVISIONS,02/09/2019,000008766709217,7.67,LIDL GB  WITNEY
OXFORDSHIRE CC,"CHILDRENS, YOUNG PEOPLE AND FAMILIES","	LEAVING CARE NORTH",OTHER EXPENSES,18/09/2019,000006598637278,7.75,STARBUCKS COFFEE
OXFORDSHIRE CC,"CHILDRENS, YOUNG PEOPLE AND FAMILIES","	FAMILY SUPPORT CITY3",CATERING PROVISIONS,20/09/2019,000006610418148,7.79,PPOINT_ CHALGROVE CONV
OXFORDSHIRE CC,ENVIRONMENT AND ECONOMY,SIP MANAGEMENT,CATERING PROVISIONS,19/09/2019,000006604611012,7.89,MARKS&SPENCER PLC
OXFORDSHIRE CC,"CHILDRENS, YOUNG PEOPLE AND FAMILIES",THAME E&A HOME,CATERING,23/09/2019,000006618484616,7.90,CAMARAS CAFE & BAKERY
OXFORDSHIRE CC,"CHILDRENS, YOUNG PEOPLE AND FAMILIES",WITNEY,CATERING PROVISIONS,16/09/2019,000006586223264,7.90,SAINSBURYS SACAT 0632
OXFORDSHIRE CC,"CHILDRENS, YOUNG PEOPLE AND FAMILIES",THAME E&A HOME,VEHICLE FUEL,29/08/2019,000008754025891,7.92,ESSO THAME SERVICE ARE
OXFORDSHIRE CC,"CHILDRENS, YOUNG PEOPLE AND FAMILIES","	LOOKED AFTER SOUTH",CATERING,12/09/2019,000008810412563,7.95,MCDONALDS
OXFORDSHIRE CC,SOCIAL AND COMMUNITY SERVICES,CSS - OXFORD,MATERIALS,27/09/2019,000006643215714,7.99,AMAZON PRIME MA23U7YU4
OXFORDSHIRE CC,"CHILDRENS, YOUNG PEOPLE AND FAMILIES",CNTL EARLY HELP-RHIL,MATERIALS,23/09/2019,000006618484878,7.99,AMAZON PRIME MA8OC27J4
OXFORDSHIRE CC,ENVIRONMENT AND ECONOMY,HOME LIBRARY SERVICE,MATERIALS,17/09/2019,000006594363738,7.99,AMAZON.CO.UK MA7454D44
OXFORDSHIRE CC,SOCIAL AND COMMUNITY SERVICES,CSS - OXFORD,MATERIALS,16/09/2019,000006586223566,7.99,AMAZON PRIME MA7N23QG4
OXFORDSHIRE CC,"CHILDRENS, YOUNG PEOPLE AND FAMILIES","	LOOKED AFTER CITY 1",MATERIALS,16/09/2019,000006586223434,7.99,AMAZON PRIME MA4VP1QR4
OXFORDSHIRE CC,SOCIAL AND COMMUNITY SERVICES,CSS - OXFORD,MATERIALS,16/09/2019,000006586223280,7.99,AMAZON PRIME MA2N36QM4
OXFORDSHIRE CC,"CHILDRENS, YOUNG PEOPLE AND FAMILIES","	40 THE MOORS",MATERIALS,02/09/2019,000008766709517,7.99,AMAZON PRIME MA1BO8E44
OXFORDSHIRE CC,ENVIRONMENT AND ECONOMY,HARD FM,FURNITURE,25/09/2019,000006631083868,8.00,YOU NEED BLINDS
OXFORDSHIRE CC,"CHILDRENS, YOUNG PEOPLE AND FAMILIES","	LOOKED AFTER SOUTH",OTHER TRANSPORT ARRANGEMENTS,24/09/2019,000006626493386,8.00,3C_ ECP - BRITANNIA IN
OXFORDSHIRE CC,"CHILDRENS, YOUNG PEOPLE AND FAMILIES",CNTL ERLY HELP-BBLEY,MATERIALS,24/09/2019,000006626493124,8.00,THEWORKS.CO.UK
OXFORDSHIRE CC,"CHILDRENS, YOUNG PEOPLE AND FAMILIES",UASC 16&17,PAYMENT TO GOVERNMENT DEPARTMENTS,19/09/2019,000006604610828,8.00,READING BOROUGH COUNCI
OXFORDSHIRE CC,"CHILDRENS, YOUNG PEOPLE AND FAMILIES","	LEAVING CARE NORTH",BIRTHDAY ALLOWANCE,04/09/2019,000008776304257,8.00,WM MORRISONS STORE
OXFORDSHIRE CC,"CHILDRENS, YOUNG PEOPLE AND FAMILIES",HOUSE PROJECT,CATERING,04/09/2019,000008776304243,8.00,THE JAM FACTORY OXFORD
OXFORDSHIRE CC,"CHILDRENS, YOUNG PEOPLE AND FAMILIES","	LOOKED AFTER SOUTH",SUBSCRIPTIONS,29/08/2019,000008754026053,8.00,RUSHDEN GOLD RANGE
OXFORDSHIRE CC,SOCIAL AND COMMUNITY SERVICES,CSS - ABINGDON,CATERING PROVISIONS,13/09/2019,000008816587559,8.05,TESCO STORES 6519
OXFORDSHIRE CC,"CHILDRENS, YOUNG PEOPLE AND FAMILIES",THAME E&A HOME,SUBSCRIPTIONS,09/09/2019,000008792609219,8.05,AMF BOWLING
OXFORDSHIRE CC,SOCIAL AND COMMUNITY SERVICES,CSS - OXFORD,CATERING PROVISIONS,10/09/2019,000008800225811,8.07,ALDI STORES 775-142
OXFORDSHIRE CC,"CHILDRENS, YOUNG PEOPLE AND FAMILIES","	LOOKED AFTER NORTH",CATERING,05/09/2019,000008780513503,8.08,MCDONALDS
OXFORDSHIRE CC,"CHILDRENS, YOUNG PEOPLE AND FAMILIES","	PARENT PARTNERSHIP",CATERING PROVISIONS,25/09/2019,000006631084086,8.10,M&S SIMPLY FOOD - SSP
OXFORDSHIRE CC,"CHILDRENS, YOUNG PEOPLE AND FAMILIES",EYNSHAM,CATERING,16/09/2019,000006586223186,8.14,CO-OPERATIVE FOOD
OXFORDSHIRE CC,"CHILDRENS, YOUNG PEOPLE AND FAMILIES","	LOOKED AFTER SOUTH",CATERING,06/09/2019,000008785349109,8.19,BURGER KING
OXFORDSHIRE CC,SOCIAL AND COMMUNITY SERVICES,ADULT SERVICES IMPROVEMENT BOARD,CATERING PROVISIONS,20/09/2019,000006610418258,8.20,WAITROSE 211
OXFORDSHIRE CC,"CHILDRENS, YOUNG PEOPLE AND FAMILIES",UASC 16&17,MATERIALS,03/09/2019,000008773367447,8.20,WILKO RETAIL LIMIT
OXFORDSHIRE CC,"CHILDRENS, YOUNG PEOPLE AND FAMILIES",THAME E&A HOME,VEHICLE FUEL,13/09/2019,000008816587593,8.30,BP OXFORD SERVICE AREA
OXFORDSHIRE CC,SOCIAL AND COMMUNITY SERVICES,DIDCOT MOVE-ON HOME,CATERING,23/09/2019,000006618484576,8.35,COSTA COFFEE 43036780
OXFORDSHIRE CC,"CHILDRENS, YOUNG PEOPLE AND FAMILIES",THAME E&A HOME,CATERING PROVISIONS,09/09/2019,000008792609245,8.37,PPOINT_ OXFORD CONVENI
OXFORDSHIRE CC,SOCIAL AND COMMUNITY SERVICES,CSS - OXFORD,CATERING PROVISIONS,29/08/2019,000008754025941,8.40,ALDI STORES 775-142
OXFORDSHIRE CC,"CHILDRENS, YOUNG PEOPLE AND FAMILIES","	LOOKED AFTER NORTH",CATERING,29/08/2019,000008754026035,8.45,NANDOS BEACONSFIELD
OXFORDSHIRE CC,ENVIRONMENT AND ECONOMY,"	TVERC",IT SOFTWARE,02/09/2019,000008766709551,8.46,COGNITO-PRO
OXFORDSHIRE CC,SOCIAL AND COMMUNITY SERVICES,CSS WITNEY,MATERIALS,11/09/2019,000008804871293,8.48,AMZNMKTPLACE
OXFORDSHIRE CC,"CHILDRENS, YOUNG PEOPLE AND FAMILIES","	LOOKED AFTER NORTH",CATERING,04/09/2019,000008776303927,8.48,MCDONALDS 405
OXFORDSHIRE CC,ENVIRONMENT AND ECONOMY,WOODSTOCK LIBRARY,CATERING PROVISIONS,18/09/2019,000006598637666,8.50,MARKS&SPENCER PLC SACA
OXFORDSHIRE CC,CORPORATE CORE,REGISTRAR,PAYMENTS TO TRANSPORT OPERATORS,04/09/2019,000008776304169,8.50,BANBURY SSTP
OXFORDSHIRE CC,ENVIRONMENT AND ECONOMY,"	DRAINAGE REPAIRS",OTHER TRANSPORT ARRANGEMENTS,29/08/2019,000008754026057,8.50,CHILTERN RAIL RINGGO
OXFORDSHIRE CC,"CHILDRENS, YOUNG PEOPLE AND FAMILIES",DIDCOT MOVE-ON HOME,CATERING PROVISIONS,11/09/2019,000008804871349,8.58,ALDI 99 775
OXFORDSHIRE CC,SOCIAL AND COMMUNITY SERVICES,"	SHARED LIVES",CATERING PROVISIONS,09/09/2019,000008792609621,8.64,WAITROSE 211
OXFORDSHIRE CC,"CHILDRENS, YOUNG PEOPLE AND FAMILIES","	AAC EQUIPMENT",POSTAGE AND DELIVERY,24/09/2019,000006626493166,8.70,POSTOFFICE SELFSERVICE
OXFORDSHIRE CC,"CHILDRENS, YOUNG PEOPLE AND FAMILIES",NTH EARLY HELP-BCSTR,PAYMENTS TO TRANSPORT OPERATORS,13/09/2019,000008816587675,8.70,WWW.GWR.COM
OXFORDSHIRE CC,SOCIAL AND COMMUNITY SERVICES,SERVICE IMPROVEMENT,CATERING PROVISIONS,11/09/2019,000008804871137,8.73,TESCO STORES 2008
OXFORDSHIRE CC,"CHILDRENS, YOUNG PEOPLE AND FAMILIES",THAME E&A HOME,SUBSCRIPTIONS,16/09/2019,000006586223396,8.80,AQUA VALE SWIMMING
OXFORDSHIRE CC,"CHILDRENS, YOUNG PEOPLE AND FAMILIES",DIDCOT MOVE-ON HOME,CATERING,12/09/2019,000008810412511,8.80,MCDONALDS
OXFORDSHIRE CC,"CHILDRENS, YOUNG PEOPLE AND FAMILIES",THAME E&A HOME,ENTERTAINMENT EXPENSES,10/09/2019,000008800225945,8.80,BICESTER LEISURE CENTR
OXFORDSHIRE CC,"CHILDRENS, YOUNG PEOPLE AND FAMILIES",HOUSE PROJECT,OTHER TRANSPORT ARRANGEMENTS,02/09/2019,000008766709357,8.80,RINGGO
OXFORDSHIRE CC,SOCIAL AND COMMUNITY SERVICES,CSS WANTAGE,CATERING PROVISIONS,05/09/2019,000008780513243,8.86,TESCO STORE 2413
OXFORDSHIRE CC,"CHILDRENS, YOUNG PEOPLE AND FAMILIES","	RIVERSIDE CENTRE",CATERING PROVISIONS,30/08/2019,000008759617995,8.87,CO-OPERATIVE FOOD
OXFORDSHIRE CC,"CHILDRENS, YOUNG PEOPLE AND FAMILIES","	LOOKED AFTER CITY 2",OTHER TRANSPORT ARRANGEMENTS,16/09/2019,000006586223578,8.90,RINGGO
OXFORDSHIRE CC,SOCIAL AND COMMUNITY SERVICES,DIDCOT MOVE-ON HOME,CATERING,09/09/2019,000008792609259,8.90,DELIGHT 2
OXFORDSHIRE CC,"CHILDRENS, YOUNG PEOPLE AND FAMILIES",HOUSE PROJECT,OTHER TRANSPORT ARRANGEMENTS,02/09/2019,000008766709567,8.90,RINGGO
OXFORDSHIRE CC,SOCIAL AND COMMUNITY SERVICES,LEAVING CARE NORTH,"SUPPLIES, STATIONERY AND MATERIALS",05/09/2019,000008780514641,8.92,EB  LIFE STORY WORK FO
OXFORDSHIRE CC,"CHILDRENS, YOUNG PEOPLE AND FAMILIES","	40 THE MOORS",CATERING,10/09/2019,000008800226559,8.99,MCDONALDS
OXFORDSHIRE CC,"CHILDRENS, YOUNG PEOPLE AND FAMILIES",DIDCOT MOVE-ON HOME,CATERING PROVISIONS,23/09/2019,000006618484624,9.00,LLOYDS AT SAINSBURYS
OXFORDSHIRE CC,"CHILDRENS, YOUNG PEOPLE AND FAMILIES","	RIVERSIDE CENTRE",CATERING PROVISIONS,18/09/2019,000006598638056,9.00,TESCO STORE 2124
OXFORDSHIRE CC,"CHILDRENS, YOUNG PEOPLE AND FAMILIES","	40 THE MOORS",OTHER TRANSPORT ARRANGEMENTS,11/09/2019,000008804871323,9.00,WORCESTER STREET CAR P
OXFORDSHIRE CC,"CHILDRENS, YOUNG PEOPLE AND FAMILIES",THAME E&A HOME,CATERING PROVISIONS,09/09/2019,000008792609193,9.00,SAINSBURYS 2096
OXFORDSHIRE CC,"CHILDRENS, YOUNG PEOPLE AND FAMILIES","	LEAVING CARE NORTH",CATERING PROVISIONS,02/09/2019,000008766709437,9.02,WM MORRISONS STORE
OXFORDSHIRE CC,SOCIAL AND COMMUNITY SERVICES,DIDOCT LIBRARY,MATERIALS,19/09/2019,000006604611000,9.05,POUNDLAND LTD
OXFORDSHIRE CC,SOCIAL AND COMMUNITY SERVICES,CSS WANTAGE,CATERING PROVISIONS,06/09/2019,000008785349225,9.05,SAINSBURYS SACAT 2244
OXFORDSHIRE CC,"CHILDRENS, YOUNG PEOPLE AND FAMILIES",WITNEY,MATERIALS,16/09/2019,000006586223196,9.19,AMZNMKTPLACE
OXFORDSHIRE CC,"CHILDRENS, YOUNG PEOPLE AND FAMILIES",DIDCOT MOVE-ON HOME,CATERING PROVISIONS,25/09/2019,000006631083912,9.20,SAINSBURYS SACAT 2067
OXFORDSHIRE CC,"CHILDRENS, YOUNG PEOPLE AND FAMILIES","	MALTFIELD HOUSE",ENTERTAINMENT EXPENSES,17/09/2019,000006594363650,9.20,HOLLYWOOD BOWL
OXFORDSHIRE CC,"CHILDRENS, YOUNG PEOPLE AND FAMILIES",THAME E&A HOME,CATERING PROVISIONS,03/09/2019,000008773367427,9.20,SAINSBURYS SACAT 0632
OXFORDSHIRE CC,SOCIAL AND COMMUNITY SERVICES,CSS - OXFORD,"SUPPLIES, STATIONERY AND MATERIALS",05/09/2019,000008780514393,9.22,LYRECO UK LTD
OXFORDSHIRE CC,ENVIRONMENT AND ECONOMY,"	NAT TRAILS GENERAL",CATERING PROVISIONS,16/09/2019,000006586223232,9.24,CO-OPERATIVE FOOD
OXFORDSHIRE CC,"CHILDRENS, YOUNG PEOPLE AND FAMILIES",CNTL ERLY HELP-BBLEY,CATERING PROVISIONS,29/08/2019,000008754025919,9.24,LIDL GB OXFORD
OXFORDSHIRE CC,"CHILDRENS, YOUNG PEOPLE AND FAMILIES",THAME E&A HOME,CATERING,23/09/2019,000006618484736,9.28,SUBWAY45599
OXFORDSHIRE CC,"CHILDRENS, YOUNG PEOPLE AND FAMILIES",THAME E&A HOME,CATERING PROVISIONS,26/09/2019,000006636681878,9.30,SAINSBURYS SACAT 2096
OXFORDSHIRE CC,"CHILDRENS, YOUNG PEOPLE AND FAMILIES",S&A INTERVENTION GRT,"PUBLICITY, PROMOTIONS AND ADVERTISEMENT",02/09/2019,000008766709495,9.30,FACEBK  5UHS3M2YA2
OXFORDSHIRE CC,SOCIAL AND COMMUNITY SERVICES,SCHOOLS FM,CATERING PROVISIONS,27/09/2019,000006643215582,9.47,UFFINGTON STORES
OXFORDSHIRE CC,"CHILDRENS, YOUNG PEOPLE AND FAMILIES",THAME E&A HOME,MATERIALS,06/09/2019,000008785349025,9.47,B&M RETAIL
OXFORDSHIRE CC,"CHILDRENS, YOUNG PEOPLE AND FAMILIES",DIDCOT MOVE-ON HOME,CATERING PROVISIONS,20/09/2019,000006610418318,9.50,SAINSBURYS SACAT 2067
OXFORDSHIRE CC,"CHILDRENS, YOUNG PEOPLE AND FAMILIES",NORTH FSS- BANBURY,PAYMENTS TO TRANSPORT OPERATORS,19/09/2019,000006604610794,9.50,WWW.GWR.COM
OXFORDSHIRE CC,"CHILDRENS, YOUNG PEOPLE AND FAMILIES",NTH EARLY HELP-BCSTR,PAYMENTS TO TRANSPORT OPERATORS,18/09/2019,000006598637208,9.50,WWW.GWR.COM
OXFORDSHIRE CC,"CHILDRENS, YOUNG PEOPLE AND FAMILIES",ICS ADMIN,PAYMENTS TO TRANSPORT OPERATORS,17/09/2019,000006594363818,9.50,WWW.GWR.COM
OXFORDSHIRE CC,"CHILDRENS, YOUNG PEOPLE AND FAMILIES",ICS ADMIN,PAYMENTS TO TRANSPORT OPERATORS,10/09/2019,000008800226773,9.50,WWW.GWR.COM
OXFORDSHIRE CC,"CHILDRENS, YOUNG PEOPLE AND FAMILIES",ICS ADMIN,PAYMENTS TO TRANSPORT OPERATORS,10/09/2019,000008800226775,9.50,WWW.GWR.COM
OXFORDSHIRE CC,"CHILDRENS, YOUNG PEOPLE AND FAMILIES",ICS ADMIN,PAYMENTS TO TRANSPORT OPERATORS,10/09/2019,000008800226779,9.50,WWW.GWR.COM
OXFORDSHIRE CC,"CHILDRENS, YOUNG PEOPLE AND FAMILIES",ICS ADMIN,PAYMENTS TO TRANSPORT OPERATORS,10/09/2019,000008800226781,9.50,WWW.GWR.COM
OXFORDSHIRE CC,"CHILDRENS, YOUNG PEOPLE AND FAMILIES","	RIVERSIDE CENTRE",CATERING PROVISIONS,02/09/2019,000008766709285,9.50,CO-OPERATIVE FOOD
OXFORDSHIRE CC,"CHILDRENS, YOUNG PEOPLE AND FAMILIES",NTH EARLY HELP-BCSTR,PAYMENTS TO TRANSPORT OPERATORS,18/09/2019,000006598637200,9.60,WWW.GWR.COM
OXFORDSHIRE CC,"CHILDRENS, YOUNG PEOPLE AND FAMILIES",NTH EARLY HELP-BCSTR,PAYMENTS TO TRANSPORT OPERATORS,13/09/2019,000008816587679,9.60,WWW.GWR.COM
OXFORDSHIRE CC,"CHILDRENS, YOUNG PEOPLE AND FAMILIES",EYNSHAM,CATERING,16/09/2019,000006586223184,9.76,CO-OPERATIVE FOOD
OXFORDSHIRE CC,"CHILDRENS, YOUNG PEOPLE AND FAMILIES",THAME E&A HOME,CATERING,09/09/2019,000008792609247,9.78,LEIGH DELAMERE N/E WH
OXFORDSHIRE CC,"CHILDRENS, YOUNG PEOPLE AND FAMILIES","	FPT NORTH",PAYMENTS TO TRANSPORT OPERATORS,26/09/2019,000006636681972,9.80,CHILTERN - MARYLEBONE
OXFORDSHIRE CC,"CHILDRENS, YOUNG PEOPLE AND FAMILIES","	OSCB",PAYMENTS TO TRANSPORT OPERATORS,18/09/2019,000006598636788,9.80,LUL TICKET MACHINE
OXFORDSHIRE CC,"CHILDRENS, YOUNG PEOPLE AND FAMILIES",WITNEY,CATERING PROVISIONS,09/09/2019,000008792609203,9.80,SAINSBURYS SACAT 0632
OXFORDSHIRE CC,ENVIRONMENT AND ECONOMY,HARD FM,EQUIPMENT,09/09/2019,000008792609215,9.81,WILTS ELECTRICAL
OXFORDSHIRE CC,CORPORATE CORE,SCHOOLS FM,CATERING PROVISIONS,04/09/2019,000008776304055,9.90,SAINSBURYS LOC 4264
OXFORDSHIRE CC,"CHILDRENS, YOUNG PEOPLE AND FAMILIES",WITNEY,ENTERTAINMENT EXPENSES,16/09/2019,000006586223266,9.98,VUE CINEMAS
OXFORDSHIRE CC,SOCIAL AND COMMUNITY SERVICES,CSS - OXFORD,MATERIALS,20/09/2019,000006610418454,9.99,AMAZON.CO.UK MA21H6K04
OXFORDSHIRE CC,"CHILDRENS, YOUNG PEOPLE AND FAMILIES",THAME E&A HOME,MATERIALS,16/09/2019,000006586223392,9.99,ARGOS KIDLINGTON INSID
OXFORDSHIRE CC,ENVIRONMENT AND ECONOMY,"	TVERC",IT SERVICES,16/09/2019,000006586223806,9.99,DROPBOX TMYFVP22GKPJ
OXFORDSHIRE CC,ENVIRONMENT AND ECONOMY,ENV & RES EFF STAFF,MATERIALS,13/09/2019,000008816587843,9.99,AMZNMKTPLACE
OXFORDSHIRE CC,"CHILDRENS, YOUNG PEOPLE AND FAMILIES","	LOOKED AFTER SOUTH",CATERING PROVISIONS,20/09/2019,000006610418656,10.00,CO-OPERATIVE FOOD
OXFORDSHIRE CC,ENTERPRISEVC,VOXY,CATERING PROVISIONS,18/09/2019,000006598637004,10.00,SAINSBURYS 0730
OXFORDSHIRE CC,"CHILDRENS, YOUNG PEOPLE AND FAMILIES",0-5 STDS & PROGRESS,PAYMENTS TO VOLUNTARY BODIES,17/09/2019,000006594363756,10.00,WP-THE BRITISH ASS
OXFORDSHIRE CC,"CHILDRENS, YOUNG PEOPLE AND FAMILIES",0-5 STDS & PROGRESS,PAYMENTS TO VOLUNTARY BODIES,17/09/2019,000006594363754,10.00,WP-THE BRITISH ASS
OXFORDSHIRE CC,"CHILDRENS, YOUNG PEOPLE AND FAMILIES","	MALTFIELD HOUSE",MATERIALS,16/09/2019,000006586223188,10.00,SUMUP   ACB GOLF RANGE
OXFORDSHIRE CC,SOCIAL AND COMMUNITY SERVICES,CSS WANTAGE,VEHICLE EQUIPMENT AND EXPENSES - OTHER,12/09/2019,000008810412375,10.00,OXFORDSHIRE CC MOTO1
OXFORDSHIRE CC,SOCIAL AND COMMUNITY SERVICES,CSS - BANBURY,LICENCES,12/09/2019,000008810412445,10.00,OXFORDSHIRE CC MOTO1
OXFORDSHIRE CC,"CHILDRENS, YOUNG PEOPLE AND FAMILIES",UASC 16&17,TELEPHONE - EQUIPMENT,04/09/2019,000008776304099,10.00,CARPHONE WAREHOUSE
OXFORDSHIRE CC,"CHILDRENS, YOUNG PEOPLE AND FAMILIES","	LOOKED AFTER SOUTH",CATERING PROVISIONS,30/08/2019,000008759617901,10.00,TESCO STORES 5054
OXFORDSHIRE CC,SOCIAL AND COMMUNITY SERVICES,"	MTFC",ENTERTAINMENT EXPENSES,30/08/2019,000008759618001,10.00,ODEON
OXFORDSHIRE CC,ENVIRONMENT AND ECONOMY,"	ROW MAINT",EQUIPMENT,25/09/2019,000006631083958,10.04,AMZNMKTPLACE
OXFORDSHIRE CC,SOCIAL AND COMMUNITY SERVICES,DIDCOT MOVE-ON HOME,CATERING PROVISIONS,26/09/2019,000006636681912,10.05,SAINSBURYS 2067
OXFORDSHIRE CC,"CHILDRENS, YOUNG PEOPLE AND FAMILIES",0-5 STDS & PROGRESS,"SUPPLIES, STATIONERY AND MATERIALS",11/09/2019,000008804871355,10.06,AMZNMKTPLACE
OXFORDSHIRE CC,"CHILDRENS, YOUNG PEOPLE AND FAMILIES",DIDCOT MOVE-ON HOME,PAYMENTS TO TRANSPORT OPERATORS,25/09/2019,000006631083914,10.10,GWR DIDCOT PKWY TO
OXFORDSHIRE CC,"CHILDRENS, YOUNG PEOPLE AND FAMILIES",NORTH FSS- BANBURY,PAYMENTS TO TRANSPORT OPERATORS,25/09/2019,000006631083942,10.10,WWW.GWR.COM
OXFORDSHIRE CC,"CHILDRENS, YOUNG PEOPLE AND FAMILIES",DIDCOT MOVE-ON HOME,PAYMENTS TO TRANSPORT OPERATORS,19/09/2019,000006604610976,10.10,GWR DIDCOT PKWY TO
OXFORDSHIRE CC,SOCIAL AND COMMUNITY SERVICES,DIDCOT MOVE-ON HOME,PAYMENTS TO TRANSPORT OPERATORS,02/09/2019,000008766709317,10.10,WWW.GWR.COM
OXFORDSHIRE CC,"CHILDRENS, YOUNG PEOPLE AND FAMILIES","	SM QUALITY ASSURANCE",PAYMENTS TO TRANSPORT OPERATORS,20/09/2019,000006610418190,10.15,TRAINLINE
OXFORDSHIRE CC,"CHILDRENS, YOUNG PEOPLE AND FAMILIES",FAMILY SUPPORT 2,PAYMENTS TO TRANSPORT OPERATORS,16/09/2019,000006586223882,10.15,WWW.GWR.COM
OXFORDSHIRE CC,"CHILDRENS, YOUNG PEOPLE AND FAMILIES",FAMILY SUPPORT 2,PAYMENTS TO TRANSPORT OPERATORS,02/09/2019,000008766709579,10.20,WWW.GWR.COM
OXFORDSHIRE CC,"CHILDRENS, YOUNG PEOPLE AND FAMILIES",FAMILY SUPPORT 2,PAYMENTS TO TRANSPORT OPERATORS,29/08/2019,000008754026065,10.20,WWW.GWR.COM
OXFORDSHIRE CC,"CHILDRENS, YOUNG PEOPLE AND FAMILIES",FAMILY SUPPORT 2,PAYMENTS TO TRANSPORT OPERATORS,29/08/2019,000008754026067,10.20,WWW.GWR.COM
OXFORDSHIRE CC,SOCIAL AND COMMUNITY SERVICES,SERVICE IMPROVEMENT,CATERING PROVISIONS,19/09/2019,000006604610784,10.30,MARKS&SPENCER PLC SF
OXFORDSHIRE CC,"CHILDRENS, YOUNG PEOPLE AND FAMILIES","	LOOKED AFTER CITY 2",HOSPITALITY EXPENSES,18/09/2019,000006598637418,10.30,WHITE HORSE
OXFORDSHIRE CC,ENVIRONMENT AND ECONOMY,HARD FM,HARDWARE AND CROCKERY,06/09/2019,000008785348995,10.44,B & Q 1156
OXFORDSHIRE CC,"CHILDRENS, YOUNG PEOPLE AND FAMILIES",DIDCOT MOVE-ON HOME,CATERING,09/09/2019,000008792609561,10.45,COSTA COFFEE 43044275
OXFORDSHIRE CC,SOCIAL AND COMMUNITY SERVICES,DIDCOT MOVE-ON HOME,CATERING,02/09/2019,000008766709275,10.45,COSTA COFFEE 43044275
OXFORDSHIRE CC,ENVIRONMENT AND ECONOMY,COUNTY LIBRARY,HARDWARE AND CROCKERY,19/09/2019,000006604610768,10.46,JOHN NICHOLLS BICESTER
OXFORDSHIRE CC,"CHILDRENS, YOUNG PEOPLE AND FAMILIES",CNTL EARLY HELP-BRTN,OTHER EXPENSES,24/09/2019,000006626493290,10.48,AMZNMKTPLACE AMAZON.CO
OXFORDSHIRE CC,CORPORATE CORE,ICT OPERATIONS & MAI,MATERIALS,16/09/2019,000006586223844,10.48,AMAZON.CO.UK MA51N2Q44
OXFORDSHIRE CC,"CHILDRENS, YOUNG PEOPLE AND FAMILIES","	LOOKED AFTER CITY 2",CATERING PROVISIONS,19/09/2019,000006604610932,10.50,COSTA KIDLINGTON
OXFORDSHIRE CC,ENVIRONMENT AND ECONOMY,HARD FM,HARDWARE AND CROCKERY,27/09/2019,000006643215382,10.60,WICKES OXFORD
OXFORDSHIRE CC,"CHILDRENS, YOUNG PEOPLE AND FAMILIES","	LOOKED AFTER NORTH",ENTERTAINMENT EXPENSES,09/09/2019,000008792609627,10.60,CINEWORLD
OXFORDSHIRE CC,SOCIAL AND COMMUNITY SERVICES,DIDCOT MOVE-ON HOME,CATERING PROVISIONS,23/09/2019,000006618484642,10.66,SAINSBURYS 2067
OXFORDSHIRE CC,"CHILDRENS, YOUNG PEOPLE AND FAMILIES",UASC 16&17,PAYMENTS TO TRANSPORT OPERATORS,03/09/2019,000008773367521,10.70,BANBURY STATION T/O
OXFORDSHIRE CC,"CHILDRENS, YOUNG PEOPLE AND FAMILIES",THAME E&A HOME,MATERIALS,02/09/2019,000008766709419,10.75,M & S SIMPLY FOOD
OXFORDSHIRE CC,"CHILDRENS, YOUNG PEOPLE AND FAMILIES","	40 THE MOORS",CATERING,02/09/2019,000008766709523,10.78,MCDONALDS
OXFORDSHIRE CC,"CHILDRENS, YOUNG PEOPLE AND FAMILIES",THAME E&A HOME,VEHICLE FUEL,29/08/2019,000008754025889,10.84,THAME BP SF CONNECT
OXFORDSHIRE CC,"CHILDRENS, YOUNG PEOPLE AND FAMILIES",DIDCOT MOVE-ON HOME,CATERING PROVISIONS,23/09/2019,000006618484628,10.85,SAINSBURYS SACAT 2067
OXFORDSHIRE CC,ENVIRONMENT AND ECONOMY,HARD FM,HARDWARE AND CROCKERY,03/09/2019,000008773367453,10.86,SCREWFIX OXFORD
OXFORDSHIRE CC,ENVIRONMENT AND ECONOMY,HARD FM,HARDWARE AND CROCKERY,05/09/2019,000008780513625,10.87,SCREWFIX OXFORD
OXFORDSHIRE CC,"CHILDRENS, YOUNG PEOPLE AND FAMILIES",THAME E&A HOME,CATERING PROVISIONS,16/09/2019,000006586223360,10.88,CO-OPERATIVE FOOD
OXFORDSHIRE CC,SOCIAL AND COMMUNITY SERVICES,CSS - ABINGDON,CATERING PROVISIONS,27/09/2019,000006643215258,10.92,TESCO STORES 6519
OXFORDSHIRE CC,"CHILDRENS, YOUNG PEOPLE AND FAMILIES","	LEAVING CARE CITY 1",POSTAGE AND DELIVERY,02/09/2019,000008766709315,10.92,POST OFFICE COUNTER
OXFORDSHIRE CC,"CHILDRENS, YOUNG PEOPLE AND FAMILIES","	LOOKED AFTER SOUTH",POSTAGE AND DELIVERY,02/09/2019,000008766709585,10.92,POST OFFICE COUNTER
OXFORDSHIRE CC,"CHILDRENS, YOUNG PEOPLE AND FAMILIES","	40 THE MOORS",CATERING,10/09/2019,000008800226287,10.95,MCDONALDS
OXFORDSHIRE CC,SOCIAL AND COMMUNITY SERVICES,CSS - DIDCOT,"SUPPLIES, STATIONERY AND MATERIALS",10/09/2019,000008800225673,10.97,ROOT ONE LIMITED
OXFORDSHIRE CC,"CHILDRENS, YOUNG PEOPLE AND FAMILIES",THAME E&A HOME,MATERIALS,12/09/2019,000008810412057,10.98,B&M RETAIL
OXFORDSHIRE CC,"CHILDRENS, YOUNG PEOPLE AND FAMILIES","	LEAVING CARE NORTH",CATERING PROVISIONS,12/09/2019,000008810412205,10.99,WELCOME BREAK OXFORD N
OXFORDSHIRE CC,ENVIRONMENT AND ECONOMY,HARD FM,HARDWARE AND CROCKERY,10/09/2019,000008800225753,10.99,SCREWFIX OXFORD
OXFORDSHIRE CC,"CHILDRENS, YOUNG PEOPLE AND FAMILIES","	LOOKED AFTER CITY 1",EDUCATIONAL AND VOCATIONAL TRAINING ,27/09/2019,000006643215626,11.00,OXFORDSHIRE CC MOTO1
OXFORDSHIRE CC,"CHILDRENS, YOUNG PEOPLE AND FAMILIES","	FAMILY SUPPORT CITY3",OTHER TRANSPORT ARRANGEMENTS,27/09/2019,000006643215230,11.00,WESTGATE OXFORD CAR PA
OXFORDSHIRE CC,"CHILDRENS, YOUNG PEOPLE AND FAMILIES","	RIVERSIDE CENTRE",MATERIALS,20/09/2019,000006610418266,11.00,HOBBYCRAFT
OXFORDSHIRE CC,"CHILDRENS, YOUNG PEOPLE AND FAMILIES",NTH EARLY HELP-BCSTR,EDUCATIONAL AND VOCATIONAL TRAINING ,20/09/2019,000006610418366,11.00,OXFORDSHIRE CC MOTO1
OXFORDSHIRE CC,CORPORATE CORE,"	LEGAL SERVICES",LEGAL COSTS,11/09/2019,000008804871255,11.00,OXFORDSHIRE CC MOTO1
OXFORDSHIRE CC,ENVIRONMENT AND ECONOMY,HARD FM,HARDWARE AND CROCKERY,09/09/2019,000008792609213,11.00,WICKES OXFORD
OXFORDSHIRE CC,"CHILDRENS, YOUNG PEOPLE AND FAMILIES","	LOOKED AFTER SOUTH",EDUCATIONAL AND VOCATIONAL TRAINING ,09/09/2019,000008792609629,11.00,OXFORDSHIRE CC MOTO1
OXFORDSHIRE CC,"CHILDRENS, YOUNG PEOPLE AND FAMILIES","	FAM SUPP CITY 1",PAYMENT TO GOVERNMENT DEPARTMENTS,09/09/2019,000008792609281,11.00,MILTON KEYNES COUNCIL
OXFORDSHIRE CC,"CHILDRENS, YOUNG PEOPLE AND FAMILIES","	LOOKED AFTER SOUTH",EDUCATIONAL AND VOCATIONAL TRAINING ,05/09/2019,000008780515563,11.00,OXFORDSHIRE CC MOTO1
OXFORDSHIRE CC,"CHILDRENS, YOUNG PEOPLE AND FAMILIES","	LOOKED AFTER SOUTH",EDUCATIONAL AND VOCATIONAL TRAINING ,04/09/2019,000008776303911,11.00,OXFORDSHIRE CC MOTO1
OXFORDSHIRE CC,CORPORATE CORE,"	LEGAL SERVICES",LEGAL COSTS,03/09/2019,000008773367625,11.00,OXFORDSHIRE CC MOTO1
OXFORDSHIRE CC,"CHILDRENS, YOUNG PEOPLE AND FAMILIES",THAME E&A HOME,SUBSCRIPTIONS,03/09/2019,000008773367461,11.00,AMF BOWLING
OXFORDSHIRE CC,"CHILDRENS, YOUNG PEOPLE AND FAMILIES","	LOOKED AFTER SOUTH",REGISTRATION AND INSPECTION FEES,03/09/2019,000008773367779,11.00,SHIRE PLAY LIMITED
OXFORDSHIRE CC,SOCIAL AND COMMUNITY SERVICES,CSS BICESTER,CATERING PROVISIONS,03/09/2019,000008773367395,11.00,SAINSBURYS SACAT (2243
OXFORDSHIRE CC,"CHILDRENS, YOUNG PEOPLE AND FAMILIES","	LOOKED AFTER CITY 2",EDUCATIONAL AND VOCATIONAL TRAINING ,02/09/2019,000008766709359,11.00,OXFORDSHIRE CC MOTO1
OXFORDSHIRE CC,CORPORATE CORE,INCOME TEAM,PAYMENT TO GOVERNMENT DEPARTMENTS,30/08/2019,000008759618083,11.00,OXFORDSHIRE CC MOTO1
OXFORDSHIRE CC,"CHILDRENS, YOUNG PEOPLE AND FAMILIES","	LOOKED AFTER SOUTH",PAYMENT TO GOVERNMENT DEPARTMENTS,30/08/2019,000008759617933,11.00,WILTSHIRE COUNTY C
OXFORDSHIRE CC,"CHILDRENS, YOUNG PEOPLE AND FAMILIES",DIDCOT MOVE-ON HOME,CATERING PROVISIONS,16/09/2019,000006586223766,11.10,SAINSBURYS SACAT 2067
OXFORDSHIRE CC,SOCIAL AND COMMUNITY SERVICES,LEAVING CARE NORTH,OTHER TRANSPORT ARRANGEMENTS,12/09/2019,000008810412335,11.10,SABA UK WMT GB4310 MIR
OXFORDSHIRE CC,ENVIRONMENT AND ECONOMY,"	BRIDGES GENERAL",HARDWARE AND CROCKERY,16/09/2019,000006586223570,11.15,B & Q 1062
OXFORDSHIRE CC,SOCIAL AND COMMUNITY SERVICES,"	SHARED LIVES",CATERING PROVISIONS,12/09/2019,000008810412551,11.18,WAITROSE 211
OXFORDSHIRE CC,SOCIAL AND COMMUNITY SERVICES,CSS - BANBURY,MATERIALS,24/09/2019,000006626493158,11.19,HOME BARGAINS BANBURY
OXFORDSHIRE CC,ENVIRONMENT AND ECONOMY,V2GO,CATERING PROVISIONS,20/09/2019,000006610418374,11.20,SAINSBURYS SACAT 0730
OXFORDSHIRE CC,"CHILDRENS, YOUNG PEOPLE AND FAMILIES",NTH EARLY HELP-BCSTR,PAYMENTS TO TRANSPORT OPERATORS,18/09/2019,000006598637204,11.20,WWW.GWR.COM
OXFORDSHIRE CC,"CHILDRENS, YOUNG PEOPLE AND FAMILIES",FAMILY SUPPORT 2,PAYMENTS TO TRANSPORT OPERATORS,11/09/2019,000008804871399,11.25,WWW.GWR.COM
OXFORDSHIRE CC,"CHILDRENS, YOUNG PEOPLE AND FAMILIES",FAMILY SUPPORT 2,PAYMENTS TO TRANSPORT OPERATORS,06/09/2019,000008785349327,11.25,WWW.GWR.COM
OXFORDSHIRE CC,"CHILDRENS, YOUNG PEOPLE AND FAMILIES",THAME E&A HOME,CATERING,20/09/2019,000006610418180,11.30,COSTA COFFEE 43041630
OXFORDSHIRE CC,SOCIAL AND COMMUNITY SERVICES,WITNEY MOVE ON HOME,CATERING PROVISIONS,27/09/2019,000006643215588,11.40,SAINSBURYS 2211
OXFORDSHIRE CC,ENVIRONMENT AND ECONOMY,"	E&I STAFF",PAYMENTS TO TRANSPORT OPERATORS,24/09/2019,000006626493176,11.40,WWW.GWR.COM
OXFORDSHIRE CC,"CHILDRENS, YOUNG PEOPLE AND FAMILIES","	RESIDENTIAL STRATEGY",CATERING,24/09/2019,000006626493004,11.46,MCDONALDS
OXFORDSHIRE CC,ENVIRONMENT AND ECONOMY,HARD FM,HARDWARE AND CROCKERY,27/09/2019,000006643215356,11.49,SCREWFIX OXFORD
OXFORDSHIRE CC,"CHILDRENS, YOUNG PEOPLE AND FAMILIES",THAME E&A HOME,CATERING PROVISIONS,03/09/2019,000008773367457,11.49,TESCO STORE 2640
OXFORDSHIRE CC,"CHILDRENS, YOUNG PEOPLE AND FAMILIES",THAME E&A HOME,CATERING,03/09/2019,000008773367437,11.50,SAN REMO CATERING
OXFORDSHIRE CC,"CHILDRENS, YOUNG PEOPLE AND FAMILIES",DIDCOT MOVE-ON HOME,CATERING PROVISIONS,09/09/2019,000008792609567,11.52,ALDI 99 775
OXFORDSHIRE CC,"CHILDRENS, YOUNG PEOPLE AND FAMILIES",DIDCOT MOVE-ON HOME,CATERING PROVISIONS,24/09/2019,000006626493340,11.55,SAINSBURYS SACAT 2067
OXFORDSHIRE CC,"CHILDRENS, YOUNG PEOPLE AND FAMILIES",WITNEY,CATERING PROVISIONS,02/09/2019,000008766709221,11.60,SAINSBURYS 0632
OXFORDSHIRE CC,"CHILDRENS, YOUNG PEOPLE AND FAMILIES",DIDCOT MOVE-ON HOME,CATERING PROVISIONS,05/09/2019,000008780513997,11.65,SAINSBURYS SACAT 2067
OXFORDSHIRE CC,ENVIRONMENT AND ECONOMY,HARD FM,EQUIPMENT,27/09/2019,000006643215336,11.71,WILTS ELECTRICAL
OXFORDSHIRE CC,"CHILDRENS, YOUNG PEOPLE AND FAMILIES",EYNSHAM,CATERING,30/08/2019,000008759617893,11.73,CO-OPERATIVE FOOD
OXFORDSHIRE CC,"CHILDRENS, YOUNG PEOPLE AND FAMILIES",DIDCOT MOVE-ON HOME,MATERIALS,19/09/2019,000006604610980,11.75,WILKO RETAIL LIMIT
OXFORDSHIRE CC,"CHILDRENS, YOUNG PEOPLE AND FAMILIES",WITNEY,CATERING PROVISIONS,27/09/2019,000006643215308,11.80,SAINSBURYS 0632
OXFORDSHIRE CC,"CHILDRENS, YOUNG PEOPLE AND FAMILIES",CNTL EARLY HELP-BRTN,CATERING,18/09/2019,000006598637790,11.85,MCDONALDS
OXFORDSHIRE CC,ENVIRONMENT AND ECONOMY,HARD FM,HARDWARE AND CROCKERY,10/09/2019,000008800225725,11.99,SCREWFIX OXFORD BOTLEY
OXFORDSHIRE CC,SOCIAL AND COMMUNITY SERVICES,ABINGDON LIBRARY,CATERING PROVISIONS,26/09/2019,000006636682046,12.00,PPOINT_ ER GOFF
OXFORDSHIRE CC,"CHILDRENS, YOUNG PEOPLE AND FAMILIES","	LOOKED AFTER CITY 2",PAYMENTS TO TRANSPORT OPERATORS,11/09/2019,000008804871367,12.00,GWR OXFORD SST
OXFORDSHIRE CC,"CHILDRENS, YOUNG PEOPLE AND FAMILIES",UASC UNDER 16,"SUPPLIES, STATIONERY AND MATERIALS",10/09/2019,000008800225711,12.00,RAJA GIFT LIMITED
OXFORDSHIRE CC,SOCIAL AND COMMUNITY SERVICES,CSS - BANBURY,MATERIALS,09/09/2019,000008792609335,12.00,HOBBYCRAFT
OXFORDSHIRE CC,"CHILDRENS, YOUNG PEOPLE AND FAMILIES","	AAC EQUIPMENT",POSTAGE AND DELIVERY,03/09/2019,000008773367687,12.00,POST OFFICE COUNTER
OXFORDSHIRE CC,"CHILDRENS, YOUNG PEOPLE AND FAMILIES","	LOOKED AFTER SOUTH",ENTERTAINMENT EXPENSES,03/09/2019,000008773367785,12.00,GREEN SPIDER CLIMBING
OXFORDSHIRE CC,"CHILDRENS, YOUNG PEOPLE AND FAMILIES","	LOOKED AFTER CITY 1","SUPPLIES, STATIONERY AND MATERIALS",03/09/2019,000008773367445,12.00,RAJA GIFT LIMITED
OXFORDSHIRE CC,ENVIRONMENT AND ECONOMY,V2GO,"SUPPLIES, STATIONERY AND MATERIALS",02/09/2019,000008766709349,12.00,WWW.CENEX-LCV.CO.UK
OXFORDSHIRE CC,"CHILDRENS, YOUNG PEOPLE AND FAMILIES",ICT INFORMATION,PURCHASE OF IT EQUIPMENT,24/09/2019,000006626493038,12.08,AMZNMKTPLACE
OXFORDSHIRE CC,SOCIAL AND COMMUNITY SERVICES,SCHOOLS FM,CATERING PROVISIONS,27/09/2019,000006643215586,12.10,SAINSBURYS 0745
OXFORDSHIRE CC,CORPORATE CORE,,"SUPPLIES, STATIONERY AND MATERIALS",16/09/2019,000006586223860,12.19,LYRECO UK LTD
OXFORDSHIRE CC,CORPORATE CORE,RESOURCING,MATERIALS,18/09/2019,000006598637084,12.23,LINKEDIN-408 3490596
OXFORDSHIRE CC,SOCIAL AND COMMUNITY SERVICES,CSS - BANBURY,CATERING PROVISIONS,06/09/2019,000008785349085,12.40,TESCO STORE 2064
OXFORDSHIRE CC,CORPORATE CORE,,"SUPPLIES, STATIONERY AND MATERIALS",16/09/2019,000006586223862,12.48,LYRECO UK LTD
OXFORDSHIRE CC,"CHILDRENS, YOUNG PEOPLE AND FAMILIES","	40 THE MOORS",MATERIALS,06/09/2019,000008785349197,12.48,AMAZON.CO.UK MA30Y8GY4
OXFORDSHIRE CC,"CHILDRENS, YOUNG PEOPLE AND FAMILIES",CNTL EARLY HELP-BRTN,OTHER EXPENSES,02/09/2019,000008766709507,12.48,AMAZON.CO.UK MA74F1TY4
OXFORDSHIRE CC,"CHILDRENS, YOUNG PEOPLE AND FAMILIES",STH EARLY HELP-DDCOT,MATERIALS,29/08/2019,000008754026003,12.48,AMZNMKTPLACE AMAZON.CO
OXFORDSHIRE CC,"CHILDRENS, YOUNG PEOPLE AND FAMILIES","	LOOKED AFTER CITY 2",VEHICLE FUEL,20/09/2019,000006610418526,12.49,SHELL CHASE 508
OXFORDSHIRE CC,SOCIAL AND COMMUNITY SERVICES,SCHOOLS FM,HARDWARE AND CROCKERY,17/09/2019,000006594363552,12.49,WICKES OXFORD
OXFORDSHIRE CC,"CHILDRENS, YOUNG PEOPLE AND FAMILIES","	40 THE MOORS",CATERING PROVISIONS,09/09/2019,000008792609533,12.50,TESCO STORE 2788
OXFORDSHIRE CC,CORPORATE CORE,SCHOOLS FM,CATERING PROVISIONS,13/09/2019,000008816587699,12.55,CO-OPERATIVE FOOD
OXFORDSHIRE CC,ENVIRONMENT AND ECONOMY,HARD FM,HARDWARE AND CROCKERY,27/09/2019,000006643215350,12.58,SCREWFIX OXFORD
OXFORDSHIRE CC,SOCIAL AND COMMUNITY SERVICES,CSS - BANBURY,CATERING PROVISIONS,26/09/2019,000006636681920,12.59,TESCO STORE 2064
OXFORDSHIRE CC,"CHILDRENS, YOUNG PEOPLE AND FAMILIES",DIDCOT MOVE-ON HOME,CATERING PROVISIONS,24/09/2019,000006626493120,12.60,SAINSBURYS SACAT 2067
OXFORDSHIRE CC,"CHILDRENS, YOUNG PEOPLE AND FAMILIES","	LOOKED AFTER CITY 2",OTHER TRANSPORT ARRANGEMENTS,19/09/2019,000006604610906,12.70,APCOA CONNECT - FGW
OXFORDSHIRE CC,SOCIAL AND COMMUNITY SERVICES,CSS WALLINGFORD,CATERING PROVISIONS,11/09/2019,000008804871157,12.74,WAITROSE 675
OXFORDSHIRE CC,ENVIRONMENT AND ECONOMY,HARD FM,EQUIPMENT,05/09/2019,000008780513603,12.74,WILTS ELECTRICAL
OXFORDSHIRE CC,"CHILDRENS, YOUNG PEOPLE AND FAMILIES",EYNSHAM,CATERING PROVISIONS,09/09/2019,000008792609591,12.83,CO-OPERATIVE FOOD
OXFORDSHIRE CC,"CHILDRENS, YOUNG PEOPLE AND FAMILIES",EYNSHAM,DAY ACTIVITIES,29/08/2019,000008754025953,12.85,THORPE PARK RESORT
OXFORDSHIRE CC,"CHILDRENS, YOUNG PEOPLE AND FAMILIES",THAME E&A HOME,MATERIALS,17/09/2019,000006594363454,12.98,ROBERT DYAS HOLDNG LTD
OXFORDSHIRE CC,"CHILDRENS, YOUNG PEOPLE AND FAMILIES",NTH EARLY HELP-BCSTR,PAYMENTS TO TRANSPORT OPERATORS,27/09/2019,000006643215680,13.00,WWW.GWR.COM
OXFORDSHIRE CC,"CHILDRENS, YOUNG PEOPLE AND FAMILIES",NTH EARLY HELP-BCSTR,PAYMENTS TO TRANSPORT OPERATORS,26/09/2019,000006636681922,13.00,WWW.GWR.COM
OXFORDSHIRE CC,SOCIAL AND COMMUNITY SERVICES,ADULT SERVICES IMPROVEMENT BOARD,CATERING PROVISIONS,24/09/2019,000006626493062,13.00,TESCO STORE 2413
OXFORDSHIRE CC,"CHILDRENS, YOUNG PEOPLE AND FAMILIES",NTH EARLY HELP-BCSTR,PAYMENTS TO TRANSPORT OPERATORS,23/09/2019,000006618484656,13.00,WWW.GWR.COM
OXFORDSHIRE CC,"CHILDRENS, YOUNG PEOPLE AND FAMILIES",NTH EARLY HELP-BCSTR,PAYMENTS TO TRANSPORT OPERATORS,20/09/2019,000006610418368,13.00,WWW.GWR.COM
OXFORDSHIRE CC,"CHILDRENS, YOUNG PEOPLE AND FAMILIES",NTH EARLY HELP-BCSTR,PAYMENTS TO TRANSPORT OPERATORS,19/09/2019,000006604610848,13.00,WWW.GWR.COM
OXFORDSHIRE CC,"CHILDRENS, YOUNG PEOPLE AND FAMILIES",NTH EARLY HELP-BCSTR,PAYMENTS TO TRANSPORT OPERATORS,13/09/2019,000008816587683,13.00,WWW.GWR.COM
OXFORDSHIRE CC,"CHILDRENS, YOUNG PEOPLE AND FAMILIES",NTH EARLY HELP-BCSTR,PAYMENTS TO TRANSPORT OPERATORS,12/09/2019,000008810412153,13.00,WWW.GWR.COM
OXFORDSHIRE CC,"CHILDRENS, YOUNG PEOPLE AND FAMILIES",NTH FAM SUPRT-BCSTR,PAYMENTS TO TRANSPORT OPERATORS,05/09/2019,000008780513823,13.00,WWW.GWR.COM
OXFORDSHIRE CC,ENVIRONMENT AND ECONOMY,"	WASTE MNGMNT GEN",PAYMENTS TO TRANSPORT OPERATORS,02/09/2019,000008766709393,13.00,WWW.GWR.COM
OXFORDSHIRE CC,SOCIAL AND COMMUNITY SERVICES,DIDCOT MOVE-ON HOME,CATERING PROVISIONS,04/09/2019,000008776303981,13.04,SAINSBURYS SACAT 2067
OXFORDSHIRE CC,"CHILDRENS, YOUNG PEOPLE AND FAMILIES",DIDCOT MOVE-ON HOME,CATERING PROVISIONS,11/09/2019,000008804871351,13.07,ALDI 99 775
OXFORDSHIRE CC,ENVIRONMENT AND ECONOMY,HARD FM,HARDWARE AND CROCKERY,27/09/2019,000006643215370,13.15,WICKES BANBURY
OXFORDSHIRE CC,"CHILDRENS, YOUNG PEOPLE AND FAMILIES","	FAMILY SUPPORT CITY3",POSTAGE AND DELIVERY,23/09/2019,000006618484786,13.20,THE POST OFFICE
OXFORDSHIRE CC,"CHILDRENS, YOUNG PEOPLE AND FAMILIES","	RIVERSIDE CENTRE",FURNITURE,20/09/2019,000006610418262,13.24,FREELANCE FABRICS
OXFORDSHIRE CC,"CHILDRENS, YOUNG PEOPLE AND FAMILIES",MANAGEMENT RECHARGES,HIRED AND CONTRACTED SERVICES,04/09/2019,000008776304033,13.29,AMZNMKTPLACE
OXFORDSHIRE CC,ENVIRONMENT AND ECONOMY,HARD FM,HARDWARE AND CROCKERY,12/09/2019,000008810411995,13.31,SCREWFIX BICESTER
OXFORDSHIRE CC,"CHILDRENS, YOUNG PEOPLE AND FAMILIES",HOUSE PROJECT,CATERING PROVISIONS,11/09/2019,000008804871385,13.37,ALDI STORES 775-142
OXFORDSHIRE CC,"CHILDRENS, YOUNG PEOPLE AND FAMILIES",THAME E&A HOME,CATERING PROVISIONS,02/09/2019,000008766709307,13.40,SAINSBURYS 2096
OXFORDSHIRE CC,"CHILDRENS, YOUNG PEOPLE AND FAMILIES","	FAMILY SUPPORT CITY3",PAYMENTS TO TRANSPORT OPERATORS,30/08/2019,000008759618089,13.40,WWW.GWR.COM
OXFORDSHIRE CC,"CHILDRENS, YOUNG PEOPLE AND FAMILIES",THAME E&A HOME,CATERING PROVISIONS,23/09/2019,000006618484586,13.45,SAINSBURYS SACAT 2096
OXFORDSHIRE CC,SOCIAL AND COMMUNITY SERVICES,CSS - BANBURY,CATERING PROVISIONS,09/09/2019,000008792609333,13.45,TESCO STORE 2064
OXFORDSHIRE CC,SOCIAL AND COMMUNITY SERVICES,CSS WITNEY,MATERIALS,10/09/2019,000008800226401,13.48,AMZNMKTPLACE
OXFORDSHIRE CC,SOCIAL AND COMMUNITY SERVICES,CSS WALLINGFORD,CATERING PROVISIONS,17/09/2019,000006594363530,13.49,WAITROSE 675
OXFORDSHIRE CC,"CHILDRENS, YOUNG PEOPLE AND FAMILIES","	LOOKED AFTER CITY 2",PAYMENTS TO TRANSPORT OPERATORS,16/09/2019,000006586223824,13.50,GWR OXFORD TO
OXFORDSHIRE CC,"CHILDRENS, YOUNG PEOPLE AND FAMILIES","	DIRECTOR'S OFFICE",CATERING PROVISIONS,11/09/2019,000008804871407,13.50,MARKS&SPENCER PLC
OXFORDSHIRE CC,"CHILDRENS, YOUNG PEOPLE AND FAMILIES","	LOOKED AFTER CITY 2",OTHER TRANSPORT ARRANGEMENTS,03/09/2019,000008773367609,13.50,APCOA CONNECT - FGW
OXFORDSHIRE CC,"CHILDRENS, YOUNG PEOPLE AND FAMILIES","	FAM SUPP CITY 1",SUBSCRIPTIONS,20/09/2019,000006610418292,13.53,AMFBOWLING.CO.UK
OXFORDSHIRE CC,SOCIAL AND COMMUNITY SERVICES,CSS - ABINGDON,CATERING PROVISIONS,19/09/2019,000006604610736,13.54,ALDI 99 775
OXFORDSHIRE CC,ENTERPRISEVC,VOXY,CATERING PROVISIONS,06/09/2019,000008785349039,13.55,SAINSBURYS 0730
OXFORDSHIRE CC,"CHILDRENS, YOUNG PEOPLE AND FAMILIES",THAME E&A HOME,CATERING PROVISIONS,18/09/2019,000006598636958,13.59,WAITROSE 206
OXFORDSHIRE CC,"CHILDRENS, YOUNG PEOPLE AND FAMILIES",DIDCOT MOVE-ON HOME,PAYMENTS TO TRANSPORT OPERATORS,17/09/2019,000006594363748,13.60,GWR DIDCOT PKWY TO
OXFORDSHIRE CC,"CHILDRENS, YOUNG PEOPLE AND FAMILIES",NTH EARLY HELP-BCSTR,PAYMENTS TO TRANSPORT OPERATORS,29/08/2019,000008754025937,13.60,WWW.GWR.COM
OXFORDSHIRE CC,"CHILDRENS, YOUNG PEOPLE AND FAMILIES",DEPUTY DIRECTOR &MAN,CATERING PROVISIONS,03/09/2019,000008773367791,13.70,MARKS&SPENCER PLC
OXFORDSHIRE CC,"CHILDRENS, YOUNG PEOPLE AND FAMILIES",DIDCOT MOVE-ON HOME,CATERING PROVISIONS,09/09/2019,000008792609563,13.75,SAINSBURYS 2067
OXFORDSHIRE CC,ENVIRONMENT AND ECONOMY,"	DRAINAGE REPAIRS",PAYMENTS TO TRANSPORT OPERATORS,29/08/2019,000008754026055,13.80,WWW.GWR.COM
OXFORDSHIRE CC,ENVIRONMENT AND ECONOMY,HARD FM,HARDWARE AND CROCKERY,18/09/2019,000006598636852,13.90,WICKES BANBURY
OXFORDSHIRE CC,"CHILDRENS, YOUNG PEOPLE AND FAMILIES",CNTL EARLY HELP-BRTN,ENTERTAINMENT EXPENSES,18/09/2019,000006598637780,13.90,HULLABALOO AND LASER Z
OXFORDSHIRE CC,SOCIAL AND COMMUNITY SERVICES,CSS - DIDCOT,MATERIALS,18/09/2019,000006598636794,13.96,WH SMITH
OXFORDSHIRE CC,ENVIRONMENT AND ECONOMY,HARD FM,HARDWARE AND CROCKERY,11/09/2019,000008804871121,13.98,SCREWFIX DIDCOT
OXFORDSHIRE CC,"CHILDRENS, YOUNG PEOPLE AND FAMILIES",HOUSE PROJECT,CATERING PROVISIONS,29/08/2019,000008754025943,13.98,ALDI 77 775
OXFORDSHIRE CC,ENVIRONMENT AND ECONOMY,HARD FM,HARDWARE AND CROCKERY,24/09/2019,000006626493030,13.99,SCREWFIX BANBURY
OXFORDSHIRE CC,"CHILDRENS, YOUNG PEOPLE AND FAMILIES",MANAGEMENT RECHARGES,HIRED AND CONTRACTED SERVICES,10/09/2019,000008800226025,13.99,AMZNMKTPLACE
OXFORDSHIRE CC,"CHILDRENS, YOUNG PEOPLE AND FAMILIES",THAME E&A HOME,VEHICLE FUEL,23/09/2019,000006618484562,14.00,THAME BP SF CONNECT
OXFORDSHIRE CC,"CHILDRENS, YOUNG PEOPLE AND FAMILIES","	LEAVING CARE NORTH",REGISTRATION AND INSPECTION FEES,20/09/2019,000006610418652,14.00,GEN REGISTER OFFICE
OXFORDSHIRE CC,"CHILDRENS, YOUNG PEOPLE AND FAMILIES","	RIVERSIDE CENTRE",FURNITURE,18/09/2019,000006598636980,14.00,DUNELM LTD
OXFORDSHIRE CC,CORPORATE CORE,"	LEGAL SERVICES",LEGAL COSTS,30/08/2019,000008759617987,14.00,LBHACKNEY PYMT
OXFORDSHIRE CC,"CHILDRENS, YOUNG PEOPLE AND FAMILIES","	LOOKED AFTER SOUTH",CATERING,03/09/2019,000008773367789,14.01,MCDONALDS983
OXFORDSHIRE CC,SOCIAL AND COMMUNITY SERVICES,CSS - OXFORD,CATERING PROVISIONS,30/08/2019,000008759617927,14.06,ALDI STORES 775-142
OXFORDSHIRE CC,SOCIAL AND COMMUNITY SERVICES,CICC,CATERING PROVISIONS,19/09/2019,000006604610866,14.15,ART CAFE
OXFORDSHIRE CC,ENVIRONMENT AND ECONOMY,HARD FM,MATERIALS,19/09/2019,000006604610756,14.22,DISCOUNT BUILDERS MERC
OXFORDSHIRE CC,SOCIAL AND COMMUNITY SERVICES,ADULT SERVICES IMPROVEMENT BOARD,CATERING PROVISIONS,11/09/2019,000008804871139,14.26,B&M RETAIL
OXFORDSHIRE CC,"CHILDRENS, YOUNG PEOPLE AND FAMILIES",CSS - DIDCOT,CATERING PROVISIONS,16/09/2019,000006586223248,14.29,TESCO STORE 2413
OXFORDSHIRE CC,"CHILDRENS, YOUNG PEOPLE AND FAMILIES",DIDCOT MOVE-ON HOME,CATERING PROVISIONS,11/09/2019,000008804871345,14.35,SAINSBURYS SACAT 2067
OXFORDSHIRE CC,SOCIAL AND COMMUNITY SERVICES,RESIDENTIAL STRATEGY,VEHICLE FUEL,29/08/2019,000008754025899,14.36,TESCO PFS 2488
OXFORDSHIRE CC,"CHILDRENS, YOUNG PEOPLE AND FAMILIES","	RIVERSIDE CENTRE",EDUCATIONAL AND VOCATIONAL TRAINING ,20/09/2019,000006610418482,14.40,VIRTUAL COLLEGE LIMITE
OXFORDSHIRE CC,"CHILDRENS, YOUNG PEOPLE AND FAMILIES",THAME E&A HOME,MATERIALS,02/09/2019,000008766709201,14.46,AMZNMKTPLACE
OXFORDSHIRE CC,SOCIAL AND COMMUNITY SERVICES,CSS WITNEY,MATERIALS,10/09/2019,000008800226405,14.48,AMZNMKTPLACE
OXFORDSHIRE CC,CORPORATE CORE,REGISTRAR,CATERING PROVISIONS,16/09/2019,000006586223374,14.50,MARKS&SPENCER PLC
OXFORDSHIRE CC,"CHILDRENS, YOUNG PEOPLE AND FAMILIES",THAME E&A HOME,MATERIALS,04/09/2019,000008776303955,14.50,THEWORKS.CO.UK
OXFORDSHIRE CC,"CHILDRENS, YOUNG PEOPLE AND FAMILIES","	RESIDENTIAL STRATEGY",DRUGS AND MEDICAL SUPPLIES,02/09/2019,000008766709235,14.51,SUPERDRUG STORES PLC
OXFORDSHIRE CC,"CHILDRENS, YOUNG PEOPLE AND FAMILIES",EYNSHAM,CATERING,24/09/2019,000006626493330,14.70,SAINSBURYS 0632
OXFORDSHIRE CC,ENVIRONMENT AND ECONOMY,HARD FM,HARDWARE AND CROCKERY,24/09/2019,000006626493034,14.80,SCREWFIX BANBURY
OXFORDSHIRE CC,"CHILDRENS, YOUNG PEOPLE AND FAMILIES",WITNEY,CATERING PROVISIONS,17/09/2019,000006594363462,14.84,LIDL GB  WITNEY
OXFORDSHIRE CC,"CHILDRENS, YOUNG PEOPLE AND FAMILIES",THAME E&A HOME,MATERIALS,09/09/2019,000008792609197,14.89,WWW.HIHOUSE.CO.UK
OXFORDSHIRE CC,ENVIRONMENT AND ECONOMY,HARD FM,HARDWARE AND CROCKERY,25/09/2019,000006631083874,14.90,WICKES OXFORD
OXFORDSHIRE CC,"CHILDRENS, YOUNG PEOPLE AND FAMILIES",STEP INTO TRAINING,"SUPPLIES, STATIONERY AND MATERIALS",25/09/2019,000006631084104,14.97,AMAZON.CO.UK MA75W2IF4
OXFORDSHIRE CC,"CHILDRENS, YOUNG PEOPLE AND FAMILIES","	RIVERSIDE CENTRE",CATERING PROVISIONS,10/09/2019,000008800226249,14.98,CO-OPERATIVE FOOD
OXFORDSHIRE CC,SOCIAL AND COMMUNITY SERVICES,CSS - OXFORD,MATERIALS,13/09/2019,000008816587723,14.99,ARGOS RETAIL GROUP
OXFORDSHIRE CC,"CHILDRENS, YOUNG PEOPLE AND FAMILIES",EYNSHAM,DAY ACTIVITIES,23/09/2019,000006618484516,15.00,PRIMARK 693
OXFORDSHIRE CC,CORPORATE CORE,CENTRAL BUYING TEAM,VEHICLE FUEL,19/09/2019,000006604611024,15.00,TESCO PFS 3700
OXFORDSHIRE CC,"CHILDRENS, YOUNG PEOPLE AND FAMILIES",DIDCOT MOVE-ON HOME,PAYMENTS TO TRANSPORT OPERATORS,10/09/2019,000008800225961,15.00,GWR DIDCOT PKWY TO
OXFORDSHIRE CC,"CHILDRENS, YOUNG PEOPLE AND FAMILIES",EYNSHAM,CATERING PROVISIONS,09/09/2019,000008792609543,15.00,MARKS&SPENCER PLC
OXFORDSHIRE CC,ENVIRONMENT AND ECONOMY,HARD FM,HARDWARE AND CROCKERY,05/09/2019,000008780513619,15.00,WICKES BICESTER
OXFORDSHIRE CC,"CHILDRENS, YOUNG PEOPLE AND FAMILIES",THAME E&A HOME,CATERING,03/09/2019,000008773367435,15.00,SAN REMO CATERING
OXFORDSHIRE CC,"CHILDRENS, YOUNG PEOPLE AND FAMILIES","	LOOKED AFTER NORTH",VEHICLE FUEL,03/09/2019,000008773367771,15.01,TESCO PFS 2260
OXFORDSHIRE CC,SOCIAL AND COMMUNITY SERVICES,"	MUSEUMS COLLECTIONS",VEHICLE FUEL,17/09/2019,000006594363678,15.02,TESCO PAY AT PUMP 3418
OXFORDSHIRE CC,SOCIAL AND COMMUNITY SERVICES,DIDCOT MOVE-ON HOME,MATERIALS,12/09/2019,000008810412041,15.05,THE WORKS
OXFORDSHIRE CC,"CHILDRENS, YOUNG PEOPLE AND FAMILIES",EYNSHAM,VEHICLE FUEL,29/08/2019,000008754025955,15.05,TESCO PFS 2488
OXFORDSHIRE CC,ENVIRONMENT AND ECONOMY,HARD FM,HARDWARE AND CROCKERY,19/09/2019,000006604610758,15.20,WICKES BANBURY
OXFORDSHIRE CC,"CHILDRENS, YOUNG PEOPLE AND FAMILIES",DIDCOT MOVE-ON HOME,CATERING PROVISIONS,16/09/2019,000006586223764,15.35,SAINSBURYS 2067
OXFORDSHIRE CC,"CHILDRENS, YOUNG PEOPLE AND FAMILIES",EYNSHAM,MATERIALS,25/09/2019,000006631084142,15.38,AMZNMKTPLACE AMAZON.CO
OXFORDSHIRE CC,ENVIRONMENT AND ECONOMY,HARD FM,HARDWARE AND CROCKERY,27/09/2019,000006643215354,15.47,SCREWFIX OXFORD
OXFORDSHIRE CC,"CHILDRENS, YOUNG PEOPLE AND FAMILIES",CNTL EARLY HELP-BRTN,CATERING,29/08/2019,000008754026019,15.47,BURGER KING
OXFORDSHIRE CC,"CHILDRENS, YOUNG PEOPLE AND FAMILIES","	LOOKED AFTER CITY 2",MATERIALS,16/09/2019,000006586223834,15.50,WILKO RETAIL LIMIT
OXFORDSHIRE CC,"CHILDRENS, YOUNG PEOPLE AND FAMILIES",CSS WALLINGFORD,CATERING PROVISIONS,16/09/2019,000006586223154,15.50,WAITROSE 675
OXFORDSHIRE CC,"CHILDRENS, YOUNG PEOPLE AND FAMILIES",DIDCOT MOVE-ON HOME,CATERING PROVISIONS,03/09/2019,000008773367507,15.50,SAINSBURYS SACAT 2067
OXFORDSHIRE CC,CORPORATE CORE,SCHOOLS FM,CATERING PROVISIONS,17/09/2019,000006594363612,15.60,TESCO STORES
OXFORDSHIRE CC,"CHILDRENS, YOUNG PEOPLE AND FAMILIES",EYNSHAM,CATERING PROVISIONS,23/09/2019,000006618484850,15.80,SAINSBURYS 0632
OXFORDSHIRE CC,"CHILDRENS, YOUNG PEOPLE AND FAMILIES",EYNSHAM,CATERING PROVISIONS,23/09/2019,000006618484820,15.90,CROCODILES OF THE WORL
OXFORDSHIRE CC,"CHILDRENS, YOUNG PEOPLE AND FAMILIES","	SM QUALITY ASSURANCE",PAYMENTS TO TRANSPORT OPERATORS,09/09/2019,000008792609199,15.90,WWW.CHILTERNRAILWAYS.C
OXFORDSHIRE CC,"CHILDRENS, YOUNG PEOPLE AND FAMILIES","	RIVERSIDE CENTRE",MATERIALS,20/09/2019,000006610418260,15.94,WIGGLE LIMITED
OXFORDSHIRE CC,"CHILDRENS, YOUNG PEOPLE AND FAMILIES",MEMBERS ALLOWANCES,PURCHASE OF IT EQUIPMENT,11/09/2019,000008804871173,15.98,PAYPAL  ACADAPTERCH
OXFORDSHIRE CC,ENVIRONMENT AND ECONOMY,HARD FM,HARDWARE AND CROCKERY,24/09/2019,000006626493042,15.99,SCREWFIX OXFORD BOTLEY
OXFORDSHIRE CC,SOCIAL AND COMMUNITY SERVICES,CSS WITNEY,MATERIALS,05/09/2019,000008780513179,15.99,M AQUATICS LECHLADE
OXFORDSHIRE CC,SOCIAL AND COMMUNITY SERVICES,CSS - ABINGDON,CATERING PROVISIONS,19/09/2019,000006604610738,16.00,WAITROSE 211
OXFORDSHIRE CC,ENVIRONMENT AND ECONOMY,"	NAT TRAILS GENERAL",CATERING PROVISIONS,16/09/2019,000006586223228,16.00,THE MARKET GARDEN
OXFORDSHIRE CC,"CHILDRENS, YOUNG PEOPLE AND FAMILIES","	NCS",CATERING PROVISIONS,09/09/2019,000008792609649,16.07,OXFORD BROOKES STORE
OXFORDSHIRE CC,CORPORATE CORE,SCHOOLS FM,CATERING PROVISIONS,11/09/2019,000008804871205,16.15,SAINSBURYS SACAT (4264
OXFORDSHIRE CC,"CHILDRENS, YOUNG PEOPLE AND FAMILIES",WITNEY,CATERING PROVISIONS,05/09/2019,000008780513541,16.15,SAINSBURYS 0632
OXFORDSHIRE CC,"CHILDRENS, YOUNG PEOPLE AND FAMILIES",THAME E&A HOME,MATERIALS,13/09/2019,000008816587543,16.21,AMAZON.CO.UK MA11C6BB4
OXFORDSHIRE CC,SOCIAL AND COMMUNITY SERVICES,CSS WANTAGE,MATERIALS,25/09/2019,000006631084052,16.25,SAINSBURYS SACAT 2244
OXFORDSHIRE CC,CORPORATE CORE,SCHOOLS FM,CATERING PROVISIONS,19/09/2019,000006604610878,16.27,CO-OPERATIVE FOOD
OXFORDSHIRE CC,SOCIAL AND COMMUNITY SERVICES,CSS WITNEY,MATERIALS,27/09/2019,000006643216144,16.29,AMZNMKTPLACE AMAZON.CO
OXFORDSHIRE CC,ENVIRONMENT AND ECONOMY,HARD FM,EQUIPMENT,27/09/2019,000006643215332,16.42,W F SENATE
OXFORDSHIRE CC,"CHILDRENS, YOUNG PEOPLE AND FAMILIES",HOUSE PROJECT,OTHER TRANSPORT ARRANGEMENTS,26/09/2019,000006636682058,16.50,Q PARK CHATHAM PLACE
OXFORDSHIRE CC,SOCIAL AND COMMUNITY SERVICES,CSS - ABINGDON,VEHICLES REPAIRS AND MAINTENANCE,19/09/2019,000006604610734,16.50,TESCO STORES 2008
OXFORDSHIRE CC,"CHILDRENS, YOUNG PEOPLE AND FAMILIES",DIDCOT MOVE-ON HOME,CATERING PROVISIONS,16/09/2019,000006586223406,16.50,SAINSBURYS SACAT 2067
OXFORDSHIRE CC,"CHILDRENS, YOUNG PEOPLE AND FAMILIES",THAME E&A HOME,VEHICLE FUEL,09/09/2019,000008792609249,16.72,BP BUCKLAND CONNECT
OXFORDSHIRE CC,"CHILDRENS, YOUNG PEOPLE AND FAMILIES","	NCS",CATERING,09/09/2019,000008792609651,16.75,OXFORD BROOKES UNIVERS
OXFORDSHIRE CC,"CHILDRENS, YOUNG PEOPLE AND FAMILIES",FAMILY SUPPORT 2,PAYMENTS TO TRANSPORT OPERATORS,09/09/2019,000008792609659,16.80,WWW.GWR.COM
OXFORDSHIRE CC,"CHILDRENS, YOUNG PEOPLE AND FAMILIES","	LEAVING CARE NORTH",CLOTHING AND UNIFORMS,09/09/2019,000008792609227,16.80,PRIMARK 693
OXFORDSHIRE CC,"CHILDRENS, YOUNG PEOPLE AND FAMILIES","	MALTFIELD HOUSE",ENTERTAINMENT EXPENSES,17/09/2019,000006594363652,16.87,HOLLYWOOD BOWL
OXFORDSHIRE CC,SOCIAL AND COMMUNITY SERVICES,ADULT SERVICES IMPROVEMENT BOARD,CATERING PROVISIONS,20/09/2019,000006610418252,16.93,TESCO STORE 2413
OXFORDSHIRE CC,"CHILDRENS, YOUNG PEOPLE AND FAMILIES",KINGFISHER,CATERING,13/09/2019,000008816587841,16.97,MCDONALDS
OXFORDSHIRE CC,"CHILDRENS, YOUNG PEOPLE AND FAMILIES",DIDCOT MOVE-ON HOME,MATERIALS,29/08/2019,000008754025915,16.99,B & M RETAIL
OXFORDSHIRE CC,"CHILDRENS, YOUNG PEOPLE AND FAMILIES",HOUSE PROJECT,CATERING PROVISIONS,09/09/2019,000008792609633,17.00,ASDA STORE 4442
OXFORDSHIRE CC,"CHILDRENS, YOUNG PEOPLE AND FAMILIES",CSS WALLINGFORD,MATERIALS,05/09/2019,000008780513475,17.00,KERI THE FLORIST
OXFORDSHIRE CC,SOCIAL AND COMMUNITY SERVICES,WITNEY MOVE ON HOME,CATERING PROVISIONS,25/09/2019,000006631083918,17.05,SAINSBURYS 0632
OXFORDSHIRE CC,"CHILDRENS, YOUNG PEOPLE AND FAMILIES",THAME E&A HOME,CATERING PROVISIONS,27/09/2019,000006643215458,17.10,SAINSBURYS SACAT 0631
OXFORDSHIRE CC,"CHILDRENS, YOUNG PEOPLE AND FAMILIES","	40 THE MOORS",MATERIALS,16/09/2019,000006586223458,17.20,THE WORKS
OXFORDSHIRE CC,CORPORATE CORE,SCHOOLS FM,CATERING PROVISIONS,05/09/2019,000008780514239,17.20,TESCO STORE 2413
OXFORDSHIRE CC,SOCIAL AND COMMUNITY SERVICES,SCHOOLS FM,HARDWARE AND CROCKERY,19/09/2019,000006604610826,17.28,WICKES OXFORD
OXFORDSHIRE CC,ENVIRONMENT AND ECONOMY,"	E&I STAFF",PAYMENTS TO TRANSPORT OPERATORS,24/09/2019,000006626493174,17.30,WWW.GWR.COM
OXFORDSHIRE CC,ENVIRONMENT AND ECONOMY,"	E&I STAFF",PAYMENTS TO TRANSPORT OPERATORS,24/09/2019,000006626493178,17.30,WWW.GWR.COM
OXFORDSHIRE CC,SOCIAL AND COMMUNITY SERVICES,"	PUBLIC HEALTH GENERA",PAYMENTS TO TRANSPORT OPERATORS,11/09/2019,000008804871369,17.30,WWW.GWR.COM
OXFORDSHIRE CC,"CHILDRENS, YOUNG PEOPLE AND FAMILIES","	LEAVING CARE NORTH",OTHER EXPENSES,30/08/2019,000008759617959,17.42,CO-OPERATIVE FOOD
OXFORDSHIRE CC,SOCIAL AND COMMUNITY SERVICES,CSS WITNEY,MATERIALS,10/09/2019,000008800226403,17.48,AMZNMKTPLACE
OXFORDSHIRE CC,"CHILDRENS, YOUNG PEOPLE AND FAMILIES",DIDCOT MOVE-ON HOME,VEHICLE FUEL,16/09/2019,000006586223804,17.50,SAINSBURYS PFS0184
OXFORDSHIRE CC,ENVIRONMENT AND ECONOMY,"	COUNTY PRINT FINSHRS",POSTAGE AND DELIVERY,10/09/2019,000008800225785,17.50,ROYAL MAIL CUSTOMER
OXFORDSHIRE CC,"CHILDRENS, YOUNG PEOPLE AND FAMILIES",THAME E&A HOME,SUBSCRIPTIONS,02/09/2019,000008766709305,17.60,AQUA VALE SWIMMING
OXFORDSHIRE CC,SOCIAL AND COMMUNITY SERVICES,"	HISTORY SERVICE","BOOKS, DVDS AND CDS",19/09/2019,000006604610872,17.75,AMZNMKTPLACE AMAZON.CO
OXFORDSHIRE CC,"CHILDRENS, YOUNG PEOPLE AND FAMILIES","	40 THE MOORS",CATERING PROVISIONS,26/09/2019,000006636682022,17.80,TESCO STORE 2788
OXFORDSHIRE CC,"CHILDRENS, YOUNG PEOPLE AND FAMILIES",DIDCOT MOVE-ON HOME,CATERING PROVISIONS,23/09/2019,000006618484630,17.91,SAINSBURYS 2067
OXFORDSHIRE CC,SOCIAL AND COMMUNITY SERVICES,CSS WALLINGFORD,CATERING PROVISIONS,19/09/2019,000006604610806,17.99,WAITROSE 675
OXFORDSHIRE CC,SOCIAL AND COMMUNITY SERVICES,CSS WANTAGE,"BOOKS, DVDS AND CDS",27/09/2019,000006643215186,18.00,TESCO STORE 2413
OXFORDSHIRE CC,ENVIRONMENT AND ECONOMY,"	KNIGHTS COURT",HEALTH AND SAFETY EQUIPMENT,26/09/2019,000006636682048,18.00,AMZNMKTPLACE
OXFORDSHIRE CC,"CHILDRENS, YOUNG PEOPLE AND FAMILIES","	FAMILY SUPPORT S'TH2",OTHER SERVICES,25/09/2019,000006631083822,18.00,WANTAGE CIVIC HALL
OXFORDSHIRE CC,"CHILDRENS, YOUNG PEOPLE AND FAMILIES","	FAMILY SUPPORT CITY3",OTHER TRANSPORT ARRANGEMENTS,25/09/2019,000006631083832,18.00,WESTGATE OXFORD CAR PA
OXFORDSHIRE CC,"CHILDRENS, YOUNG PEOPLE AND FAMILIES","	RIVERSIDE CENTRE",EDUCATIONAL AND VOCATIONAL TRAINING ,18/09/2019,000006598636974,18.00,PROTRAININGS
OXFORDSHIRE CC,"CHILDRENS, YOUNG PEOPLE AND FAMILIES","	LOOKED AFTER NORTH",VEHICLE FUEL,13/09/2019,000008816587577,18.00,SWAN GARAGE
OXFORDSHIRE CC,SOCIAL AND COMMUNITY SERVICES,CSS - DIDCOT,MATERIALS,11/09/2019,000008804871095,18.00,ARGOS LTD
OXFORDSHIRE CC,"CHILDRENS, YOUNG PEOPLE AND FAMILIES","	LEAVING CARE NORTH",CLOTHING AND UNIFORMS,05/09/2019,000008780514791,18.04,H & M
OXFORDSHIRE CC,SOCIAL AND COMMUNITY SERVICES,SCHOOLS FM,CATERING PROVISIONS,04/09/2019,000008776304023,18.06,TESCO STORES 2008
OXFORDSHIRE CC,SOCIAL AND COMMUNITY SERVICES,"	HISTORY SERVICE","BOOKS, DVDS AND CDS",16/09/2019,000006586223504,18.07,AMAZON.CO.UK MA73R8QS4
OXFORDSHIRE CC,"CHILDRENS, YOUNG PEOPLE AND FAMILIES","	LOOKED AFTER CITY 1",VEHICLE FUEL,30/08/2019,000008759617965,18.08,TESCO PAY AT PUMP 3968
OXFORDSHIRE CC,"CHILDRENS, YOUNG PEOPLE AND FAMILIES","	LEAVING CARE NORTH",PAYMENTS TO TRANSPORT OPERATORS,12/09/2019,000008810412609,18.10,PAYPAL  TRAINLINE
OXFORDSHIRE CC,SOCIAL AND COMMUNITY SERVICES,ADULT SERVICES IMPROVEMENT BOARD,CATERING PROVISIONS,03/09/2019,000008773367481,18.39,TESCO STORE 2413
OXFORDSHIRE CC,CORPORATE CORE,SCHOOLS FM,CATERING PROVISIONS,17/09/2019,000006594363614,18.44,CO-OPERATIVE FOOD
OXFORDSHIRE CC,"CHILDRENS, YOUNG PEOPLE AND FAMILIES",ATV ADOPTION WOODLEY,MATERIALS,04/09/2019,000008776303917,18.48,AMZNMKTPLACE AMAZON.CO
OXFORDSHIRE CC,"CHILDRENS, YOUNG PEOPLE AND FAMILIES",CSS - DIDCOT,CATERING PROVISIONS,11/09/2019,000008804871101,18.49,TESCO STORE 2413
OXFORDSHIRE CC,CORPORATE CORE,HOUSING& GROWTH DEAL,DRUGS AND MEDICAL SUPPLIES,09/09/2019,000008792609283,18.49,BOOTS 0330
OXFORDSHIRE CC,CORPORATE CORE,SCHOOLS FM,CATERING PROVISIONS,11/09/2019,000008804871207,18.55,SAINSBURYS 2067
OXFORDSHIRE CC,"CHILDRENS, YOUNG PEOPLE AND FAMILIES",DIDCOT MOVE-ON HOME,CATERING PROVISIONS,23/09/2019,000006618484626,18.60,SAINSBURYS 2067
OXFORDSHIRE CC,SOCIAL AND COMMUNITY SERVICES,CSS - BANBURY,MATERIALS,06/09/2019,000008785349087,18.75,HALFORDS 0853
OXFORDSHIRE CC,"CHILDRENS, YOUNG PEOPLE AND FAMILIES","	LEAVING CARE NORTH",PAYMENTS TO TRANSPORT OPERATORS,02/09/2019,000008766709433,18.90,BICESTER NORTH SSTP
OXFORDSHIRE CC,"CHILDRENS, YOUNG PEOPLE AND FAMILIES","	LOOKED AFTER SOUTH",VEHICLE FUEL,18/09/2019,000006598637272,19.01,HFK BANBURY
OXFORDSHIRE CC,"CHILDRENS, YOUNG PEOPLE AND FAMILIES","	NCS",IT SOFTWARE,11/09/2019,000008804871107,19.18,FASTSPRING
OXFORDSHIRE CC,ENVIRONMENT AND ECONOMY,HARD FM,HARDWARE AND CROCKERY,06/09/2019,000008785348997,19.18,SCREWFIX ABINGDON
OXFORDSHIRE CC,ENVIRONMENT AND ECONOMY,"	TVERC",PAYMENTS TO TRANSPORT OPERATORS,30/08/2019,000008759617923,19.18,TRAINLINE
OXFORDSHIRE CC,"CHILDRENS, YOUNG PEOPLE AND FAMILIES",THAME E&A HOME,CATERING,04/09/2019,000008776303979,19.19,MCDONALDS
OXFORDSHIRE CC,SOCIAL AND COMMUNITY SERVICES,CSS BICESTER,CATERING PROVISIONS,26/09/2019,000006636681842,19.20,MARTIN MCCOLL
OXFORDSHIRE CC,"CHILDRENS, YOUNG PEOPLE AND FAMILIES",THAME E&A HOME,CATERING PROVISIONS,04/09/2019,000008776303949,19.20,SAINSBURYS SAC2305SAC
OXFORDSHIRE CC,"CHILDRENS, YOUNG PEOPLE AND FAMILIES",CNTL EARLY HELP-BRTN,ENTERTAINMENT EXPENSES,30/08/2019,000008759618053,19.26,VUE CINEMAS
OXFORDSHIRE CC,"CHILDRENS, YOUNG PEOPLE AND FAMILIES",DIDCOT MOVE-ON HOME,MATERIALS,29/08/2019,000008754025917,19.36,B & M RETAIL
OXFORDSHIRE CC,ENVIRONMENT AND ECONOMY,"	TVERC",PAYMENTS TO TRANSPORT OPERATORS,27/09/2019,000006643215420,19.43,RAILEASY WEB SITE
OXFORDSHIRE CC,SOCIAL AND COMMUNITY SERVICES,SERVICE IMPROVEMENT,MATERIALS,27/09/2019,000006643215476,19.45,B&M RETAIL
OXFORDSHIRE CC,SOCIAL AND COMMUNITY SERVICES,WITNEY MOVE ON HOME,CATERING PROVISIONS,19/09/2019,000006604610780,19.45,SAINSBURYS SACAT 0632
OXFORDSHIRE CC,"CHILDRENS, YOUNG PEOPLE AND FAMILIES","	FAM SUPP CITY 1",MATERIALS,27/09/2019,000006643215504,19.47,AMAZON.CO.UK MA3R77Y34
OXFORDSHIRE CC,SOCIAL AND COMMUNITY SERVICES,SCHOOLS FM,CATERING PROVISIONS,06/09/2019,000008785349065,19.50,SAINSBURYS 0745
OXFORDSHIRE CC,ENVIRONMENT AND ECONOMY,HARD FM,MATERIALS,19/09/2019,000006604610762,19.60,AMZNMKTPLACE
OXFORDSHIRE CC,SOCIAL AND COMMUNITY SERVICES,DIDCOT MOVE-ON HOME,PAYMENTS TO TRANSPORT OPERATORS,12/09/2019,000008810412037,19.60,GWR DIDCOT PKWY TO
OXFORDSHIRE CC,SOCIAL AND COMMUNITY SERVICES,DIDCOT MOVE-ON HOME,PAYMENTS TO TRANSPORT OPERATORS,05/09/2019,000008780513769,19.60,GWR DIDCOT PKWY TO
OXFORDSHIRE CC,ENVIRONMENT AND ECONOMY,HARD FM,MATERIALS,24/09/2019,000006626493036,19.64,LIGHTING & MAINS POWER
OXFORDSHIRE CC,SOCIAL AND COMMUNITY SERVICES,SCHOOLS FM,VEHICLE FUEL,16/09/2019,000006586223424,19.69,FRILFORD S/STN
OXFORDSHIRE CC,SOCIAL AND COMMUNITY SERVICES,CSS WITNEY,CATERING PROVISIONS,13/09/2019,000008816587797,19.72,POUNDSTRETCHER 700
OXFORDSHIRE CC,ENVIRONMENT AND ECONOMY,HARD FM,HARDWARE AND CROCKERY,29/08/2019,000008754025883,19.72,B & Q 1062
OXFORDSHIRE CC,"CHILDRENS, YOUNG PEOPLE AND FAMILIES","	MALTFIELD HOUSE",MATERIALS,02/09/2019,000008766709493,19.79,AMZNMKTPLACE AMAZON.CO
OXFORDSHIRE CC,"CHILDRENS, YOUNG PEOPLE AND FAMILIES",NTH EARLY HELP-BCSTR,"SUPPLIES, STATIONERY AND MATERIALS",29/08/2019,000008754025935,19.80,EB  THE COOPER SCHOOL
OXFORDSHIRE CC,SOCIAL AND COMMUNITY SERVICES,SCHOOLS FM,CATERING PROVISIONS,11/09/2019,000008804871163,19.90,POUNDSTRETCHER 700
OXFORDSHIRE CC,"CHILDRENS, YOUNG PEOPLE AND FAMILIES",THAME E&A HOME,"SUPPLIES, STATIONERY AND MATERIALS",16/09/2019,000006586223404,19.94,PMG SCHOOLWEAR
OXFORDSHIRE CC,SOCIAL AND COMMUNITY SERVICES,"	HISTORY SERVICE","BOOKS, DVDS AND CDS",27/09/2019,000006643215766,19.95,AMAZON.CO.UK MO9MN1CA4
OXFORDSHIRE CC,"CHILDRENS, YOUNG PEOPLE AND FAMILIES",THAME E&A HOME,CATERING,18/09/2019,000006598637064,19.99,DOMINOS PIZZA
OXFORDSHIRE CC,"CHILDRENS, YOUNG PEOPLE AND FAMILIES","	RESIDENTIAL STRATEGY",MATERIALS,16/09/2019,000006586223244,19.99,ARGOS KIDLINGTON INSID
OXFORDSHIRE CC,"CHILDRENS, YOUNG PEOPLE AND FAMILIES",CSS WALLINGFORD,MATERIALS,11/09/2019,000008804871081,19.99,ROBERT DYAS HOLDNG LTD
OXFORDSHIRE CC,"CHILDRENS, YOUNG PEOPLE AND FAMILIES","	40 THE MOORS",MATERIALS,02/09/2019,000008766709519,19.99,WWW.ARGOS.CO.UK
OXFORDSHIRE CC,"CHILDRENS, YOUNG PEOPLE AND FAMILIES",UASC POST 18,OTHER TRANSPORT ARRANGEMENTS,25/09/2019,000006631083852,20.00,TFL OYST PHOTOCARD
OXFORDSHIRE CC,"CHILDRENS, YOUNG PEOPLE AND FAMILIES","	40 THE MOORS",TELEPHONE - EQUIPMENT,24/09/2019,000006626493322,20.00,GIFFGAFF
OXFORDSHIRE CC,"CHILDRENS, YOUNG PEOPLE AND FAMILIES",EYNSHAM,OTHER EXPENSES,23/09/2019,000006618484828,20.00,HOBBYCRAFT
OXFORDSHIRE CC,"CHILDRENS, YOUNG PEOPLE AND FAMILIES","	LEAVING CARE NORTH",REGISTRATION AND INSPECTION FEES,20/09/2019,000006610418396,20.00,DVLA DRIVER ONLINE
OXFORDSHIRE CC,"CHILDRENS, YOUNG PEOPLE AND FAMILIES","	LEAVING CARE NORTH",OTHER EXPENSES,12/09/2019,000008810412199,20.00,FONE BITZ - OXFORD
OXFORDSHIRE CC,"CHILDRENS, YOUNG PEOPLE AND FAMILIES","	40 THE MOORS",CATERING PROVISIONS,06/09/2019,000008785349247,20.00,TESCO STORE 2064
OXFORDSHIRE CC,"CHILDRENS, YOUNG PEOPLE AND FAMILIES","	RESIDENTIAL STRATEGY",MATERIALS,03/09/2019,000008773367659,20.00,ARGOS KIDLINGTON INSID
OXFORDSHIRE CC,"CHILDRENS, YOUNG PEOPLE AND FAMILIES",FPT SOUTH/VALE,CATERING PROVISIONS,30/08/2019,000008759618059,20.00,MARKS&SPENCER PLC
OXFORDSHIRE CC,CORPORATE CORE,CENTRAL BUYING TEAM,VEHICLE FUEL,25/09/2019,000006631084144,20.01,TESCO PFS 3700
OXFORDSHIRE CC,"CHILDRENS, YOUNG PEOPLE AND FAMILIES","	FAMILY SUPPORT S'TH2",PAYMENTS TO TRANSPORT OPERATORS,29/08/2019,000008754025857,20.10,TRAINLINE
OXFORDSHIRE CC,SOCIAL AND COMMUNITY SERVICES,ADULT SERVICES IMPROVEMENT BOARD,CATERING PROVISIONS,05/09/2019,000008780513795,20.19,TESCO STORE 2413
OXFORDSHIRE CC,"CHILDRENS, YOUNG PEOPLE AND FAMILIES",DIDCOT MOVE-ON HOME,CATERING PROVISIONS,10/09/2019,000008800225955,20.25,SAINSBURYS SACAT 2067
OXFORDSHIRE CC,"CHILDRENS, YOUNG PEOPLE AND FAMILIES","	LOOKED AFTER SOUTH",CATERING PROVISIONS,13/09/2019,000008816587611,20.44,WM MORRISONS STORE
OXFORDSHIRE CC,ENVIRONMENT AND ECONOMY,"	KNIGHTS COURT",PURCHASE OF IT EQUIPMENT,13/09/2019,000008816587689,20.47,AMZNMKTPLACE
OXFORDSHIRE CC,"CHILDRENS, YOUNG PEOPLE AND FAMILIES","	LEAVING CARE NORTH",MATERIALS,20/09/2019,000006610418530,20.48,AMZNMKTPLACE
OXFORDSHIRE CC,"CHILDRENS, YOUNG PEOPLE AND FAMILIES",CSS WALLINGFORD,CATERING PROVISIONS,18/09/2019,000006598636726,20.50,WAITROSE 675
OXFORDSHIRE CC,SOCIAL AND COMMUNITY SERVICES,RESIDENTIAL STRATEGY,VEHICLE FUEL,29/08/2019,000008754025897,20.53,TESCO PFS 2488
OXFORDSHIRE CC,"CHILDRENS, YOUNG PEOPLE AND FAMILIES",THAME E&A HOME,CATERING,09/09/2019,000008792609251,20.60,IZ  CHARLIE?S CHIPPY
OXFORDSHIRE CC,SOCIAL AND COMMUNITY SERVICES,CSS BICESTER,MATERIALS,20/09/2019,000006610418192,20.70,AMZNMKTPLACE
OXFORDSHIRE CC,CORPORATE CORE,LIBRARY COLLECTIONS,"BOOKS, DVDS AND CDS",05/09/2019,000008780514109,20.73,OVERDRIVE DIST
OXFORDSHIRE CC,"CHILDRENS, YOUNG PEOPLE AND FAMILIES","	LOOKED AFTER CITY 2",VEHICLE FUEL,27/09/2019,000006643216094,20.75,APPLEGREEN BICESTER
OXFORDSHIRE CC,"CHILDRENS, YOUNG PEOPLE AND FAMILIES",DIDCOT MOVE-ON HOME,CATERING PROVISIONS,18/09/2019,000006598637736,20.75,SAINSBURYS 2067
OXFORDSHIRE CC,CORPORATE CORE,"	COMMUNICATIONS",IT SOFTWARE,17/09/2019,000006594363598,20.75,"ZAPIER, INC"
OXFORDSHIRE CC,CORPORATE CORE,"	COMMUNICATIONS",MATERIALS,20/09/2019,000006610418380,20.82,LINKEDIN 4961616334 LN
OXFORDSHIRE CC,CORPORATE CORE,ICT OPERATIONS & MAI,IT SERVICES,16/09/2019,000006586223842,20.88,GITHUB
OXFORDSHIRE CC,"CHILDRENS, YOUNG PEOPLE AND FAMILIES",DIDCOT MOVE-ON HOME,CATERING PROVISIONS,27/09/2019,000006643216338,20.95,SAINSBURYS SACAT 2067
OXFORDSHIRE CC,ENVIRONMENT AND ECONOMY,HARD FM,HARDWARE AND CROCKERY,27/09/2019,000006643215346,20.97,SCREWFIX ABINGDON
OXFORDSHIRE CC,"CHILDRENS, YOUNG PEOPLE AND FAMILIES","	LEAVING CARE NORTH",CATERING PROVISIONS,19/09/2019,000006604610770,21.00,SAINSBURYS SACAT 0632
OXFORDSHIRE CC,ENVIRONMENT AND ECONOMY,CPD TRAINING,OTHER TRAINING COURSES AND QUALIFICATION,19/09/2019,000006604610850,21.00,VUE NCS CITB HS&E TEST
OXFORDSHIRE CC,ENVIRONMENT AND ECONOMY,CPD TRAINING,OTHER TRAINING COURSES AND QUALIFICATION,19/09/2019,000006604610852,21.00,VUE NCS CITB HS&E TEST
OXFORDSHIRE CC,"CHILDRENS, YOUNG PEOPLE AND FAMILIES","	MUSIC UNALLOCABLE",PAYMENT TO GOVERNMENT DEPARTMENTS,13/09/2019,000008816587719,21.00,OXFORD CITY COUNCIL
OXFORDSHIRE CC,"CHILDRENS, YOUNG PEOPLE AND FAMILIES","	MUSIC UNALLOCABLE",PAYMENT TO GOVERNMENT DEPARTMENTS,30/08/2019,000008759617985,21.00,OXFORD CITY COUNCIL
OXFORDSHIRE CC,"CHILDRENS, YOUNG PEOPLE AND FAMILIES",CSS WALLINGFORD,CATERING PROVISIONS,02/09/2019,000008766709199,21.04,WAITROSE 675
OXFORDSHIRE CC,"CHILDRENS, YOUNG PEOPLE AND FAMILIES",THAME E&A HOME,CATERING PROVISIONS,02/09/2019,000008766709203,21.05,WAITROSE 206
OXFORDSHIRE CC,ENVIRONMENT AND ECONOMY,"	NAT TRAILS GENERAL",CATERING PROVISIONS,10/09/2019,000008800225695,21.10,SAINSBURYS 0631
OXFORDSHIRE CC,CORPORATE CORE,OPERATIONS,MATERIALS,25/09/2019,000006631083988,21.11,AMZNMKTPLACE
OXFORDSHIRE CC,"CHILDRENS, YOUNG PEOPLE AND FAMILIES",MANAGEMENT RECHARGES,HIRED AND CONTRACTED SERVICES,29/08/2019,000008754025927,21.15,ASDA STORES
OXFORDSHIRE CC,"CHILDRENS, YOUNG PEOPLE AND FAMILIES",THAME E&A HOME,MATERIALS,13/09/2019,000008816587597,21.42,AMZNMKTPLACE
OXFORDSHIRE CC,"CHILDRENS, YOUNG PEOPLE AND FAMILIES",FPT SOUTH/VALE,MATERIALS,02/09/2019,000008766709561,21.42,AMZNMKTPLACE
OXFORDSHIRE CC,CORPORATE CORE,HOUSING& GROWTH DEAL,MATERIALS,13/09/2019,000008816587625,21.44,AMZNMKTPLACE
OXFORDSHIRE CC,"CHILDRENS, YOUNG PEOPLE AND FAMILIES",THAME E&A HOME,MATERIALS,12/09/2019,000008810412009,21.49,AMZNMKTPLACE AMAZON.CO
OXFORDSHIRE CC,CORPORATE CORE,SCHOOLS FM,CATERING PROVISIONS,19/09/2019,000006604610876,21.50,TESCO STORES 2008
OXFORDSHIRE CC,SOCIAL AND COMMUNITY SERVICES,"	MUSEUMS COLLECTIONS","SUPPLIES, STATIONERY AND MATERIALS",10/09/2019,000008800225981,21.53,EB  SEMFED STUDY DAY-L
OXFORDSHIRE CC,"CHILDRENS, YOUNG PEOPLE AND FAMILIES",EYNSHAM,CATERING PROVISIONS,13/09/2019,000008816587837,21.54,CO-OPERATIVE FOOD
OXFORDSHIRE CC,"CHILDRENS, YOUNG PEOPLE AND FAMILIES",THAME E&A HOME,SUBSCRIPTIONS,03/09/2019,000008773367463,21.59,AMF BOWLING
OXFORDSHIRE CC,"CHILDRENS, YOUNG PEOPLE AND FAMILIES","	MUSIC UNALLOCABLE",VEHICLE FUEL,19/09/2019,000006604610830,21.60,SAINSBURYS OPT 0180
OXFORDSHIRE CC,ENVIRONMENT AND ECONOMY,HARD FM,HARDWARE AND CROCKERY,17/09/2019,000006594363484,21.61,SCREWFIX OXFORD
OXFORDSHIRE CC,SOCIAL AND COMMUNITY SERVICES,CICC,CATERING PROVISIONS,27/09/2019,000006643215738,21.80,ART CAFE
OXFORDSHIRE CC,SOCIAL AND COMMUNITY SERVICES,CSS - BANBURY,CATERING PROVISIONS,05/09/2019,000008780514151,21.82,TESCO STORE 2064
OXFORDSHIRE CC,SOCIAL AND COMMUNITY SERVICES,DIDCOT MOVE-ON HOME,CATERING PROVISIONS,12/09/2019,000008810412029,21.90,SAINSBURYS SACAT 2067
OXFORDSHIRE CC,SOCIAL AND COMMUNITY SERVICES,WITNEY MOVE ON HOME,CATERING PROVISIONS,29/08/2019,000008754025907,21.90,SAINSBURYS 0632
OXFORDSHIRE CC,CORPORATE CORE,TRANSPORT GENERAL,VEHICLE EQUIPMENT AND EXPENSES - OTHER,09/09/2019,000008792609405,21.98,AMZNMKTPLACE
OXFORDSHIRE CC,ENVIRONMENT AND ECONOMY,HARD FM,HARDWARE AND CROCKERY,04/09/2019,000008776303943,21.98,SCREWFIX BICESTER
OXFORDSHIRE CC,SOCIAL AND COMMUNITY SERVICES,ADULT SERVICES IMPROVEMENT BOARD,CATERING PROVISIONS,18/09/2019,000006598636970,21.99,TESCO STORES 2008
OXFORDSHIRE CC,ENVIRONMENT AND ECONOMY,HARD FM,HARDWARE AND CROCKERY,11/09/2019,000008804871117,21.99,SCREWFIX WITNEY
OXFORDSHIRE CC,"CHILDRENS, YOUNG PEOPLE AND FAMILIES",STH EARLY HELP-DDCOT,CLOTHING AND UNIFORMS,06/09/2019,000008785349037,21.99,TRUTEX DIDCOT
OXFORDSHIRE CC,"CHILDRENS, YOUNG PEOPLE AND FAMILIES","	LOOKED AFTER CITY 2",EDUCATIONAL AND VOCATIONAL TRAINING ,27/09/2019,000006643216438,22.00,OXFORDSHIRE CC MOTO1
OXFORDSHIRE CC,"CHILDRENS, YOUNG PEOPLE AND FAMILIES","	LOOKED AFTER CITY 1",REGISTRATION AND INSPECTION FEES,16/09/2019,000006586223440,22.00,OXFORDSHIRE CC MOTO1
OXFORDSHIRE CC,"CHILDRENS, YOUNG PEOPLE AND FAMILIES",FAMILY SUPPORT 2,PAYMENTS TO TRANSPORT OPERATORS,11/09/2019,000008804871401,22.10,WWW.GWR.COM
OXFORDSHIRE CC,SOCIAL AND COMMUNITY SERVICES,"	MUSEUMS COLLECTIONS",MATERIALS,03/09/2019,000008773367663,22.24,AMZNMKTPLACE AMAZON.CO
OXFORDSHIRE CC,"CHILDRENS, YOUNG PEOPLE AND FAMILIES",THAME E&A HOME,CATERING PROVISIONS,06/09/2019,000008785349299,22.30,SAINSBURYS 2096
OXFORDSHIRE CC,"CHILDRENS, YOUNG PEOPLE AND FAMILIES",DIDCOT MOVE-ON HOME,CATERING PROVISIONS,13/09/2019,000008816587653,22.37,SAINSBURYS SACAT 2067
OXFORDSHIRE CC,"CHILDRENS, YOUNG PEOPLE AND FAMILIES",WITNEY,CATERING,27/09/2019,000006643215250,22.40,OFF THE HOOK
OXFORDSHIRE CC,SOCIAL AND COMMUNITY SERVICES,CSS WITNEY,MATERIALS,10/09/2019,000008800226409,22.44,AMZNMKTPLACE
OXFORDSHIRE CC,"CHILDRENS, YOUNG PEOPLE AND FAMILIES",EYNSHAM,MATERIALS,30/08/2019,000008759618091,22.45,AMZNMKTPLACE
OXFORDSHIRE CC,"CHILDRENS, YOUNG PEOPLE AND FAMILIES","	LEAVING CARE NORTH",OTHER EXPENSES,29/08/2019,000008754026047,22.45,SAINSBURYS SACAT (2243
OXFORDSHIRE CC,"CHILDRENS, YOUNG PEOPLE AND FAMILIES","	40 THE MOORS",CATERING PROVISIONS,09/09/2019,000008792609535,22.50,ASDA GEORGE COM LEEDS
OXFORDSHIRE CC,"CHILDRENS, YOUNG PEOPLE AND FAMILIES","	LEAVING CARE NORTH",CATERING PROVISIONS,09/09/2019,000008792609473,22.52,CO-OPERATIVE FOOD
OXFORDSHIRE CC,"CHILDRENS, YOUNG PEOPLE AND FAMILIES","	SM QUALITY ASSURANCE",PAYMENTS TO TRANSPORT OPERATORS,17/09/2019,000006594363466,22.55,TRAINLINE
OXFORDSHIRE CC,"CHILDRENS, YOUNG PEOPLE AND FAMILIES",HOUSE PROJECT,CATERING PROVISIONS,02/09/2019,000008766709355,22.65,WHSMITH
OXFORDSHIRE CC,SOCIAL AND COMMUNITY SERVICES,CSS WALLINGFORD,MATERIALS,11/09/2019,000008804871155,22.67,AMAZON.CO.UK MA8MZ7574
OXFORDSHIRE CC,"CHILDRENS, YOUNG PEOPLE AND FAMILIES","	LOOKED AFTER CITY 1",PAYMENTS TO TRANSPORT OPERATORS,18/09/2019,000006598637114,22.94,TRAINLINE.COM
OXFORDSHIRE CC,"CHILDRENS, YOUNG PEOPLE AND FAMILIES",THAME E&A HOME,MATERIALS,11/09/2019,000008804871171,22.95,WWW.JOHNLEWIS.COM
OXFORDSHIRE CC,"CHILDRENS, YOUNG PEOPLE AND FAMILIES",DIDCOT MOVE-ON HOME,CATERING PROVISIONS,02/09/2019,000008766709311,22.96,SAINSBURYS 2067
OXFORDSHIRE CC,ENVIRONMENT AND ECONOMY,HARD FM,HARDWARE AND CROCKERY,09/09/2019,000008792609221,22.97,SCREWFIX OXFORD
OXFORDSHIRE CC,"CHILDRENS, YOUNG PEOPLE AND FAMILIES",THAME E&A HOME,MATERIALS,09/09/2019,000008792609195,22.98,AMAZON.CO.UK MA7U71MR4
OXFORDSHIRE CC,"CHILDRENS, YOUNG PEOPLE AND FAMILIES","	FAMILY SUPPORT CITY3",CLOTHING AND UNIFORMS,17/09/2019,000006594363722,22.99,AMZNMKTPLACE
OXFORDSHIRE CC,"CHILDRENS, YOUNG PEOPLE AND FAMILIES",WITNEY,VEHICLES REPAIRS AND MAINTENANCE,24/09/2019,000006626493008,23.00,CELL PHONE REPAIRS LTD
OXFORDSHIRE CC,SOCIAL AND COMMUNITY SERVICES,LEAVING CARE NORTH,CATERING PROVISIONS,23/09/2019,000006618484744,23.00,WM MORRISONS STORE
OXFORDSHIRE CC,SOCIAL AND COMMUNITY SERVICES,CSS BICESTER,CATERING PROVISIONS,29/08/2019,000008754025901,23.00,ICELAND
OXFORDSHIRE CC,"CHILDRENS, YOUNG PEOPLE AND FAMILIES","	LOOKED AFTER SOUTH",VEHICLE FUEL,26/09/2019,000006636682056,23.12,SHOW MEADOW SF CONNECT
OXFORDSHIRE CC,SOCIAL AND COMMUNITY SERVICES,SAFEGUARDING-OPERATIONAL MANAGERS,PAYMENTS TO TRANSPORT OPERATORS,26/09/2019,000006636681870,23.15,WWW.GWR.COM
OXFORDSHIRE CC,ENVIRONMENT AND ECONOMY,HARD FM,HARDWARE AND CROCKERY,19/09/2019,000006604610766,23.18,SCREWFIX OXFORD
OXFORDSHIRE CC,"CHILDRENS, YOUNG PEOPLE AND FAMILIES",STEP INTO TRAINING,"SUPPLIES, STATIONERY AND MATERIALS",23/09/2019,000006618484832,23.24,AMAZON.CO.UK MA6341764
OXFORDSHIRE CC,"CHILDRENS, YOUNG PEOPLE AND FAMILIES",BANBURY CC,MATERIALS,06/09/2019,000008785349059,23.32,AMAZON.CO.UK MA64X9GZ4
OXFORDSHIRE CC,"CHILDRENS, YOUNG PEOPLE AND FAMILIES",WITNEY,CATERING PROVISIONS,25/09/2019,000006631083844,23.34,LIDL GB  WITNEY
OXFORDSHIRE CC,"CHILDRENS, YOUNG PEOPLE AND FAMILIES","	RIVERSIDE CENTRE",HIRE OF EQUIPMENT,20/09/2019,000006610418270,23.37,MACHINE MART/INTER
OXFORDSHIRE CC,SOCIAL AND COMMUNITY SERVICES,CSS - BANBURY,CATERING PROVISIONS,27/09/2019,000006643215672,23.45,TESCO STORE 2064
OXFORDSHIRE CC,ENVIRONMENT AND ECONOMY,HARD FM,HARDWARE AND CROCKERY,02/09/2019,000008766709253,23.71,CITY PLUMBING
OXFORDSHIRE CC,SOCIAL AND COMMUNITY SERVICES,CSS WANTAGE,MATERIALS,10/09/2019,000008800226419,23.75,SAINSBURYS SACAT 2244
OXFORDSHIRE CC,"CHILDRENS, YOUNG PEOPLE AND FAMILIES","	MALTFIELD HOUSE",DRUGS AND MEDICAL SUPPLIES,27/09/2019,000006643215758,23.85,"BOOTS,THAME"
OXFORDSHIRE CC,ENVIRONMENT AND ECONOMY,"	TVERC",PAYMENTS TO TRANSPORT OPERATORS,27/09/2019,000006643215424,23.90,RAILEASY WEB SITE
OXFORDSHIRE CC,"CHILDRENS, YOUNG PEOPLE AND FAMILIES","	MUSIC UNALLOCABLE",VEHICLE FUEL,10/09/2019,000008800225969,23.92,TESCO PAYAT PUMP 3700
OXFORDSHIRE CC,CORPORATE CORE,"	MEMBERS SERVICES",MATERIALS,17/09/2019,000006594363664,23.93,AMZNMKTPLACE AMAZON.CO
OXFORDSHIRE CC,ENVIRONMENT AND ECONOMY,"	COUNTY HALL",MATERIALS,11/09/2019,000008804871239,23.94,EXTRA ELECTRICAL HARD
OXFORDSHIRE CC,ENVIRONMENT AND ECONOMY,HARD FM,EQUIPMENT,29/08/2019,000008754025875,23.94,WILTS ELECTRICAL
OXFORDSHIRE CC,ENVIRONMENT AND ECONOMY,"	WASTE MNGMNT GEN",MATERIALS,24/09/2019,000006626493210,23.99,AMZNMKTPLACE
OXFORDSHIRE CC,ENVIRONMENT AND ECONOMY,S38 INSPECT & OTHER,IT SOFTWARE,18/09/2019,000006598637120,23.99,ADOBE  STOCK
OXFORDSHIRE CC,"CHILDRENS, YOUNG PEOPLE AND FAMILIES",FAMILY SUPPORT 2,EDUCATIONAL AND VOCATIONAL TRAINING ,26/09/2019,000006636682086,24.00,FREEDOM PROGRAMME LIMI
OXFORDSHIRE CC,"CHILDRENS, YOUNG PEOPLE AND FAMILIES",VULNERABLE LEARNERS,PHOTOCOPYING,30/08/2019,000008759618049,24.00,ISTOCK.COM
OXFORDSHIRE CC,ENVIRONMENT AND ECONOMY,THE RIDGEWAY,EQUIPMENT,29/08/2019,000008754025921,24.04,SCREWFIX DIRECT
OXFORDSHIRE CC,"CHILDRENS, YOUNG PEOPLE AND FAMILIES",WITNEY,CATERING PROVISIONS,09/09/2019,000008792609201,24.15,SAINSBURYS SACAT 0632
OXFORDSHIRE CC,"CHILDRENS, YOUNG PEOPLE AND FAMILIES",WITNEY,CATERING PROVISIONS,02/09/2019,000008766709219,24.15,SAINSBURYS 0632
OXFORDSHIRE CC,"CHILDRENS, YOUNG PEOPLE AND FAMILIES","	DIRECTOR'S OFFICE",PAYMENTS TO TRANSPORT OPERATORS,29/08/2019,000008754026059,24.27,TRAINLINE.COM
OXFORDSHIRE CC,"CHILDRENS, YOUNG PEOPLE AND FAMILIES",THAME E&A HOME,CATERING PROVISIONS,04/09/2019,000008776303929,24.30,SAINSBURYS 2096
OXFORDSHIRE CC,"CHILDRENS, YOUNG PEOPLE AND FAMILIES",DIDCOT MOVE-ON HOME,CATERING PROVISIONS,19/09/2019,000006604610982,24.40,SAINSBURYS SACAT 2067
OXFORDSHIRE CC,"CHILDRENS, YOUNG PEOPLE AND FAMILIES",ICT INFORMATION,IT SOFTWARE,10/09/2019,000008800225765,24.40,AXURE SOFTWARE
OXFORDSHIRE CC,ENVIRONMENT AND ECONOMY,HARD FM,HARDWARE AND CROCKERY,20/09/2019,000006610418222,24.42,JEWSON LTD
OXFORDSHIRE CC,"CHILDRENS, YOUNG PEOPLE AND FAMILIES",DIDCOT MOVE-ON HOME,CATERING PROVISIONS,02/09/2019,000008766709313,24.46,SAINSBURYS 2067
OXFORDSHIRE CC,SOCIAL AND COMMUNITY SERVICES,CSS - OXFORD,CATERING PROVISIONS,11/09/2019,000008804871129,24.55,ALDI STORES 775-142
OXFORDSHIRE CC,SOCIAL AND COMMUNITY SERVICES,CSS - DIDCOT,CATERING PROVISIONS,10/09/2019,000008800225677,24.56,LIDL GB WALLINGFORD
OXFORDSHIRE CC,"CHILDRENS, YOUNG PEOPLE AND FAMILIES","	LOOKED AFTER NORTH",VEHICLE FUEL,10/09/2019,000008800226649,24.63,W M MORRISON PETROL
OXFORDSHIRE CC,ENVIRONMENT AND ECONOMY,HARD FM,EQUIPMENT,17/09/2019,000006594363478,24.74,WILTS ELECTRICAL
OXFORDSHIRE CC,"CHILDRENS, YOUNG PEOPLE AND FAMILIES",DIDCOT MOVE-ON HOME,CATERING PROVISIONS,30/08/2019,000008759618047,24.89,TESCO STORE 2413
OXFORDSHIRE CC,"CHILDRENS, YOUNG PEOPLE AND FAMILIES",CNTL EARLY HELP-BRTN,OTHER EXPENSES,11/09/2019,000008804871303,24.95,AMZNMKTPLACE
OXFORDSHIRE CC,"CHILDRENS, YOUNG PEOPLE AND FAMILIES","	40 THE MOORS",CATERING PROVISIONS,03/09/2019,000008773367717,24.95,TESCO STORE 2788
OXFORDSHIRE CC,SOCIAL AND COMMUNITY SERVICES,SCHOOLS FM,CATERING PROVISIONS,13/09/2019,000008816587657,24.97,WAITROSE 153
OXFORDSHIRE CC,ENVIRONMENT AND ECONOMY,HARD FM,HARDWARE AND CROCKERY,10/09/2019,000008800225767,24.99,SCREWFIX OXFORD
OXFORDSHIRE CC,"CHILDRENS, YOUNG PEOPLE AND FAMILIES",CNTL ERLY HELP-BBLEY,EQUIPMENT,04/09/2019,000008776304235,24.99,PAYPAL  ALLSPARES12
OXFORDSHIRE CC,"CHILDRENS, YOUNG PEOPLE AND FAMILIES","	LOOKED AFTER CITY 1",OTHER EXPENSES,03/09/2019,000008773367529,24.99,ARGOS RETAIL GROUP
OXFORDSHIRE CC,SOCIAL AND COMMUNITY SERVICES,CSS WALLINGFORD,DRUGS AND MEDICAL SUPPLIES,18/09/2019,000006598637304,25.00,BOOTS 0456
OXFORDSHIRE CC,"CHILDRENS, YOUNG PEOPLE AND FAMILIES","	LEAVING CARE NORTH",CLOTHING AND UNIFORMS,18/09/2019,000006598638030,25.00,MATALAN
OXFORDSHIRE CC,"CHILDRENS, YOUNG PEOPLE AND FAMILIES","	LEAVING CARE NORTH",VEHICLE FUEL,10/09/2019,000008800226345,25.00,ESSO BANBURY SSTN
OXFORDSHIRE CC,"CHILDRENS, YOUNG PEOPLE AND FAMILIES",EYNSHAM,OTHER EXPENSES,05/09/2019,000008780515161,25.00,REBOUNDREVOLUTION.CO.U
OXFORDSHIRE CC,"CHILDRENS, YOUNG PEOPLE AND FAMILIES","	40 THE MOORS",MATERIALS,02/09/2019,000008766709451,25.00,J D SPORTS FASHION
OXFORDSHIRE CC,"CHILDRENS, YOUNG PEOPLE AND FAMILIES","	40 THE MOORS",CATERING PROVISIONS,02/09/2019,000008766709527,25.00,TESCO STORE 2064
OXFORDSHIRE CC,SOCIAL AND COMMUNITY SERVICES,CSS - OXFORD,CATERING PROVISIONS,04/09/2019,000008776303971,25.03,ALDI STORES 775-142
OXFORDSHIRE CC,SOCIAL AND COMMUNITY SERVICES,CSS - BANBURY,POSTAGE AND DELIVERY,25/09/2019,000006631084090,25.10,POST OFFICE COUNTER
OXFORDSHIRE CC,ENTERPRISEVC,,CAR LEASING - PRIVATE RENTALS,18/09/2019,000006598637918,25.14,ENTERPRISE RENT-A-CAR
OXFORDSHIRE CC,"CHILDRENS, YOUNG PEOPLE AND FAMILIES",FAMILY SUPPORT 2,PAYMENTS TO TRANSPORT OPERATORS,09/09/2019,000008792609661,25.20,WWW.GWR.COM
OXFORDSHIRE CC,"CHILDRENS, YOUNG PEOPLE AND FAMILIES","	FAM SUPP CITY 1",SUBSCRIPTIONS,30/08/2019,000008759617931,25.26,AMFBOWLING.CO.UK
OXFORDSHIRE CC,"CHILDRENS, YOUNG PEOPLE AND FAMILIES","	RESIDENTIAL STRATEGY",CATERING,16/09/2019,000006586223240,25.32,DOMINOS PIZZA (WIT
OXFORDSHIRE CC,"CHILDRENS, YOUNG PEOPLE AND FAMILIES","	LOOKED AFTER NORTH",VEHICLE FUEL,27/09/2019,000006643215412,25.37,ESSO BICESTER SERVICES
OXFORDSHIRE CC,"CHILDRENS, YOUNG PEOPLE AND FAMILIES","	FPT NORTH",CATERING PROVISIONS,09/09/2019,000008792609429,25.40,TESCO STORES 4480
OXFORDSHIRE CC,ENVIRONMENT AND ECONOMY,HARD FM,HARDWARE AND CROCKERY,18/09/2019,000006598636892,25.45,SCREWFIX DIDCOT
OXFORDSHIRE CC,"CHILDRENS, YOUNG PEOPLE AND FAMILIES",DIDCOT MOVE-ON HOME,CATERING PROVISIONS,29/08/2019,000008754025913,25.58,TESCO STORE 2413
OXFORDSHIRE CC,"CHILDRENS, YOUNG PEOPLE AND FAMILIES",MARKETING,MATERIALS,09/09/2019,000008792609341,25.69,AMZNMKTPLACE
OXFORDSHIRE CC,"CHILDRENS, YOUNG PEOPLE AND FAMILIES","	40 THE MOORS",HARDWARE AND CROCKERY,03/09/2019,000008773367719,25.93,OXFORD BUILDING SUPPLI
OXFORDSHIRE CC,"CHILDRENS, YOUNG PEOPLE AND FAMILIES",EYNSHAM,MATERIALS,02/09/2019,000008766709619,25.94,AMZNMKTPLACE AMAZON.CO
OXFORDSHIRE CC,"CHILDRENS, YOUNG PEOPLE AND FAMILIES",0-5 STDS & PROGRESS,"BOOKS, DVDS AND CDS",06/09/2019,000008785349271,25.96,AMAZON.CO.UK MA6RB0GV4
OXFORDSHIRE CC,"CHILDRENS, YOUNG PEOPLE AND FAMILIES","	LOOKED AFTER CITY 1",PAYMENTS TO TRANSPORT OPERATORS,09/09/2019,000008792609209,26.00,BANBURY STATION T/O
OXFORDSHIRE CC,ENVIRONMENT AND ECONOMY,LIB ICT SUPPRT&MAINT,"SUPPLIES, STATIONERY AND MATERIALS",03/09/2019,000008773367727,26.14,EB  BICS EDI FOR LIBRA
OXFORDSHIRE CC,ENTERPRISEVC,,CAR LEASING - PRIVATE RENTALS,18/09/2019,000006598637950,26.16,ENTERPRISE RENT-A-CAR
OXFORDSHIRE CC,ENTERPRISEVC,,CAR LEASING - PRIVATE RENTALS,18/09/2019,000006598638014,26.16,ENTERPRISE RENT-A-CAR
OXFORDSHIRE CC,CORPORATE CORE,,"SUPPLIES, STATIONERY AND MATERIALS",13/09/2019,000008816587895,26.64,LYRECO UK LTD
OXFORDSHIRE CC,"CHILDRENS, YOUNG PEOPLE AND FAMILIES","	MALTFIELD HOUSE",MATERIALS,09/09/2019,000008792609357,26.77,AMZNMKTPLACE AMAZON.CO
OXFORDSHIRE CC,ENVIRONMENT AND ECONOMY,"	E&I STAFF",OTHER EXPENSES,24/09/2019,000006626493118,26.80,APCOA CONNECT - FGW
OXFORDSHIRE CC,"CHILDRENS, YOUNG PEOPLE AND FAMILIES","	LOOKED AFTER NORTH",VEHICLE FUEL,27/09/2019,000006643216670,26.84,ESSO ERMONT WAY SSTN
OXFORDSHIRE CC,SOCIAL AND COMMUNITY SERVICES,"	ASSESSMENT TEAM NORT",MATERIALS,25/09/2019,000006631084024,26.99,AMAZON.CO.UK MA1HG8I84
OXFORDSHIRE CC,SOCIAL AND COMMUNITY SERVICES,CSS WITNEY,MATERIALS,12/09/2019,000008810411879,26.99,MAIDENHEAD AQUATICS
OXFORDSHIRE CC,"CHILDRENS, YOUNG PEOPLE AND FAMILIES",CSS WALLINGFORD,EDUCATIONAL AND VOCATIONAL TRAINING ,26/09/2019,000006636681838,27.00,WWW.INTENSIVEINTERACTI
OXFORDSHIRE CC,SOCIAL AND COMMUNITY SERVICES,CSS - BANBURY,EDUCATIONAL AND VOCATIONAL TRAINING ,30/08/2019,000008759617953,27.00,WWW.INTENSIVEINTERACTI
OXFORDSHIRE CC,"CHILDRENS, YOUNG PEOPLE AND FAMILIES","	LOOKED AFTER CITY 2",CATERING,19/09/2019,000006604610908,27.13,MCDONALDS
OXFORDSHIRE CC,"CHILDRENS, YOUNG PEOPLE AND FAMILIES",POST 16 SI TRADED,DISABILITY AIDS AND EQUIPMENT,09/09/2019,000008792609397,27.16,AMZNMKTPLACE AMAZON.CO
OXFORDSHIRE CC,ENVIRONMENT AND ECONOMY,HARD FM,HARDWARE AND CROCKERY,13/09/2019,000008816587587,27.17,B & Q 1156
OXFORDSHIRE CC,"CHILDRENS, YOUNG PEOPLE AND FAMILIES",EYNSHAM,CATERING PROVISIONS,09/09/2019,000008792609539,27.25,SAINSBURYS 0632
OXFORDSHIRE CC,ENVIRONMENT AND ECONOMY,"	OXFORDSHIRE MUSEUM",PAYMENTS TO TRANSPORT OPERATORS,03/09/2019,000008773367651,27.30,WWW.CHILTERNRAILWAYS.C
OXFORDSHIRE CC,ENVIRONMENT AND ECONOMY,"	OXFORDSHIRE MUSEUM",PAYMENTS TO TRANSPORT OPERATORS,03/09/2019,000008773367653,27.30,WWW.CHILTERNRAILWAYS.C
OXFORDSHIRE CC,ENVIRONMENT AND ECONOMY,"	OXFORDSHIRE MUSEUM",PAYMENTS TO TRANSPORT OPERATORS,03/09/2019,000008773367655,27.30,WWW.CHILTERNRAILWAYS.C
OXFORDSHIRE CC,"CHILDRENS, YOUNG PEOPLE AND FAMILIES","	LEAVING CARE NORTH","SUPPLIES, STATIONERY AND MATERIALS",05/09/2019,000008780515675,27.32,AMZNMKTPLACE
OXFORDSHIRE CC,"CHILDRENS, YOUNG PEOPLE AND FAMILIES","	FPT NORTH",PAYMENTS TO TRANSPORT OPERATORS,26/09/2019,000006636681970,27.40,BICESTER VIL SSTP
OXFORDSHIRE CC,"CHILDRENS, YOUNG PEOPLE AND FAMILIES",NTH EARLY HELP-BCSTR,PAYMENTS TO TRANSPORT OPERATORS,29/08/2019,000008754025939,27.40,WWW.GWR.COM
OXFORDSHIRE CC,CORPORATE CORE,"	CC TRAINING",OTHER TRAINING COURSES AND QUALIFICATION,18/09/2019,000006598637454,27.54,EB  SEMINAR PROCUREMEN
OXFORDSHIRE CC,"CHILDRENS, YOUNG PEOPLE AND FAMILIES",CSS - DIDCOT,CATERING,16/09/2019,000006586223246,27.55,CHURCHILLS
OXFORDSHIRE CC,CORPORATE CORE,"	PERSONNEL",CATERING PROVISIONS,16/09/2019,000006586223672,27.75,WAITROSE 581
OXFORDSHIRE CC,SOCIAL AND COMMUNITY SERVICES,SERVICE IMPROVEMENT,CATERING PROVISIONS,06/09/2019,000008785349021,27.75,TESCO STORE 2413
OXFORDSHIRE CC,"CHILDRENS, YOUNG PEOPLE AND FAMILIES",CNTL EARLY HELP-BRTN,OTHER EXPENSES,23/09/2019,000006618484804,27.80,AMZNMKTPLACE
OXFORDSHIRE CC,"CHILDRENS, YOUNG PEOPLE AND FAMILIES","	LOOKED AFTER NORTH",CATERING,25/09/2019,000006631083848,27.90,TABLE TABLE41013560
OXFORDSHIRE CC,"CHILDRENS, YOUNG PEOPLE AND FAMILIES",NORTH FSS- BANBURY,MATERIALS,02/09/2019,000008766709301,27.95,WWW.ARGOS.CO.UK
OXFORDSHIRE CC,SOCIAL AND COMMUNITY SERVICES,"	HISTORY SERVICE","BOOKS, DVDS AND CDS",19/09/2019,000006604610870,27.99,AMAZON.CO.UK MA7319QE4
OXFORDSHIRE CC,"CHILDRENS, YOUNG PEOPLE AND FAMILIES","	40 THE MOORS",CATERING PROVISIONS,10/09/2019,000008800226557,28.00,SAINSBURYS 0631
OXFORDSHIRE CC,SOCIAL AND COMMUNITY SERVICES,CSS - OXFORD,CATERING PROVISIONS,18/09/2019,000006598636934,28.05,ALDI STORES 775-142
OXFORDSHIRE CC,"CHILDRENS, YOUNG PEOPLE AND FAMILIES","	40 THE MOORS",CATERING,06/09/2019,000008785349249,28.11,971
OXFORDSHIRE CC,"CHILDRENS, YOUNG PEOPLE AND FAMILIES","	FAMILY SUPPORT CITY3",OTHER TRANSPORT ARRANGEMENTS,04/09/2019,000008776304175,28.30,WWW.GWR.COM
OXFORDSHIRE CC,ENVIRONMENT AND ECONOMY,V2GO,PAYMENTS TO TRANSPORT OPERATORS,13/09/2019,000008816587687,28.54,TRAINLINE.COM
OXFORDSHIRE CC,"CHILDRENS, YOUNG PEOPLE AND FAMILIES",DIDCOT MOVE-ON HOME,CATERING PROVISIONS,05/09/2019,000008780513991,28.59,SAINSBURYS SACAT 2067
OXFORDSHIRE CC,"CHILDRENS, YOUNG PEOPLE AND FAMILIES","	LOOKED AFTER CITY 1",OTHER TRANSPORT ARRANGEMENTS,30/08/2019,000008759618075,28.64,TRAINLINE.COM
OXFORDSHIRE CC,ENVIRONMENT AND ECONOMY,HARD FM,HARDWARE AND CROCKERY,03/09/2019,000008773367455,28.89,SYDENHAMS LTD
OXFORDSHIRE CC,SOCIAL AND COMMUNITY SERVICES,CSS - OXFORD,MATERIALS,26/09/2019,000006636681848,28.98,AMZNMKTPLACE
OXFORDSHIRE CC,"CHILDRENS, YOUNG PEOPLE AND FAMILIES","	LEAVING CARE NORTH",CLOTHING AND UNIFORMS,05/09/2019,000008780514781,28.98,NEW LOOK 2025
OXFORDSHIRE CC,SOCIAL AND COMMUNITY SERVICES,CSS WITNEY,MATERIALS,12/09/2019,000008810411875,29.00,MAIDENHEAD AQUATICS
OXFORDSHIRE CC,CORPORATE CORE,"	COMMUNICATIONS",PHOTOCOPYING,11/09/2019,000008804871199,29.00,STK SHUTTERSTOCK
OXFORDSHIRE CC,"CHILDRENS, YOUNG PEOPLE AND FAMILIES","	40 THE MOORS",OTHER TRANSPORT ARRANGEMENTS,29/08/2019,000008754025991,29.15,IZ  001 TAXIS OXFORD
OXFORDSHIRE CC,"CHILDRENS, YOUNG PEOPLE AND FAMILIES",CNTL EARLY HELP-BRTN,CATERING,30/08/2019,000008759618055,29.16,FRANKIE & BENNYS 5389
OXFORDSHIRE CC,ENTERPRISEVC,,CAR LEASING - PRIVATE RENTALS,18/09/2019,000006598637956,29.32,ENTERPRISE RENT-A-CAR
OXFORDSHIRE CC,ENVIRONMENT AND ECONOMY,HARD FM,GENERAL MAINTENANCE,25/09/2019,000006631083866,29.40,WOLSELEY UK
OXFORDSHIRE CC,"CHILDRENS, YOUNG PEOPLE AND FAMILIES",CNTL ERLY HELP-BBLEY,CATERING PROVISIONS,12/09/2019,000008810412623,29.40,LIDL GB OXFORD
OXFORDSHIRE CC,ENVIRONMENT AND ECONOMY,COUNTY LIBRARY,HARDWARE AND CROCKERY,24/09/2019,000006626493044,29.49,CITY PLUMBING
OXFORDSHIRE CC,ENVIRONMENT AND ECONOMY,HARD FM,HARDWARE AND CROCKERY,25/09/2019,000006631083876,29.50,WICKES OXFORD
OXFORDSHIRE CC,"CHILDRENS, YOUNG PEOPLE AND FAMILIES","	MUSIC UNALLOCABLE",VEHICLE FUEL,25/09/2019,000006631083920,29.61,SAINSBURYS OPT 0184
OXFORDSHIRE CC,SOCIAL AND COMMUNITY SERVICES,CSS - OXFORD,CATERING PROVISIONS,25/09/2019,000006631083882,29.62,ALDI STORES 775-142
OXFORDSHIRE CC,ENVIRONMENT AND ECONOMY,HARD FM,HARDWARE AND CROCKERY,30/08/2019,000008759617917,29.73,SCREWFIX OXFORD BOTLEY
OXFORDSHIRE CC,SOCIAL AND COMMUNITY SERVICES,"	PUBLIC HEALTH GENERA",HIRE OF ACCOMMODATION AND FACILITIES,18/09/2019,000006598637262,29.99,TRAVELODGE
OXFORDSHIRE CC,"CHILDRENS, YOUNG PEOPLE AND FAMILIES","	LOOKED AFTER CITY 1",SUBSCRIPTIONS,16/09/2019,000006586223438,29.99,PUREGYM LIMITED
OXFORDSHIRE CC,"CHILDRENS, YOUNG PEOPLE AND FAMILIES",EET SERVICE,PAYMENTS TO TRANSPORT OPERATORS,25/09/2019,000006631084004,30.00,NATIONAL RAILCARD
OXFORDSHIRE CC,"CHILDRENS, YOUNG PEOPLE AND FAMILIES","	LEAVING CARE CITY 2",OTHER EXPENSES,23/09/2019,000006618484720,30.00,WILKO RETAIL LIMIT
OXFORDSHIRE CC,SOCIAL AND COMMUNITY SERVICES,LEAVING CARE NORTH,CATERING PROVISIONS,23/09/2019,000006618484742,30.00,WM MORRISONS STORE
OXFORDSHIRE CC,"CHILDRENS, YOUNG PEOPLE AND FAMILIES","	LOOKED AFTER SOUTH",EDUCATIONAL AND VOCATIONAL TRAINING ,19/09/2019,000006604610724,30.00,ABINGDON AND WITNE
OXFORDSHIRE CC,"CHILDRENS, YOUNG PEOPLE AND FAMILIES","	LOOKED AFTER CITY 2",PAYMENTS TO VOLUNTARY BODIES,17/09/2019,000006594363768,30.00,ST JOHN AMBULANCE
OXFORDSHIRE CC,ENVIRONMENT AND ECONOMY,FILMING,SUBSCRIPTIONS,16/09/2019,000006586223492,30.00,PAYPAL  EVENTSINDUS
OXFORDSHIRE CC,ENVIRONMENT AND ECONOMY,DRIVEN,FURNITURE,05/09/2019,000008780514177,30.00,PAYPAL  ANNIEVERREC
OXFORDSHIRE CC,"CHILDRENS, YOUNG PEOPLE AND FAMILIES",DIDCOT MOVE-ON HOME,OTHER TRANSPORT ARRANGEMENTS,05/09/2019,000008780515329,30.00,IZ  EXECUTIVE TRAVEL
OXFORDSHIRE CC,"CHILDRENS, YOUNG PEOPLE AND FAMILIES",THAME E&A HOME,MATERIALS,04/09/2019,000008776303957,30.00,J D SPORTS
OXFORDSHIRE CC,SOCIAL AND COMMUNITY SERVICES,LOOKED AFTER NORTH,VEHICLE FUEL,25/09/2019,000006631083840,30.10,GULF FILLING STATION
OXFORDSHIRE CC,"CHILDRENS, YOUNG PEOPLE AND FAMILIES",THAME E&A HOME,CATERING PROVISIONS,30/08/2019,000008759618067,30.30,SAINSBURYS 2096
OXFORDSHIRE CC,"CHILDRENS, YOUNG PEOPLE AND FAMILIES","	LOOKED AFTER SOUTH",VEHICLE FUEL,10/09/2019,000008800226677,30.32,TESCO PAYAT PUMP 3700
OXFORDSHIRE CC,ENVIRONMENT AND ECONOMY,HARD FM,MATERIALS,12/09/2019,000008810412013,30.48,EXECUTIVE SECURITY
OXFORDSHIRE CC,"CHILDRENS, YOUNG PEOPLE AND FAMILIES",CNTL EARLY HELP-BRTN,POSTAGE AND DELIVERY,04/09/2019,000008776304177,30.50,THE POST OFFICE
OXFORDSHIRE CC,ENVIRONMENT AND ECONOMY,HARD FM,HARDWARE AND CROCKERY,27/09/2019,000006643215374,30.68,SCREWFIX BANBURY
OXFORDSHIRE CC,"CHILDRENS, YOUNG PEOPLE AND FAMILIES",NTH EARLY HELP-WITNY,MATERIALS,16/09/2019,000006586223674,30.82,AMZNMKTPLACE
OXFORDSHIRE CC,CORPORATE CORE,"	COMMUNICATIONS",MATERIALS,18/09/2019,000006598637244,30.83,AMZNMKTPLACE
OXFORDSHIRE CC,SOCIAL AND COMMUNITY SERVICES,CSS - OXFORD,MATERIALS,13/09/2019,000008816587721,30.98,AMAZON.CO.UK MA5RK98T4
OXFORDSHIRE CC,CORPORATE CORE,SCHOOLS FM,MATERIALS,09/09/2019,000008792609363,30.98,B & M RETAIL
OXFORDSHIRE CC,"CHILDRENS, YOUNG PEOPLE AND FAMILIES",FAMILY SUPPORT 2,OTHER TRANSPORT ARRANGEMENTS,19/09/2019,000006604611052,31.00,PARKCLOUD AND PARKVIA
OXFORDSHIRE CC,ENVIRONMENT AND ECONOMY,HARD FM,HARDWARE AND CROCKERY,23/09/2019,000006618484550,31.03,SCREWFIX OXFORD BOTLEY
OXFORDSHIRE CC,SOCIAL AND COMMUNITY SERVICES,CSS BICESTER,MATERIALS,30/08/2019,000008759617903,31.09,SENSORY DIRECT
OXFORDSHIRE CC,"CHILDRENS, YOUNG PEOPLE AND FAMILIES",DIDCOT MOVE-ON HOME,CATERING PROVISIONS,16/09/2019,000006586223412,31.20,SAINSBURYS SACAT 2067
OXFORDSHIRE CC,SOCIAL AND COMMUNITY SERVICES,CSS - DIDCOT,CATERING,23/09/2019,000006618484530,31.30,CHURCHILLS
OXFORDSHIRE CC,CORPORATE CORE,,"SUPPLIES, STATIONERY AND MATERIALS",02/09/2019,000008766709577,31.42,LYRECO UK LTD
OXFORDSHIRE CC,ENTERPRISEVC,,CAR LEASING - PRIVATE RENTALS,18/09/2019,000006598637982,31.49,ENTERPRISE RENT-A-CAR
OXFORDSHIRE CC,"CHILDRENS, YOUNG PEOPLE AND FAMILIES","	LOOKED AFTER CITY 2",MATERIALS,25/09/2019,000006631084008,31.50,ABINGDON SPORTS
OXFORDSHIRE CC,SOCIAL AND COMMUNITY SERVICES,CSS WITNEY,CATERING PROVISIONS,24/09/2019,000006626493272,31.55,LIDL GB  WITNEY
OXFORDSHIRE CC,ENVIRONMENT AND ECONOMY,HARD FM,HARDWARE AND CROCKERY,24/09/2019,000006626493040,31.58,SCREWFIX OXFORD BOTLEY
OXFORDSHIRE CC,SOCIAL AND COMMUNITY SERVICES,CSS - DIDCOT,CATERING,09/09/2019,000008792609175,31.60,CHURCHILLS
OXFORDSHIRE CC,ENTERPRISEVC,,CAR LEASING - PRIVATE RENTALS,25/09/2019,000006631084148,31.66,ENTERPRISE RENT-A-CAR
OXFORDSHIRE CC,"CHILDRENS, YOUNG PEOPLE AND FAMILIES",CNTL EARLY HELP-BRTN,MATERIALS,27/09/2019,000006643216394,31.70,THEWORKS.CO.UK
OXFORDSHIRE CC,SOCIAL AND COMMUNITY SERVICES,RESIDENTIAL STRATEGY,ENTERTAINMENT EXPENSES,04/09/2019,000008776303963,31.80,CINEWORLD WIT CP
OXFORDSHIRE CC,"CHILDRENS, YOUNG PEOPLE AND FAMILIES",ATV ADOPTION WOODLEY,MATERIALS,03/09/2019,000008773367415,31.87,AMZNMKTPLACE AMAZON.CO
OXFORDSHIRE CC,ENVIRONMENT AND ECONOMY,"	NATURAL ENVIRONMENT",PAYMENTS TO TRANSPORT OPERATORS,26/09/2019,000006636681964,32.00,OXFORD PARKWAY SSTP
OXFORDSHIRE CC,"CHILDRENS, YOUNG PEOPLE AND FAMILIES",HOUSE PROJECT,CLOTHING AND UNIFORMS,17/09/2019,000006594363776,32.00,TIMPSON LTD
OXFORDSHIRE CC,"CHILDRENS, YOUNG PEOPLE AND FAMILIES",ATV ADOPTION OXFORD,PAYMENTS TO TRANSPORT OPERATORS,12/09/2019,000008810412179,32.00,WWW.GWR.COM
OXFORDSHIRE CC,ENVIRONMENT AND ECONOMY,HARD FM,HARDWARE AND CROCKERY,06/09/2019,000008785349003,32.00,B & Q 1062
OXFORDSHIRE CC,ENVIRONMENT AND ECONOMY,"	NATURAL ENVIRONMENT",PAYMENTS TO TRANSPORT OPERATORS,03/09/2019,000008773367593,32.00,OXFORD PARKWAY SSTP
OXFORDSHIRE CC,SOCIAL AND COMMUNITY SERVICES,ADULT SERVICES IMPROVEMENT BOARD,CATERING PROVISIONS,03/09/2019,000008773367485,32.00,MARKS&SPENCER PLC
OXFORDSHIRE CC,"CHILDRENS, YOUNG PEOPLE AND FAMILIES",MANAGEMENT,PAYMENTS TO TRANSPORT OPERATORS,30/08/2019,000008759617949,32.00,TRAINLINE
OXFORDSHIRE CC,SOCIAL AND COMMUNITY SERVICES,DIDCOT MOVE-ON HOME,CATERING PROVISIONS,25/09/2019,000006631083926,32.18,SAINSBURYS 2067
OXFORDSHIRE CC,SOCIAL AND COMMUNITY SERVICES,DIDCOT MOVE-ON HOME,CATERING PROVISIONS,09/09/2019,000008792609263,32.38,TESCO STORE 2413
OXFORDSHIRE CC,CORPORATE CORE,SCHOOLS FM,CATERING PROVISIONS,27/09/2019,000006643215772,32.45,TESCO STORE 2413
OXFORDSHIRE CC,"CHILDRENS, YOUNG PEOPLE AND FAMILIES","	40 THE MOORS",MATERIALS,17/09/2019,000006594363580,32.72,HOBBYCRAFT
OXFORDSHIRE CC,ENVIRONMENT AND ECONOMY,HARD FM,HARDWARE AND CROCKERY,20/09/2019,000006610418220,32.85,B & Q 1176
OXFORDSHIRE CC,"CHILDRENS, YOUNG PEOPLE AND FAMILIES",PANEL COSTS,CATERING PROVISIONS,12/09/2019,000008810412123,33.10,MARKS&SPENCER PLC SF
OXFORDSHIRE CC,ENVIRONMENT AND ECONOMY,HARD FM,MATERIALS,11/09/2019,000008804871119,33.13,TOOLSTATION LTD
OXFORDSHIRE CC,CORPORATE CORE,HUNTERCOMBE PRISON,"BOOKS, DVDS AND CDS",03/09/2019,000008773367587,33.22,AMAZON.CO.UK MA07X43R4
OXFORDSHIRE CC,CORPORATE CORE,,"SUPPLIES, STATIONERY AND MATERIALS",10/09/2019,000008800226665,33.26,LYRECO UK LTD
OXFORDSHIRE CC,SOCIAL AND COMMUNITY SERVICES,"	PUBLIC HEALTH GENERA",PAYMENTS TO TRANSPORT OPERATORS,13/09/2019,000008816587693,33.32,TRAINLINE.COM
OXFORDSHIRE CC,"CHILDRENS, YOUNG PEOPLE AND FAMILIES",ATV ADOPTION WOODLEY,"BOOKS, DVDS AND CDS",20/09/2019,000006610418162,33.55,THE BOOK PEOPLE
OXFORDSHIRE CC,ENVIRONMENT AND ECONOMY,S38 INSPECT & OTHER,PAYMENTS TO TRANSPORT OPERATORS,10/09/2019,000008800225999,33.60,WWW.GWR.COM
OXFORDSHIRE CC,"CHILDRENS, YOUNG PEOPLE AND FAMILIES","	40 THE MOORS",CLOTHING AND UNIFORMS,09/09/2019,000008792609447,33.98,NEW LOOK INTERNET
OXFORDSHIRE CC,"CHILDRENS, YOUNG PEOPLE AND FAMILIES","	LOOKED AFTER SOUTH",VEHICLE FUEL,18/09/2019,000006598637268,34.00,ASDA F/STN HARTLEPOOL
OXFORDSHIRE CC,"CHILDRENS, YOUNG PEOPLE AND FAMILIES",FAMILY SUPPORT 2,PAYMENTS TO TRANSPORT OPERATORS,27/09/2019,000006643216590,34.20,WWW.GWR.COM
OXFORDSHIRE CC,"CHILDRENS, YOUNG PEOPLE AND FAMILIES",MANAGEMENT,CATERING PROVISIONS,30/08/2019,000008759617951,34.21,WAITROSE 581
OXFORDSHIRE CC,ENVIRONMENT AND ECONOMY,HARD FM,HARDWARE AND CROCKERY,23/09/2019,000006618484552,34.28,SCREWFIX OXFORD
OXFORDSHIRE CC,"CHILDRENS, YOUNG PEOPLE AND FAMILIES","	RESIDENTIAL STRATEGY",CATERING PROVISIONS,02/09/2019,000008766709233,34.30,TESCO STORE 2788
OXFORDSHIRE CC,ENVIRONMENT AND ECONOMY,COUNTY LIBRARY,GENERAL MAINTENANCE,30/08/2019,000008759617921,34.34,WOLSELEY UK
OXFORDSHIRE CC,"CHILDRENS, YOUNG PEOPLE AND FAMILIES","	NCS",CATERING PROVISIONS,09/09/2019,000008792609647,34.79,OXFORD BROOKES STORE
OXFORDSHIRE CC,"CHILDRENS, YOUNG PEOPLE AND FAMILIES","	MUSIC UNALLOCABLE",VEHICLE FUEL,09/09/2019,000008792609317,34.87,TESCO PAYAT PUMP 3700
OXFORDSHIRE CC,"CHILDRENS, YOUNG PEOPLE AND FAMILIES",FAMILY SUPPORT 2,MATERIALS,19/09/2019,000006604611046,34.95,MOTHERCARE DIRECT-E-CO
OXFORDSHIRE CC,ENVIRONMENT AND ECONOMY,HARD FM,HARDWARE AND CROCKERY,09/09/2019,000008792609211,34.99,SCREWFIX OXFORD BOTLEY
OXFORDSHIRE CC,SOCIAL AND COMMUNITY SERVICES,CSS BICESTER,CATERING PROVISIONS,16/09/2019,000006586223324,35.00,SAINSBURYS
OXFORDSHIRE CC,SOCIAL AND COMMUNITY SERVICES,ADMIN SUPPORT CITY,OTHER TRAINING COURSES AND QUALIFICATION,05/09/2019,000008780513733,35.00,SOBELL HOUSE
OXFORDSHIRE CC,"CHILDRENS, YOUNG PEOPLE AND FAMILIES","	40 THE MOORS",TELEPHONE - EQUIPMENT,02/09/2019,000008766709531,35.00,WWW.THREE.CO.UK
OXFORDSHIRE CC,SOCIAL AND COMMUNITY SERVICES,LOOKED AFTER NORTH,VEHICLE FUEL,16/09/2019,000006586223172,35.44,ESSO BAYNARDS GN SSTN
OXFORDSHIRE CC,"CHILDRENS, YOUNG PEOPLE AND FAMILIES","	LOOKED AFTER NORTH",VEHICLE FUEL,30/08/2019,000008759618061,35.52,ESSO ERMONT WAY SSTN
OXFORDSHIRE CC,SOCIAL AND COMMUNITY SERVICES,CSS - DIDCOT,CATERING,02/09/2019,000008766709225,35.55,CHURCHILLS
OXFORDSHIRE CC,"CHILDRENS, YOUNG PEOPLE AND FAMILIES","	40 THE MOORS",MATERIALS,18/09/2019,000006598637482,35.67,AMZNMKTPLACE
OXFORDSHIRE CC,"CHILDRENS, YOUNG PEOPLE AND FAMILIES",CSS WALLINGFORD,CATERING PROVISIONS,09/09/2019,000008792609143,35.90,WAITROSE 675
OXFORDSHIRE CC,"CHILDRENS, YOUNG PEOPLE AND FAMILIES","	LEAVING CARE CITY 2","SUPPLIES, STATIONERY AND MATERIALS",18/09/2019,000006598637412,35.98,SCREWFIX OXFORD
OXFORDSHIRE CC,"CHILDRENS, YOUNG PEOPLE AND FAMILIES","	MUSIC UNALLOCABLE",MATERIALS,12/09/2019,000008810412117,35.99,AMZNMKTPLACE
OXFORDSHIRE CC,CORPORATE CORE,"	PERSONNEL",TRAINING RELATED EXPENDITURE,12/09/2019,000008810412325,36.00,WWW.OXFORSHIREMIND.ORG
OXFORDSHIRE CC,"CHILDRENS, YOUNG PEOPLE AND FAMILIES",THAME E&A HOME,CATERING,09/09/2019,000008792609253,36.00,GRAND PIER LTD
OXFORDSHIRE CC,"CHILDRENS, YOUNG PEOPLE AND FAMILIES","	SM QUALITY ASSURANCE",HIRE OF ACCOMMODATION AND FACILITIES,30/08/2019,000008759617907,36.00,PREMIER INN
OXFORDSHIRE CC,"CHILDRENS, YOUNG PEOPLE AND FAMILIES","	LOOKED AFTER CITY 1",VEHICLE FUEL,17/09/2019,000006594363610,36.04,SAINSBURYS PFS1067
OXFORDSHIRE CC,CORPORATE CORE,SCHOOLS FM,CATERING PROVISIONS,10/09/2019,000008800226053,36.20,SAINSBURYS 2067
OXFORDSHIRE CC,"CHILDRENS, YOUNG PEOPLE AND FAMILIES","	DIRECTOR'S OFFICE",PAYMENTS TO TRANSPORT OPERATORS,29/08/2019,000008754026061,36.22,TRAINLINE
OXFORDSHIRE CC,ENVIRONMENT AND ECONOMY,HARD FM,HARDWARE AND CROCKERY,17/09/2019,000006594363474,36.33,TRAVIS PERKINS
OXFORDSHIRE CC,CORPORATE CORE,,"SUPPLIES, STATIONERY AND MATERIALS",27/09/2019,000006643216514,36.35,LYRECO UK LTD
OXFORDSHIRE CC,SOCIAL AND COMMUNITY SERVICES,CSS WITNEY,MATERIALS,10/09/2019,000008800226415,36.35,AMAZON.CO.UK MA0EH9M84
OXFORDSHIRE CC,ENTERPRISEVC,VOXY,CATERING PROVISIONS,19/09/2019,000006604610800,36.40,ART CAFE
OXFORDSHIRE CC,"CHILDRENS, YOUNG PEOPLE AND FAMILIES","	40 THE MOORS",CATERING PROVISIONS,02/09/2019,000008766709525,36.49,TESCO STORE 2064
OXFORDSHIRE CC,SOCIAL AND COMMUNITY SERVICES,CSS WALLINGFORD,MATERIALS,13/09/2019,000008816587631,36.50,KERI THE FLORIST
OXFORDSHIRE CC,"CHILDRENS, YOUNG PEOPLE AND FAMILIES","	LOOKED AFTER CITY 2",PAYMENTS TO TRANSPORT OPERATORS,12/09/2019,000008810412303,36.65,GWR OXFORD SST
OXFORDSHIRE CC,"CHILDRENS, YOUNG PEOPLE AND FAMILIES",THAME E&A HOME,CATERING PROVISIONS,04/09/2019,000008776303953,36.80,ASDA STORE 4442
OXFORDSHIRE CC,"CHILDRENS, YOUNG PEOPLE AND FAMILIES",CNTL EARLY HELP-BRTN,OTHER EXPENSES,11/09/2019,000008804871305,36.94,AMZNMKTPLACE
OXFORDSHIRE CC,ENVIRONMENT AND ECONOMY,CENTRAL LIBRARY,MATERIALS,13/09/2019,000008816587833,36.96,AMZNMKTPLACE
OXFORDSHIRE CC,"CHILDRENS, YOUNG PEOPLE AND FAMILIES","	LOOKED AFTER CITY 1",ENTERTAINMENT EXPENSES,30/08/2019,000008759617963,37.00,COTSWOLD WILDLIFE PARK
OXFORDSHIRE CC,"CHILDRENS, YOUNG PEOPLE AND FAMILIES",DIDCOT MOVE-ON HOME,CATERING PROVISIONS,30/08/2019,000008759618045,37.15,TESCO STORE 2413
OXFORDSHIRE CC,"CHILDRENS, YOUNG PEOPLE AND FAMILIES",THAME E&A HOME,CATERING,18/09/2019,000006598636900,37.37,DOMINOS PIZZA UK & IRE
OXFORDSHIRE CC,ENVIRONMENT AND ECONOMY,HARD FM,HARDWARE AND CROCKERY,27/09/2019,000006643215342,37.48,SCREWFIX OXFORD BOTLEY
OXFORDSHIRE CC,SOCIAL AND COMMUNITY SERVICES,"	MUSEUMS COLLECTIONS",OTHER SERVICES,03/09/2019,000008773367665,37.48,B & Q 1176
OXFORDSHIRE CC,SOCIAL AND COMMUNITY SERVICES,PMO CHANGE TEAM,PAYMENTS TO TRANSPORT OPERATORS,16/09/2019,000006586223788,37.60,WWW.GWR.COM
OXFORDSHIRE CC,SOCIAL AND COMMUNITY SERVICES,PMO CHANGE TEAM,PAYMENTS TO TRANSPORT OPERATORS,16/09/2019,000006586223790,37.60,WWW.GWR.COM
OXFORDSHIRE CC,SOCIAL AND COMMUNITY SERVICES,PA TEAM,PAYMENTS TO TRANSPORT OPERATORS,16/09/2019,000006586223792,37.60,WWW.GWR.COM
OXFORDSHIRE CC,SOCIAL AND COMMUNITY SERVICES,PA TEAM,PAYMENTS TO TRANSPORT OPERATORS,16/09/2019,000006586223794,37.60,WWW.GWR.COM
OXFORDSHIRE CC,SOCIAL AND COMMUNITY SERVICES,PA TEAM,PAYMENTS TO TRANSPORT OPERATORS,16/09/2019,000006586223796,37.60,WWW.GWR.COM
OXFORDSHIRE CC,ENVIRONMENT AND ECONOMY,SUMMERTOWN LIBRARY,"NEWSPAPERS, PERIODICALS AND PUBLICATIONS",12/09/2019,000008810412521,37.80,TIM'S NEWSAGENT
OXFORDSHIRE CC,"CHILDRENS, YOUNG PEOPLE AND FAMILIES","	RIVERSIDE CENTRE",MATERIALS,02/09/2019,000008766709283,37.98,WWW.SPORTSSHOES.COM
OXFORDSHIRE CC,ENVIRONMENT AND ECONOMY,HARD FM,MATERIALS,27/09/2019,000006643215360,38.00,EXECUTIVE SECURITY
OXFORDSHIRE CC,"CHILDRENS, YOUNG PEOPLE AND FAMILIES","	FAMILY SUPPORT S'TH2",PAYMENT TO GOVERNMENT DEPARTMENTS,18/09/2019,000006598637134,38.00,VALE OF WHITEHORSE
OXFORDSHIRE CC,CORPORATE CORE,"	PERSONNEL",PAYMENTS TO TRANSPORT OPERATORS,25/09/2019,000006631083910,38.05,WWW.GWR.COM
OXFORDSHIRE CC,CORPORATE CORE,"	ORGANISATIONAL DEV'T",PAYMENTS TO TRANSPORT OPERATORS,25/09/2019,000006631083998,38.05,WWW.GWR.COM
OXFORDSHIRE CC,CORPORATE CORE,"	ORGANISATIONAL DEV'T",PAYMENTS TO TRANSPORT OPERATORS,03/09/2019,000008773367623,38.05,WWW.GWR.COM
OXFORDSHIRE CC,ENVIRONMENT AND ECONOMY,HARD FM,HARDWARE AND CROCKERY,24/09/2019,000006626493032,38.48,SCREWFIX BANBURY
OXFORDSHIRE CC,ENVIRONMENT AND ECONOMY,"	COUNTY PRINT FINSHRS",CATERING PROVISIONS,05/09/2019,000008780513701,38.65,WAITROSE 581
OXFORDSHIRE CC,"CHILDRENS, YOUNG PEOPLE AND FAMILIES","	LOOKED AFTER CITY 1",VEHICLE FUEL,02/09/2019,000008766709345,38.75,SHELL COWLEY
OXFORDSHIRE CC,"CHILDRENS, YOUNG PEOPLE AND FAMILIES","	LOOKED AFTER NORTH",CLOTHING AND UNIFORMS,25/09/2019,000006631083878,38.99,PRETTYLITTLETHING.COM
OXFORDSHIRE CC,"CHILDRENS, YOUNG PEOPLE AND FAMILIES",CNTL EARLY HELP-RHIL,MATERIALS,23/09/2019,000006618484880,39.00,UNIQUE CREATIONS
OXFORDSHIRE CC,ENVIRONMENT AND ECONOMY,HARD FM,EQUIPMENT,16/09/2019,000006586223300,39.39,WILTS ELECTRICAL
OXFORDSHIRE CC,CORPORATE CORE,SCHOOLS FM,CATERING PROVISIONS,06/09/2019,000008785349119,39.50,SAINSBURYS 2067
OXFORDSHIRE CC,SOCIAL AND COMMUNITY SERVICES,CSS - BANBURY,MATERIALS,24/09/2019,000006626493156,39.62,HOBBYCRAFT
OXFORDSHIRE CC,"CHILDRENS, YOUNG PEOPLE AND FAMILIES","	40 THE MOORS",CATERING,09/09/2019,000008792609445,39.77,DOMINOS PIZZA
OXFORDSHIRE CC,"CHILDRENS, YOUNG PEOPLE AND FAMILIES",THAME E&A HOME,SUBSCRIPTIONS,09/09/2019,000008792609243,39.95,AMF BOWLING
OXFORDSHIRE CC,ENVIRONMENT AND ECONOMY,CENTRAL LIBRARY,MATERIALS,16/09/2019,000006586223734,39.98,ARGOS LTD
OXFORDSHIRE CC,ENVIRONMENT AND ECONOMY,KIDLINGTON LIBRARY,HARDWARE AND CROCKERY,16/09/2019,000006586223732,39.99,SCREWFIX DIRECT
OXFORDSHIRE CC,"CHILDRENS, YOUNG PEOPLE AND FAMILIES","	LOOKED AFTER NORTH",CATERING PROVISIONS,29/08/2019,000008754026027,39.99,T K MAXX LTD
OXFORDSHIRE CC,CORPORATE CORE,"	ORGANISATIONAL DEV'T",PAYMENTS TO TRANSPORT OPERATORS,27/09/2019,000006643215956,40.00,WWW.GWR.COM
OXFORDSHIRE CC,CORPORATE CORE,"	ORGANISATIONAL DEV'T",PAYMENTS TO TRANSPORT OPERATORS,27/09/2019,000006643215962,40.00,WWW.GWR.COM
OXFORDSHIRE CC,"CHILDRENS, YOUNG PEOPLE AND FAMILIES",ATV ADOPTION WOODLEY,PAYMENTS TO VOLUNTARY BODIES,23/09/2019,000006618484514,40.00,PAYPAL  OXPIP
OXFORDSHIRE CC,"CHILDRENS, YOUNG PEOPLE AND FAMILIES","	LEAVING CARE NORTH",CATERING PROVISIONS,20/09/2019,000006610418392,40.00,CO-OPERATIVE FOOD
OXFORDSHIRE CC,"CHILDRENS, YOUNG PEOPLE AND FAMILIES","	HOME SUPPORT",IT SOFTWARE,04/09/2019,000008776304217,40.00,SOUNDWORKS
OXFORDSHIRE CC,"CHILDRENS, YOUNG PEOPLE AND FAMILIES","	40 THE MOORS",OTHER TRANSPORT ARRANGEMENTS,02/09/2019,000008766709447,40.00,SUMUP   COWLEY CHAUFFE
OXFORDSHIRE CC,"CHILDRENS, YOUNG PEOPLE AND FAMILIES","	40 THE MOORS",OTHER TRANSPORT ARRANGEMENTS,30/08/2019,000008759618013,40.00,IZ  BLACK AND WHITE CA
OXFORDSHIRE CC,"CHILDRENS, YOUNG PEOPLE AND FAMILIES",EYNSHAM,DAY ACTIVITIES,29/08/2019,000008754025947,40.00,PICSOLVE INTERNATIONAL
OXFORDSHIRE CC,ENVIRONMENT AND ECONOMY,HARD FM,MATERIALS,16/09/2019,000006586223302,40.02,TOOLSTATION LTD
OXFORDSHIRE CC,"CHILDRENS, YOUNG PEOPLE AND FAMILIES",CNTL EARLY HELP-BRTN,VEHICLE FUEL,19/09/2019,000006604610994,40.20,MRH CHERWELL FILLING S
OXFORDSHIRE CC,SOCIAL AND COMMUNITY SERVICES,LOOKED AFTER NORTH,VEHICLE FUEL,13/09/2019,000008816587551,40.35,TESCO PAY AT PUMP 4267
OXFORDSHIRE CC,"CHILDRENS, YOUNG PEOPLE AND FAMILIES","	LOOKED AFTER CITY 1",VEHICLE FUEL,23/09/2019,000006618484658,40.70,ASDA PETROL/UPT
OXFORDSHIRE CC,"CHILDRENS, YOUNG PEOPLE AND FAMILIES","	RESIDENTIAL STRATEGY",CATERING PROVISIONS,16/09/2019,000006586223238,40.70,SAINSBURYS 0631
OXFORDSHIRE CC,"CHILDRENS, YOUNG PEOPLE AND FAMILIES",FAMILY SUPPORT 2,PAYMENTS TO TRANSPORT OPERATORS,03/09/2019,000008773367777,40.80,WWW.GWR.COM
OXFORDSHIRE CC,"CHILDRENS, YOUNG PEOPLE AND FAMILIES",THAME E&A HOME,CATERING,12/09/2019,000008810412005,40.90,JUST EAT
OXFORDSHIRE CC,SOCIAL AND COMMUNITY SERVICES,SCHOOLS FM,CATERING PROVISIONS,20/09/2019,000006610418322,40.94,SAINSBURYS 0745
OXFORDSHIRE CC,"CHILDRENS, YOUNG PEOPLE AND FAMILIES",CNTL ERLY HELP-BBLEY,HARDWARE AND CROCKERY,24/09/2019,000006626493372,40.96,SCREWFIX DIRECT
OXFORDSHIRE CC,"CHILDRENS, YOUNG PEOPLE AND FAMILIES","	LEAVING CARE NORTH",MOTOR IF OWN DAMAGE,03/09/2019,000008773367557,40.99,SAINSBURYS 0638
OXFORDSHIRE CC,"CHILDRENS, YOUNG PEOPLE AND FAMILIES",ICT INFORMATION,MATERIALS,30/08/2019,000008759617919,41.02,GOOGLE  CLOUD_01D722-8
OXFORDSHIRE CC,SOCIAL AND COMMUNITY SERVICES,"	MUSEUMS COLLECTIONS",PAYMENTS TO TRANSPORT OPERATORS,19/09/2019,000006604610834,41.06,TRAINLINE
OXFORDSHIRE CC,CORPORATE CORE,SCHOOLS FM,CATERING PROVISIONS,06/09/2019,000008785349117,41.12,SAINSBURYS SACAT 0600
OXFORDSHIRE CC,SOCIAL AND COMMUNITY SERVICES,"	PUBLIC HEALTH GENERA",PAYMENTS TO TRANSPORT OPERATORS,13/09/2019,000008816587691,41.21,TRAINLINE
OXFORDSHIRE CC,ENVIRONMENT AND ECONOMY,HARD FM,HARDWARE AND CROCKERY,20/09/2019,000006610418226,41.23,CITY PLUMBING
OXFORDSHIRE CC,"CHILDRENS, YOUNG PEOPLE AND FAMILIES","	FAM SUPP CITY 1",CATERING PROVISIONS,17/09/2019,000006594363736,41.58,MILK&MORE
OXFORDSHIRE CC,ENVIRONMENT AND ECONOMY,"	BUSINESS SYST STAFF",PAYMENTS TO TRANSPORT OPERATORS,26/09/2019,000006636682030,41.75,GWR DIDCOT PKWY TO
OXFORDSHIRE CC,ENVIRONMENT AND ECONOMY,"	BUSINESS SYST STAFF",PAYMENTS TO TRANSPORT OPERATORS,17/09/2019,000006594363742,41.75,GWR DIDCOT PKWY TO
OXFORDSHIRE CC,ENVIRONMENT AND ECONOMY,"	BUSINESS SYST STAFF",PAYMENTS TO TRANSPORT OPERATORS,12/09/2019,000008810412459,41.75,GWR DIDCOT PKWY TO
OXFORDSHIRE CC,SOCIAL AND COMMUNITY SERVICES,CSS WANTAGE,MATERIALS,03/09/2019,000008773367685,41.90,SAINSBURYS SACAT 2244
OXFORDSHIRE CC,CORPORATE CORE,MOTOR FLEET,MOTOR IF FEES,26/09/2019,000006636682062,42.00,SIDNEY H HOOPER & COMP
OXFORDSHIRE CC,"CHILDRENS, YOUNG PEOPLE AND FAMILIES",FAMILY SUPPORT 2,PAYMENTS TO TRANSPORT OPERATORS,16/09/2019,000006586223878,42.00,WWW.GWR.COM
OXFORDSHIRE CC,"CHILDRENS, YOUNG PEOPLE AND FAMILIES",FAMILY SUPPORT 2,PAYMENTS TO TRANSPORT OPERATORS,03/09/2019,000008773367775,42.00,WWW.GWR.COM
OXFORDSHIRE CC,"CHILDRENS, YOUNG PEOPLE AND FAMILIES",EET SERVICE,MATERIALS,30/08/2019,000008759617997,42.25,MAILCHIMP    MONTHLY
OXFORDSHIRE CC,"CHILDRENS, YOUNG PEOPLE AND FAMILIES",THAME E&A HOME,CATERING PROVISIONS,10/09/2019,000008800225839,42.30,TESCO STORE 2994
OXFORDSHIRE CC,"CHILDRENS, YOUNG PEOPLE AND FAMILIES",FAMILY SUPPORT 2,PAYMENTS TO TRANSPORT OPERATORS,23/09/2019,000006618484910,42.60,WWW.GWR.COM
OXFORDSHIRE CC,ENTERPRISEVC,,CAR LEASING - PRIVATE RENTALS,25/09/2019,000006631084158,42.65,ENTERPRISE RENT-A-CAR
OXFORDSHIRE CC,"CHILDRENS, YOUNG PEOPLE AND FAMILIES",ATV ADOPTION WOODLEY,MATERIALS,09/09/2019,000008792609173,42.65,AMZNMKTPLACE
OXFORDSHIRE CC,ENTERPRISEVC,,CAR LEASING - PRIVATE RENTALS,18/09/2019,000006598637878,42.96,ENTERPRISE RENT-A-CAR
OXFORDSHIRE CC,ENTERPRISEVC,,CAR LEASING - PRIVATE RENTALS,18/09/2019,000006598637892,42.96,ENTERPRISE RENT-A-CAR
OXFORDSHIRE CC,ENTERPRISEVC,,CAR LEASING - PRIVATE RENTALS,18/09/2019,000006598637962,42.96,ENTERPRISE RENT-A-CAR
OXFORDSHIRE CC,ENTERPRISEVC,,CAR LEASING - PRIVATE RENTALS,18/09/2019,000006598637964,42.96,ENTERPRISE RENT-A-CAR
OXFORDSHIRE CC,ENVIRONMENT AND ECONOMY,COUNTY LIBRARY,GENERAL MAINTENANCE,29/08/2019,000008754025893,42.98,WOLSELEY UK
OXFORDSHIRE CC,SOCIAL AND COMMUNITY SERVICES,CSS WANTAGE,MATERIALS,23/09/2019,000006618484490,42.99,BAKER ROSS
OXFORDSHIRE CC,ENTERPRISEVC,,CAR LEASING - PRIVATE RENTALS,18/09/2019,000006598637924,43.18,ENTERPRISE RENT-A-CAR
OXFORDSHIRE CC,ENTERPRISEVC,,CAR LEASING - PRIVATE RENTALS,18/09/2019,000006598637938,43.18,ENTERPRISE RENT-A-CAR
OXFORDSHIRE CC,"CHILDRENS, YOUNG PEOPLE AND FAMILIES","	LOOKED AFTER CITY 2",VEHICLE FUEL,12/09/2019,000008810412047,43.20,MRH COWLEY SERVICE ST
OXFORDSHIRE CC,"CHILDRENS, YOUNG PEOPLE AND FAMILIES","	LOOKED AFTER NORTH",REGISTRATION AND INSPECTION FEES,20/09/2019,000006610418406,44.00,OXFORDSHIRE CC MOTO1
OXFORDSHIRE CC,ENVIRONMENT AND ECONOMY,HARD FM,EQUIPMENT,17/09/2019,000006594363472,44.14,WILTS ELECTRICAL
OXFORDSHIRE CC,SOCIAL AND COMMUNITY SERVICES,CSS - BANBURY,CATERING PROVISIONS,19/09/2019,000006604610868,44.37,SAINSBURYS TO YOU 0642
OXFORDSHIRE CC,"CHILDRENS, YOUNG PEOPLE AND FAMILIES","	LOOKED AFTER CITY 2",CATERING PROVISIONS,16/09/2019,000006586223828,44.46,TESCO STORES 6338
OXFORDSHIRE CC,ENVIRONMENT AND ECONOMY,DRIVEN,CATERING PROVISIONS,11/09/2019,000008804871191,44.50,MARKS&SPENCER PLC
OXFORDSHIRE CC,SOCIAL AND COMMUNITY SERVICES,CSS WANTAGE,CATERING PROVISIONS,17/09/2019,000006594363700,44.55,SAINSBURYS 2244
OXFORDSHIRE CC,ENTERPRISEVC,VOXY,CATERING,13/09/2019,000008816587629,44.68,WWW.DOMINOS.CO.UK
OXFORDSHIRE CC,ENVIRONMENT AND ECONOMY,HARD FM,EQUIPMENT,05/09/2019,000008780513643,44.93,WILTS ELECTRICAL
OXFORDSHIRE CC,ENVIRONMENT AND ECONOMY,HARD FM,HARDWARE AND CROCKERY,29/08/2019,000008754025885,44.97,SCREWFIX OXFORD
OXFORDSHIRE CC,"CHILDRENS, YOUNG PEOPLE AND FAMILIES","	RIVERSIDE CENTRE",EDUCATIONAL AND VOCATIONAL TRAINING ,17/09/2019,000006594363512,45.00,PAYPAL  MUDDYFEETTR
OXFORDSHIRE CC,"CHILDRENS, YOUNG PEOPLE AND FAMILIES",FAMILY SUPPORT 2,PAYMENTS TO TRANSPORT OPERATORS,17/09/2019,000006594363820,45.00,WWW.GWR.COM
OXFORDSHIRE CC,ENVIRONMENT AND ECONOMY,HARD FM,EDUCATIONAL AND VOCATIONAL TRAINING ,05/09/2019,000008780513611,45.00,GAS LOGIC LTD
OXFORDSHIRE CC,"CHILDRENS, YOUNG PEOPLE AND FAMILIES",NORTH FSS- BANBURY,MATERIALS,02/09/2019,000008766709299,45.00,WWW.ARGOS.CO.UK
OXFORDSHIRE CC,"CHILDRENS, YOUNG PEOPLE AND FAMILIES",CNTL EARLY HELP-BRTN,CLOTHING AND UNIFORMS,30/08/2019,000008759618031,45.00,ASDA STORE 4442
OXFORDSHIRE CC,ENVIRONMENT AND ECONOMY,HARD FM,EDUCATIONAL AND VOCATIONAL TRAINING ,30/08/2019,000008759617911,45.00,GAS LOGIC LTD
OXFORDSHIRE CC,"CHILDRENS, YOUNG PEOPLE AND FAMILIES","	LOOKED AFTER CITY 2",OTHER EXPENSES,30/08/2019,000008759617991,45.00,WINDSOR CARLTON
OXFORDSHIRE CC,"CHILDRENS, YOUNG PEOPLE AND FAMILIES","	SM QUALITY ASSURANCE",PAYMENTS TO TRANSPORT OPERATORS,23/09/2019,000006618484540,45.01,HOTELSCOM8065200517756
OXFORDSHIRE CC,SOCIAL AND COMMUNITY SERVICES,"	MUSEUMS COLLECTIONS","SUPPLIES, STATIONERY AND MATERIALS",10/09/2019,000008800225981,45.03,EB  SEMFED STUDY DAY-L
OXFORDSHIRE CC,ENVIRONMENT AND ECONOMY,"	NAT TRAILS GENERAL",CATERING PROVISIONS,13/09/2019,000008816587571,45.44,ALDI 77 775
OXFORDSHIRE CC,SOCIAL AND COMMUNITY SERVICES,CSS WALLINGFORD,MATERIALS,27/09/2019,000006643215778,45.50,THE WORKS
OXFORDSHIRE CC,CORPORATE CORE,,"SUPPLIES, STATIONERY AND MATERIALS",12/09/2019,000008810412573,45.60,LYRECO UK LTD
OXFORDSHIRE CC,CORPORATE CORE,,"SUPPLIES, STATIONERY AND MATERIALS",12/09/2019,000008810412577,45.60,LYRECO UK LTD
OXFORDSHIRE CC,CORPORATE CORE,,"SUPPLIES, STATIONERY AND MATERIALS",12/09/2019,000008810412589,45.60,LYRECO UK LTD
OXFORDSHIRE CC,CORPORATE CORE,,"SUPPLIES, STATIONERY AND MATERIALS",12/09/2019,000008810412591,45.60,LYRECO UK LTD
OXFORDSHIRE CC,"CHILDRENS, YOUNG PEOPLE AND FAMILIES",THAME E&A HOME,CATERING,18/09/2019,000006598636964,45.68,DOMINOS PIZZA UK & IRE
OXFORDSHIRE CC,"CHILDRENS, YOUNG PEOPLE AND FAMILIES","	LOOKED AFTER CITY 2",PAYMENTS TO TRANSPORT OPERATORS,09/09/2019,000008792609611,45.70,GWR OXFORD TO
OXFORDSHIRE CC,"CHILDRENS, YOUNG PEOPLE AND FAMILIES","	FPT NORTH",CATERING PROVISIONS,09/09/2019,000008792609427,45.86,TESCO STORES 4480
OXFORDSHIRE CC,"CHILDRENS, YOUNG PEOPLE AND FAMILIES",THAME E&A HOME,HARDWARE AND CROCKERY,05/09/2019,000008780513287,45.98,HADDENHAM GARDEN CEN L
OXFORDSHIRE CC,"CHILDRENS, YOUNG PEOPLE AND FAMILIES","	LOOKED AFTER CITY 1",VEHICLE FUEL,29/08/2019,000008754025959,46.04,TESCO PAY AT PUMP 3968
OXFORDSHIRE CC,ENTERPRISEVC,,CAR LEASING - PRIVATE RENTALS,18/09/2019,000006598637884,46.12,ENTERPRISE RENT-A-CAR
OXFORDSHIRE CC,ENTERPRISEVC,,CAR LEASING - PRIVATE RENTALS,18/09/2019,000006598637946,46.12,ENTERPRISE RENT-A-CAR
OXFORDSHIRE CC,"CHILDRENS, YOUNG PEOPLE AND FAMILIES","	LEAVING CARE CITY 2",VEHICLE FUEL,06/09/2019,000008785349177,46.64,TESCO PAYAT PUMP 3700
OXFORDSHIRE CC,"CHILDRENS, YOUNG PEOPLE AND FAMILIES","	MUSIC UNALLOCABLE",PRINTING,06/09/2019,000008785349071,46.77,VISTAPR VISTAPRINT.COM
OXFORDSHIRE CC,ENTERPRISEVC,,CAR LEASING - PRIVATE RENTALS,18/09/2019,000006598637910,46.85,ENTERPRISE RENT-A-CAR
OXFORDSHIRE CC,"CHILDRENS, YOUNG PEOPLE AND FAMILIES","	PHYSICAL DISABILITY",DISABILITY AIDS AND EQUIPMENT,11/09/2019,000008804871201,46.95,PAYPAL  DEUBAGMBHCO
OXFORDSHIRE CC,"CHILDRENS, YOUNG PEOPLE AND FAMILIES","	LOOKED AFTER CITY 2",HIRE OF ACCOMMODATION AND FACILITIES,24/09/2019,000006626493224,46.99,TRAVELODGE
OXFORDSHIRE CC,"CHILDRENS, YOUNG PEOPLE AND FAMILIES",NORTH FSS- BANBURY,"BOOKS, DVDS AND CDS",06/09/2019,000008785349057,46.99,PAYPAL  WORDERY
OXFORDSHIRE CC,SOCIAL AND COMMUNITY SERVICES,LEAVING CARE NORTH,CATERING PROVISIONS,16/09/2019,000006586223610,47.00,TESCO STORE 2248
OXFORDSHIRE CC,"CHILDRENS, YOUNG PEOPLE AND FAMILIES",FAMILY SUPPORT 2,HIRE OF ACCOMMODATION AND FACILITIES,12/09/2019,000008810412603,47.00,THE ASCOTT HOTEL
OXFORDSHIRE CC,CORPORATE CORE,,"SUPPLIES, STATIONERY AND MATERIALS",17/09/2019,000006594363782,47.26,LYRECO UK LTD
OXFORDSHIRE CC,CORPORATE CORE,,"SUPPLIES, STATIONERY AND MATERIALS",17/09/2019,000006594363784,47.26,LYRECO UK LTD
OXFORDSHIRE CC,"CHILDRENS, YOUNG PEOPLE AND FAMILIES",THAME E&A HOME,CATERING,25/09/2019,000006631083886,47.40,DOMINOS PIZZA UK & IRE
OXFORDSHIRE CC,"CHILDRENS, YOUNG PEOPLE AND FAMILIES","	LOOKED AFTER NORTH",VEHICLE FUEL,11/09/2019,000008804871105,47.48,PICADOR LYNDHURST
OXFORDSHIRE CC,"CHILDRENS, YOUNG PEOPLE AND FAMILIES",DIDCOT MOVE-ON HOME,CATERING,13/09/2019,000008816587847,47.50,JUST EAT
OXFORDSHIRE CC,"CHILDRENS, YOUNG PEOPLE AND FAMILIES",CNTL ERLY HELP-BBLEY,SUBSCRIPTIONS,05/09/2019,000008780515407,47.50,BLACKBIRD LEYS LEISURE
OXFORDSHIRE CC,"CHILDRENS, YOUNG PEOPLE AND FAMILIES",THAME E&A HOME,VEHICLE FUEL,30/08/2019,000008759617887,47.50,THAME BP SF CONNECT
OXFORDSHIRE CC,CORPORATE CORE,LIBRARY COLLECTIONS,"NEWSPAPERS, PERIODICALS AND PUBLICATIONS",16/09/2019,000006586223452,47.62,GUARDIAN NEWS & MEDIA
OXFORDSHIRE CC,CORPORATE CORE,LIBRARY COLLECTIONS,"NEWSPAPERS, PERIODICALS AND PUBLICATIONS",03/09/2019,000008773367531,47.62,GUARDIAN NEWS & MEDIA
OXFORDSHIRE CC,CORPORATE CORE,LIBRARY COLLECTIONS,"NEWSPAPERS, PERIODICALS AND PUBLICATIONS",02/09/2019,000008766709321,47.62,GUARDIAN NEWS & MEDIA
OXFORDSHIRE CC,CORPORATE CORE,LIBRARY COLLECTIONS,"NEWSPAPERS, PERIODICALS AND PUBLICATIONS",02/09/2019,000008766709323,47.62,GUARDIAN NEWS & MEDIA
OXFORDSHIRE CC,CORPORATE CORE,LIBRARY COLLECTIONS,"NEWSPAPERS, PERIODICALS AND PUBLICATIONS",02/09/2019,000008766709325,47.62,GUARDIAN NEWS & MEDIA
OXFORDSHIRE CC,CORPORATE CORE,LIBRARY COLLECTIONS,"NEWSPAPERS, PERIODICALS AND PUBLICATIONS",02/09/2019,000008766709327,47.62,GUARDIAN NEWS & MEDIA
OXFORDSHIRE CC,CORPORATE CORE,LIBRARY COLLECTIONS,"NEWSPAPERS, PERIODICALS AND PUBLICATIONS",02/09/2019,000008766709329,47.62,GUARDIAN NEWS & MEDIA
OXFORDSHIRE CC,CORPORATE CORE,LIBRARY COLLECTIONS,"NEWSPAPERS, PERIODICALS AND PUBLICATIONS",02/09/2019,000008766709331,47.62,GUARDIAN NEWS & MEDIA
OXFORDSHIRE CC,CORPORATE CORE,LIBRARY COLLECTIONS,"NEWSPAPERS, PERIODICALS AND PUBLICATIONS",02/09/2019,000008766709333,47.62,GUARDIAN NEWS & MEDIA
OXFORDSHIRE CC,CORPORATE CORE,LIBRARY COLLECTIONS,"NEWSPAPERS, PERIODICALS AND PUBLICATIONS",02/09/2019,000008766709335,47.62,GUARDIAN NEWS & MEDIA
OXFORDSHIRE CC,"CHILDRENS, YOUNG PEOPLE AND FAMILIES","	MUSIC UNALLOCABLE",CAR LEASING - PRIVATE RENTALS,26/09/2019,000006636681966,47.70,EURODRIVE
OXFORDSHIRE CC,"CHILDRENS, YOUNG PEOPLE AND FAMILIES",CNTL EARLY HELP-BRTN,OTHER EXPENSES,06/09/2019,000008785349241,48.00,WWW.FURNITUREATWORK.CO
OXFORDSHIRE CC,"CHILDRENS, YOUNG PEOPLE AND FAMILIES","	LOOKED AFTER NORTH",CATERING PROVISIONS,19/09/2019,000006604610880,48.08,LIDL GB  BICESTER
OXFORDSHIRE CC,"CHILDRENS, YOUNG PEOPLE AND FAMILIES",THAME E&A HOME,MATERIALS,02/09/2019,000008766709257,48.37,AMZNMKTPLACE
OXFORDSHIRE CC,ENVIRONMENT AND ECONOMY,S38 INSPECT & OTHER,PAYMENTS TO TRANSPORT OPERATORS,10/09/2019,000008800225993,48.60,WWW.GWR.COM
OXFORDSHIRE CC,SOCIAL AND COMMUNITY SERVICES,CSS - BANBURY,CATERING PROVISIONS,12/09/2019,000008810412223,48.73,SAINSBURYS TO YOU 0642
OXFORDSHIRE CC,ENVIRONMENT AND ECONOMY,"	E&I STAFF",PAYMENTS TO TRANSPORT OPERATORS,25/09/2019,000006631083974,49.00,EUROSTAR INTERNET
OXFORDSHIRE CC,ENVIRONMENT AND ECONOMY,COUNTY LIBRARY,HARDWARE AND CROCKERY,29/08/2019,000008754025895,49.17,CITY PLUMBING
OXFORDSHIRE CC,ENVIRONMENT AND ECONOMY,"	E&I STAFF",PAYMENTS TO TRANSPORT OPERATORS,25/09/2019,000006631083968,49.20,WWW.GWR.COM
OXFORDSHIRE CC,ENVIRONMENT AND ECONOMY,"	E&I STAFF",PAYMENTS TO TRANSPORT OPERATORS,25/09/2019,000006631083970,49.20,WWW.GWR.COM
OXFORDSHIRE CC,"CHILDRENS, YOUNG PEOPLE AND FAMILIES","	FAM SUPP SOUTH","BOOKS, DVDS AND CDS",17/09/2019,000006594363794,49.45,PAYPAL  KIRWINMACLE
OXFORDSHIRE CC,ENVIRONMENT AND ECONOMY,HARD FM,HARDWARE AND CROCKERY,26/09/2019,000006636681854,49.75,BUILDBASE - OXFORD
OXFORDSHIRE CC,ENVIRONMENT AND ECONOMY,"	BRIDGES GENERAL",PAYMENTS TO TRANSPORT OPERATORS,23/09/2019,000006618484710,49.80,BANBURY STATION T/O
OXFORDSHIRE CC,"CHILDRENS, YOUNG PEOPLE AND FAMILIES","	LOOKED AFTER CITY 2",PAYMENTS TO TRANSPORT OPERATORS,19/09/2019,000006604610904,49.90,GWR DIDCOT PKWY TO
OXFORDSHIRE CC,"CHILDRENS, YOUNG PEOPLE AND FAMILIES",NORTH FSS- BANBURY,MATERIALS,09/09/2019,000008792609311,49.95,AMAZON.CO.UK MA1957X04
OXFORDSHIRE CC,"CHILDRENS, YOUNG PEOPLE AND FAMILIES","	40 THE MOORS",MATERIALS,02/09/2019,000008766709529,49.96,AMZNMKTPLACE
OXFORDSHIRE CC,"CHILDRENS, YOUNG PEOPLE AND FAMILIES",STEP INTO TRAINING,"SUPPLIES, STATIONERY AND MATERIALS",09/09/2019,000008792609569,49.98,AMAZON.CO.UK MA06A2XZ4
OXFORDSHIRE CC,SOCIAL AND COMMUNITY SERVICES,CSS - BANBURY,MATERIALS,17/09/2019,000006594363608,49.99,ARGOS RETAIL GROUP
OXFORDSHIRE CC,SOCIAL AND COMMUNITY SERVICES,WITNEY MOVE ON HOME,MATERIALS,16/09/2019,000006586223430,49.99,WITNEY INSIDE SAINSBUR
OXFORDSHIRE CC,"CHILDRENS, YOUNG PEOPLE AND FAMILIES",STH EARLY HELP-DDCOT,MATERIALS,13/09/2019,000008816587623,49.99,ARGOS LTD
OXFORDSHIRE CC,"CHILDRENS, YOUNG PEOPLE AND FAMILIES","	PHYSICAL DISABILITY",DISABILITY AIDS AND EQUIPMENT,12/09/2019,000008810412189,49.99,KOOTCHY PRODUCTS LTD
OXFORDSHIRE CC,"CHILDRENS, YOUNG PEOPLE AND FAMILIES",DIDCOT MOVE-ON HOME,MATERIALS,04/09/2019,000008776304013,49.99,GAME RETAIL
OXFORDSHIRE CC,SOCIAL AND COMMUNITY SERVICES,"	PUBLIC HEALTH GENERA",MATERIALS,30/08/2019,000008759618057,49.99,AMZNMKTPLACE
OXFORDSHIRE CC,ENVIRONMENT AND ECONOMY,HARD FM,HARDWARE AND CROCKERY,29/08/2019,000008754025877,49.99,SCREWFIX BANBURY
OXFORDSHIRE CC,SOCIAL AND COMMUNITY SERVICES,"	MUSEUMS COLLECTIONS",PROFESSIONAL SUBSCRIPTIONS,12/09/2019,000008810412129,50.00,AIMUSEUMS
OXFORDSHIRE CC,SOCIAL AND COMMUNITY SERVICES,"	MUSEUMS COLLECTIONS",PROFESSIONAL SUBSCRIPTIONS,12/09/2019,000008810412129,50.00,AIMUSEUMS
OXFORDSHIRE CC,ENVIRONMENT AND ECONOMY,HARD FM,EQUIPMENT,10/09/2019,000008800225759,50.00,WILTS ELECTRICAL
OXFORDSHIRE CC,ENVIRONMENT AND ECONOMY,P&S OPERATIONAL REV,STAFF SUBSISTENCE,09/09/2019,000008792609365,50.00,
OXFORDSHIRE CC,"CHILDRENS, YOUNG PEOPLE AND FAMILIES","	LEAVING CARE CITY 2",OTHER EXPENSES,06/09/2019,000008785349175,50.00,THOMAS CARR @ THE OLIV
OXFORDSHIRE CC,CORPORATE CORE,HOME LIBRARY SERVICE,VEHICLE FUEL,04/09/2019,000008776304037,50.00,ASDA PETROL/UPT
OXFORDSHIRE CC,CORPORATE CORE,"	CORPORATE FINANCE",PAYMENTS TO TRANSPORT OPERATORS,06/09/2019,000008785349205,50.10,WWW.GWR.COM
OXFORDSHIRE CC,"CHILDRENS, YOUNG PEOPLE AND FAMILIES","	LOOKED AFTER CITY 1",VEHICLE FUEL,03/09/2019,000008773367723,50.12,SHELL BEACONSFIELD
OXFORDSHIRE CC,"CHILDRENS, YOUNG PEOPLE AND FAMILIES","	40 THE MOORS",MATERIALS,27/09/2019,000006643216028,50.45,AMZNMKTPLACE
OXFORDSHIRE CC,"CHILDRENS, YOUNG PEOPLE AND FAMILIES","	LOOKED AFTER SOUTH",OTHER TRANSPORT ARRANGEMENTS,23/09/2019,000006618484866,51.00,SGP THAMES TRANSIT
OXFORDSHIRE CC,"CHILDRENS, YOUNG PEOPLE AND FAMILIES",STH EARLY HELP-ABNDN,OTHER TRANSPORT ARRANGEMENTS,13/09/2019,000008816587539,51.00,STAGECOACH SERVICE
OXFORDSHIRE CC,"CHILDRENS, YOUNG PEOPLE AND FAMILIES","	LOOKED AFTER SOUTH",OTHER TRANSPORT ARRANGEMENTS,04/09/2019,000008776303909,51.00,WWW.THEKEY.CO.UK
OXFORDSHIRE CC,"CHILDRENS, YOUNG PEOPLE AND FAMILIES",STH EARLY HELP-ABNDN,OTHER TRANSPORT ARRANGEMENTS,30/08/2019,000008759617885,51.00,WWW.THEKEY.CO.UK
OXFORDSHIRE CC,"CHILDRENS, YOUNG PEOPLE AND FAMILIES","	FAMILY SUPPORT S'TH2",OTHER TRANSPORT ARRANGEMENTS,29/08/2019,000008754025923,51.00,WWW.THEKEY.CO.UK
OXFORDSHIRE CC,ENVIRONMENT AND ECONOMY,"	E&I STAFF",PAYMENTS TO TRANSPORT OPERATORS,25/09/2019,000006631083966,51.15,WWW.GWR.COM
OXFORDSHIRE CC,ENVIRONMENT AND ECONOMY,HARD FM,HARDWARE AND CROCKERY,23/09/2019,000006618484556,51.22,TRAVIS PERKINS
OXFORDSHIRE CC,ENVIRONMENT AND ECONOMY,HARD FM,EQUIPMENT,17/09/2019,000006594363480,51.31,WILTS ELECTRICAL
OXFORDSHIRE CC,ENVIRONMENT AND ECONOMY,"	E&I STAFF",PAYMENTS TO TRANSPORT OPERATORS,03/09/2019,000008773367607,51.50,WWW.GWR.COM
OXFORDSHIRE CC,"CHILDRENS, YOUNG PEOPLE AND FAMILIES",MANAGEMENT RECHARGES,HIRED AND CONTRACTED SERVICES,03/09/2019,000008773367541,51.60,WWW.E-BADGES.NET
OXFORDSHIRE CC,ENVIRONMENT AND ECONOMY,HARD FM,GENERAL MAINTENANCE,30/08/2019,000008759617915,51.74,WOLSELEY UK
OXFORDSHIRE CC,"CHILDRENS, YOUNG PEOPLE AND FAMILIES","	LEAVING CARE NORTH",DISABILITY AIDS AND EQUIPMENT,04/09/2019,000008776304137,51.75,SPECSAVERS 00252000BAN
OXFORDSHIRE CC,ENVIRONMENT AND ECONOMY,HARD FM,HARDWARE AND CROCKERY,30/08/2019,000008759617913,51.86,B & Q 1156
OXFORDSHIRE CC,ENVIRONMENT AND ECONOMY,S38 INSPECT & OTHER,PAYMENTS TO TRANSPORT OPERATORS,13/09/2019,000008816587667,51.94,TRAINLINE.COM
OXFORDSHIRE CC,ENVIRONMENT AND ECONOMY,S38 INSPECT & OTHER,PAYMENTS TO TRANSPORT OPERATORS,13/09/2019,000008816587669,51.94,TRAINLINE
OXFORDSHIRE CC,ENVIRONMENT AND ECONOMY,S38 INSPECT & OTHER,PAYMENTS TO TRANSPORT OPERATORS,11/09/2019,000008804871181,51.94,TRAINLINE
OXFORDSHIRE CC,"CHILDRENS, YOUNG PEOPLE AND FAMILIES",ATV ADOPTION WOODLEY,MATERIALS,20/09/2019,000006610418158,52.04,AMZNMKTPLACE AMAZON.CO
OXFORDSHIRE CC,ENTERPRISEVC,,CAR LEASING - PRIVATE RENTALS,18/09/2019,000006598637914,52.85,ENTERPRISE RENT-A-CAR
OXFORDSHIRE CC,"CHILDRENS, YOUNG PEOPLE AND FAMILIES","	LOOKED AFTER CITY 2",PAYMENTS TO TRANSPORT OPERATORS,04/09/2019,000008776304101,52.90,GREATER ANGLIA T/O
OXFORDSHIRE CC,ENTERPRISEVC,,CAR LEASING - PRIVATE RENTALS,18/09/2019,000006598637942,53.09,ENTERPRISE RENT-A-CAR
OXFORDSHIRE CC,"CHILDRENS, YOUNG PEOPLE AND FAMILIES",THAME E&A HOME,CATERING PROVISIONS,04/09/2019,000008776303951,53.78,SAINSBURYS 0631
OXFORDSHIRE CC,"CHILDRENS, YOUNG PEOPLE AND FAMILIES","	RESIDENTIAL STRATEGY",MATERIALS,06/09/2019,000008785349201,53.98,ARGOS KIDLINGTON INSID
OXFORDSHIRE CC,"CHILDRENS, YOUNG PEOPLE AND FAMILIES","	LOOKED AFTER CITY 1",PAYMENT TO GOVERNMENT DEPARTMENTS,05/09/2019,000008780514093,54.00,HM PASSPORT OFFICE
OXFORDSHIRE CC,"CHILDRENS, YOUNG PEOPLE AND FAMILIES","	LOOKED AFTER CITY 1",VEHICLE FUEL,06/09/2019,000008785349115,54.12,TESCO PAY AT PUMP 3968
OXFORDSHIRE CC,"CHILDRENS, YOUNG PEOPLE AND FAMILIES",ATV ADOPTION OXFORD,"SUPPLIES, STATIONERY AND MATERIALS",26/09/2019,000006636681916,54.48,MOONPIGUK
OXFORDSHIRE CC,SOCIAL AND COMMUNITY SERVICES,CSS - BANBURY,CATERING PROVISIONS,03/09/2019,000008773367563,54.57,SAINSBURYS TO YOU 0642
OXFORDSHIRE CC,"CHILDRENS, YOUNG PEOPLE AND FAMILIES","	LEAVING CARE NORTH",OTHER TRANSPORT ARRANGEMENTS,16/09/2019,000006586223888,54.60,PAYPAL  TRAINLINE
OXFORDSHIRE CC,"CHILDRENS, YOUNG PEOPLE AND FAMILIES","	40 THE MOORS",MATERIALS,25/09/2019,000006631084012,54.99,AMAZON.CO.UK MA0UA5RZ4
OXFORDSHIRE CC,ENVIRONMENT AND ECONOMY,HARD FM,HARDWARE AND CROCKERY,23/09/2019,000006618484558,54.99,SCREWFIX ABINGDON
OXFORDSHIRE CC,"CHILDRENS, YOUNG PEOPLE AND FAMILIES",NRPF & HOMELESSNESS,HIRE OF ACCOMMODATION AND FACILITIES,29/08/2019,000008754026009,54.99,TRAVELODGE
OXFORDSHIRE CC,CORPORATE CORE,INCOME TEAM,PAYMENT TO GOVERNMENT DEPARTMENTS,25/09/2019,000006631084196,55.00,OXFORDSHIRE CC MOTO1
OXFORDSHIRE CC,"CHILDRENS, YOUNG PEOPLE AND FAMILIES","	DISABILITIES TEAM-C",HIRE OF ACCOMMODATION AND FACILITIES,24/09/2019,000006626493142,55.00,WITNEYTOWN COUNCIL
OXFORDSHIRE CC,SOCIAL AND COMMUNITY SERVICES,CSS BICESTER,CATERING PROVISIONS,24/09/2019,000006626493054,55.15,SAINSBURYS (2243)
OXFORDSHIRE CC,SOCIAL AND COMMUNITY SERVICES,CSS - DIDCOT,CATERING PROVISIONS,24/09/2019,000006626493002,55.16,TESCO STORE 2413
OXFORDSHIRE CC,ENVIRONMENT AND ECONOMY,HARD FM,EQUIPMENT,10/09/2019,000008800225737,55.36,WILTS ELECTRICAL
OXFORDSHIRE CC,CORPORATE CORE,INSURANCE TEAM,PAYMENTS TO TRANSPORT OPERATORS,30/08/2019,000008759618005,55.90,WWW.GWR.COM
OXFORDSHIRE CC,"CHILDRENS, YOUNG PEOPLE AND FAMILIES",SPECIAL GUARDIANSHIP,HIRE OF ACCOMMODATION AND FACILITIES,10/09/2019,000008800226029,55.93,HOTEL ON BOOKING.COM P
OXFORDSHIRE CC,"CHILDRENS, YOUNG PEOPLE AND FAMILIES","	LEAVING CARE SOUTH",MATERIALS,23/09/2019,000006618484914,55.95,WWW.ARGOS.CO.UK
OXFORDSHIRE CC,"CHILDRENS, YOUNG PEOPLE AND FAMILIES",NORTH FSS- BANBURY,PAYMENTS TO TRANSPORT OPERATORS,13/09/2019,000008816587697,55.95,WWW.GWR.COM
OXFORDSHIRE CC,"CHILDRENS, YOUNG PEOPLE AND FAMILIES","	LOOKED AFTER CITY 2",CLOTHING AND UNIFORMS,16/09/2019,000006586223826,56.01,NEW LOOK 2025
OXFORDSHIRE CC,"CHILDRENS, YOUNG PEOPLE AND FAMILIES",WITNEY,CATERING PROVISIONS,02/09/2019,000008766709215,56.31,LIDL GB  WITNEY
OXFORDSHIRE CC,"CHILDRENS, YOUNG PEOPLE AND FAMILIES",THAME E&A HOME,CATERING PROVISIONS,05/09/2019,000008780513667,56.38,ASDA SUPERSTORE
OXFORDSHIRE CC,"CHILDRENS, YOUNG PEOPLE AND FAMILIES","	FAMILY SUPPORT S'TH2",PAYMENTS TO TRANSPORT OPERATORS,18/09/2019,000006598637140,56.47,TRAINLINE
OXFORDSHIRE CC,ENVIRONMENT AND ECONOMY,HARD FM,HARDWARE AND CROCKERY,04/09/2019,000008776303941,56.59,OXON FASTENING SYSTEMS
OXFORDSHIRE CC,SOCIAL AND COMMUNITY SERVICES,CSS BICESTER,CATERING PROVISIONS,17/09/2019,000006594363502,56.70,SAINSBURYS (2243)
OXFORDSHIRE CC,SOCIAL AND COMMUNITY SERVICES,ADULT SERVICES IMPROVEMENT BOARD,CATERING PROVISIONS,26/09/2019,000006636681874,57.00,MARKS&SPENCER PLC
OXFORDSHIRE CC,"CHILDRENS, YOUNG PEOPLE AND FAMILIES","	LOOKED AFTER CITY 1",OTHER TRANSPORT ARRANGEMENTS,30/08/2019,000008759618077,57.29,TRAINLINE.COM
OXFORDSHIRE CC,ENTERPRISEVC,,CAR LEASING - PRIVATE RENTALS,18/09/2019,000006598637904,57.42,ENTERPRISE RENT-A-CAR
OXFORDSHIRE CC,"CHILDRENS, YOUNG PEOPLE AND FAMILIES",THAME E&A HOME,CATERING PROVISIONS,16/09/2019,000006586223390,57.45,SAINSBURYS SACAT 0631
OXFORDSHIRE CC,"CHILDRENS, YOUNG PEOPLE AND FAMILIES","	LOOKED AFTER CITY 2",PAYMENTS TO TRANSPORT OPERATORS,16/09/2019,000006586223576,57.80,BEACONSFIELD STATION T
OXFORDSHIRE CC,"CHILDRENS, YOUNG PEOPLE AND FAMILIES",THAME E&A HOME,CATERING,06/09/2019,000008785349019,57.85,MILLER & CARTER
OXFORDSHIRE CC,"CHILDRENS, YOUNG PEOPLE AND FAMILIES",0-5 STDS & PROGRESS,MATERIALS,06/09/2019,000008785349269,57.98,AMAZON.CO.UK MA6QR8104
OXFORDSHIRE CC,"CHILDRENS, YOUNG PEOPLE AND FAMILIES",NORTH FSS- BANBURY,PAYMENT TO GOVERNMENT DEPARTMENTS,30/08/2019,000008759617957,58.00,CHERWELL DISTRICT COUN
OXFORDSHIRE CC,ENVIRONMENT AND ECONOMY,HARD FM,GENERAL MAINTENANCE,26/09/2019,000006636681856,58.15,WOLSELEY UK
OXFORDSHIRE CC,ENVIRONMENT AND ECONOMY,HARD FM,EQUIPMENT,19/09/2019,000006604610760,58.15,WILTS ELECTRICAL
OXFORDSHIRE CC,"CHILDRENS, YOUNG PEOPLE AND FAMILIES","	FAMILY SUPPORT CITY3",VEHICLE FUEL,16/09/2019,000006586223162,58.18,SHELL BEACONSFIELD
OXFORDSHIRE CC,SOCIAL AND COMMUNITY SERVICES,DIDCOT MOVE-ON HOME,CATERING PROVISIONS,06/09/2019,000008785349073,58.20,SAINSBURYS 2067
OXFORDSHIRE CC,"CHILDRENS, YOUNG PEOPLE AND FAMILIES",NTH EARLY HELP-WITNY,CATERING PROVISIONS,24/09/2019,000006626492966,58.25,SAINSBURYS TO YOU 0632
OXFORDSHIRE CC,ENVIRONMENT AND ECONOMY,HARD FM,EQUIPMENT,16/09/2019,000006586223296,58.43,WILTS ELECTRICAL
OXFORDSHIRE CC,CORPORATE CORE,HISTORY SERVICE,CATERING,29/08/2019,000008754025975,58.50,WWW.TRAIDCRAFT.CO.UK
OXFORDSHIRE CC,CORPORATE CORE,REGISTRAR,PAYMENTS TO TRANSPORT OPERATORS,10/09/2019,000008800226487,58.60,GWR OXFORD TO
OXFORDSHIRE CC,ENVIRONMENT AND ECONOMY,HARD FM,HARDWARE AND CROCKERY,11/09/2019,000008804871115,58.63,OXON FASTENING SYSTEMS
OXFORDSHIRE CC,"CHILDRENS, YOUNG PEOPLE AND FAMILIES","	LOOKED AFTER CITY 1",VEHICLE FUEL,18/09/2019,000006598637232,58.68,SHELL BUCKINGHAM
OXFORDSHIRE CC,"CHILDRENS, YOUNG PEOPLE AND FAMILIES",ATV ADOPTION WOODLEY,MATERIALS,06/09/2019,000008785348967,58.94,WWW.ARGOS.CO.UK
OXFORDSHIRE CC,ENVIRONMENT AND ECONOMY,"	E&I STAFF",PAYMENTS TO TRANSPORT OPERATORS,26/09/2019,000006636681946,59.50,WWW.GWR.COM
OXFORDSHIRE CC,CORPORATE CORE,INCOME TEAM,"PUBLICITY, PROMOTIONS AND ADVERTISEMENT",06/09/2019,000008785349089,59.94,WWW.192.COM
OXFORDSHIRE CC,ENVIRONMENT AND ECONOMY,HARD FM,SECURITY COSTS,26/09/2019,000006636681984,60.00,JIMMY SHOE REPAIR
OXFORDSHIRE CC,"CHILDRENS, YOUNG PEOPLE AND FAMILIES",THAME E&A HOME,MATERIALS,23/09/2019,000006618484492,60.00,HALFORDS ON LINE
OXFORDSHIRE CC,"CHILDRENS, YOUNG PEOPLE AND FAMILIES","	DISABILITIES TEAM-C",HIRE OF ACCOMMODATION AND FACILITIES,09/09/2019,000008792609323,60.00,COMFORT INN RAMSGATE
OXFORDSHIRE CC,SOCIAL AND COMMUNITY SERVICES,CSS - BANBURY,CATERING PROVISIONS,02/09/2019,000008766709369,60.00,SAINSBURYS
OXFORDSHIRE CC,ENTERPRISEVC,,CAR LEASING - PRIVATE RENTALS,18/09/2019,000006598637998,60.02,ENTERPRISE RENT-A-CAR
OXFORDSHIRE CC,"CHILDRENS, YOUNG PEOPLE AND FAMILIES",ATV ADOPTION OXFORD,PAYMENTS TO TRANSPORT OPERATORS,12/09/2019,000008810412171,60.10,WWW.GWR.COM
OXFORDSHIRE CC,"CHILDRENS, YOUNG PEOPLE AND FAMILIES",ATV ADOPTION OXFORD,PAYMENTS TO TRANSPORT OPERATORS,11/09/2019,000008804871197,60.10,WWW.GWR.COM
OXFORDSHIRE CC,"CHILDRENS, YOUNG PEOPLE AND FAMILIES",NORTH FSS- BANBURY,PAYMENTS TO TRANSPORT OPERATORS,23/09/2019,000006618484652,60.25,WWW.GWR.COM
OXFORDSHIRE CC,"CHILDRENS, YOUNG PEOPLE AND FAMILIES","	LOOKED AFTER SOUTH",MATERIALS,30/08/2019,000008759617899,60.70,AMAZON.CO.UK MA2UP7J24
OXFORDSHIRE CC,ENVIRONMENT AND ECONOMY,HARD FM,HARDWARE AND CROCKERY,17/09/2019,000006594363476,60.77,CITY PLUMBING
OXFORDSHIRE CC,"CHILDRENS, YOUNG PEOPLE AND FAMILIES","	MUSIC UNALLOCABLE",MATERIALS,24/09/2019,000006626493132,61.19,SHEETMUSICPLUS.COM
OXFORDSHIRE CC,"CHILDRENS, YOUNG PEOPLE AND FAMILIES","	NCS",MATERIALS,16/09/2019,000006586223268,61.33,MAILCHIMP    MONTHLY
OXFORDSHIRE CC,"CHILDRENS, YOUNG PEOPLE AND FAMILIES",NTH EARLY HELP-BCSTR,PAYMENTS TO TRANSPORT OPERATORS,24/09/2019,000006626493160,61.50,WWW.GWR.COM
OXFORDSHIRE CC,"CHILDRENS, YOUNG PEOPLE AND FAMILIES",NTH EARLY HELP-BCSTR,PAYMENTS TO TRANSPORT OPERATORS,13/09/2019,000008816587681,61.50,WWW.GWR.COM
OXFORDSHIRE CC,SOCIAL AND COMMUNITY SERVICES,VIVA,CATERING PROVISIONS,11/09/2019,000008804871415,61.50,MARKS&SPENCER PLC
OXFORDSHIRE CC,"CHILDRENS, YOUNG PEOPLE AND FAMILIES",NTH FAM SUPRT-BCSTR,PAYMENTS TO TRANSPORT OPERATORS,06/09/2019,000008785349027,61.50,WWW.GWR.COM
OXFORDSHIRE CC,"CHILDRENS, YOUNG PEOPLE AND FAMILIES",NTH EARLY HELP-BCSTR,PAYMENTS TO TRANSPORT OPERATORS,02/09/2019,000008766709339,61.50,WWW.GWR.COM
OXFORDSHIRE CC,SOCIAL AND COMMUNITY SERVICES,"	PUBLIC HEALTH GENERA",PAYMENTS TO TRANSPORT OPERATORS,29/08/2019,000008754026025,61.61,TRAINLINE.COM
OXFORDSHIRE CC,"CHILDRENS, YOUNG PEOPLE AND FAMILIES",THAME E&A HOME,CATERING PROVISIONS,02/09/2019,000008766709557,61.90,SAINSBURYS TO YOU 0600
OXFORDSHIRE CC,"CHILDRENS, YOUNG PEOPLE AND FAMILIES",THAME E&A HOME,VEHICLES REPAIRS AND MAINTENANCE,23/09/2019,000006618484570,61.98,REPAIR MY PHONE TODAY
OXFORDSHIRE CC,ENTERPRISEVC,,CAR LEASING - PRIVATE RENTALS,25/09/2019,000006631084146,62.08,ENTERPRISE RENT-A-CAR
OXFORDSHIRE CC,ENTERPRISEVC,,CAR LEASING - PRIVATE RENTALS,25/09/2019,000006631084160,62.08,ENTERPRISE RENT-A-CAR
OXFORDSHIRE CC,ENTERPRISEVC,,CAR LEASING - PRIVATE RENTALS,18/09/2019,000006598637974,62.08,ENTERPRISE RENT-A-CAR
OXFORDSHIRE CC,ENTERPRISEVC,,CAR LEASING - PRIVATE RENTALS,18/09/2019,000006598637992,62.08,ENTERPRISE RENT-A-CAR
OXFORDSHIRE CC,CORPORATE CORE,SNR LEADERSHIP TEAM,PAYMENTS TO TRANSPORT OPERATORS,18/09/2019,000006598638084,62.20,WWW.GWR.COM
OXFORDSHIRE CC,SOCIAL AND COMMUNITY SERVICES,RESIDENTIAL STRATEGY,CATERING,02/09/2019,000008766709267,62.96,DOMINOS PIZZA (WIT
OXFORDSHIRE CC,"CHILDRENS, YOUNG PEOPLE AND FAMILIES",NTH EARLY HELP-BCSTR,OTHER TRANSPORT ARRANGEMENTS,03/09/2019,000008773367547,63.00,STAGECOACH SERVICE
OXFORDSHIRE CC,SOCIAL AND COMMUNITY SERVICES,CSS - BANBURY,CATERING PROVISIONS,10/09/2019,000008800226049,63.13,SAINSBURYS TO YOU 0642
OXFORDSHIRE CC,"CHILDRENS, YOUNG PEOPLE AND FAMILIES","	OSCB",EDUCATIONAL AND VOCATIONAL TRAINING ,16/09/2019,000006586223198,63.60,KNOWDATA LIMITED
OXFORDSHIRE CC,ENVIRONMENT AND ECONOMY,HARD FM,EQUIPMENT,17/09/2019,000006594363470,63.96,WILTS ELECTRICAL
OXFORDSHIRE CC,"CHILDRENS, YOUNG PEOPLE AND FAMILIES","	MALTFIELD HOUSE",MATERIALS,09/09/2019,000008792609355,63.96,AMZNMKTPLACE
OXFORDSHIRE CC,"CHILDRENS, YOUNG PEOPLE AND FAMILIES",WITNEY,CATERING PROVISIONS,16/09/2019,000006586223192,64.00,SAINSBURYS 0632
OXFORDSHIRE CC,"CHILDRENS, YOUNG PEOPLE AND FAMILIES",NTH EARLY HELP-BCSTR,VEHICLES REPAIRS AND MAINTENANCE,12/09/2019,000008810412161,64.00,GRAYLINE COACHES
OXFORDSHIRE CC,ENVIRONMENT AND ECONOMY,HENLEY LIBRARY,"NEWSPAPERS, PERIODICALS AND PUBLICATIONS",10/09/2019,000008800226635,64.00,BEST FOODS
OXFORDSHIRE CC,ENVIRONMENT AND ECONOMY,HARD FM,EQUIPMENT,17/09/2019,000006594363482,64.27,WILTS ELECTRICAL
OXFORDSHIRE CC,"CHILDRENS, YOUNG PEOPLE AND FAMILIES",NORTH FSS- BANBURY,PAYMENTS TO TRANSPORT OPERATORS,24/09/2019,000006626493116,64.35,WWW.GWR.COM
OXFORDSHIRE CC,ENVIRONMENT AND ECONOMY,DRIVEN,MATERIALS,04/09/2019,000008776304039,64.48,AMZNMKTPLACE
OXFORDSHIRE CC,"CHILDRENS, YOUNG PEOPLE AND FAMILIES","	FAMILY SUPPORT CITY3",OTHER EMPLOYEE EXPENSES,25/09/2019,000006631083890,64.49,EB  LAUNCH OF LONDON S
OXFORDSHIRE CC,"CHILDRENS, YOUNG PEOPLE AND FAMILIES","	RIVERSIDE CENTRE",ADHOC SITE ANDGROUNDS MAINTENANCE COSTS,10/09/2019,000008800225851,64.80,BMA VARSITY LTD
OXFORDSHIRE CC,"CHILDRENS, YOUNG PEOPLE AND FAMILIES","	SM QUALITY ASSURANCE",PAYMENTS TO TRANSPORT OPERATORS,24/09/2019,000006626493022,64.90,TRAINLINE
OXFORDSHIRE CC,SOCIAL AND COMMUNITY SERVICES,CSS BICESTER,CATERING PROVISIONS,03/09/2019,000008773367469,64.97,SAINSBURYS (2243)
OXFORDSHIRE CC,"CHILDRENS, YOUNG PEOPLE AND FAMILIES",THAME E&A HOME,MATERIALS,12/09/2019,000008810412569,64.98,LEGO
OXFORDSHIRE CC,"CHILDRENS, YOUNG PEOPLE AND FAMILIES","	FAMILY SUPPORT S'TH2",HIRE OF ACCOMMODATION AND FACILITIES,19/09/2019,000006604610792,65.00,THE GEORGE HOTEL
OXFORDSHIRE CC,SOCIAL AND COMMUNITY SERVICES,"	PUBLIC HEALTH GENERA",MATERIALS,09/09/2019,000008792609613,65.00,WWW.HOBBYCRAFT.CO.UK
OXFORDSHIRE CC,"CHILDRENS, YOUNG PEOPLE AND FAMILIES",MEMBERS ALLOWANCES,HIRE OF ACCOMMODATION AND FACILITIES,02/09/2019,000008766709249,65.00,KEY INNS T/A THE THREE
OXFORDSHIRE CC,"CHILDRENS, YOUNG PEOPLE AND FAMILIES","	DISABILITIES TEAM-C",HIRE OF ACCOMMODATION AND FACILITIES,30/08/2019,000008759618003,65.00,COMFORT INN RAMSGATE
OXFORDSHIRE CC,"CHILDRENS, YOUNG PEOPLE AND FAMILIES","	RIVERSIDE CENTRE",MATERIALS,27/09/2019,000006643216652,65.90,EWETSUITS.COM
OXFORDSHIRE CC,"CHILDRENS, YOUNG PEOPLE AND FAMILIES","	40 THE MOORS",MATERIALS,25/09/2019,000006631084014,65.99,PANDORA
OXFORDSHIRE CC,"CHILDRENS, YOUNG PEOPLE AND FAMILIES","	40 THE MOORS",MATERIALS,20/09/2019,000006610418492,65.99,PANDORA
OXFORDSHIRE CC,"CHILDRENS, YOUNG PEOPLE AND FAMILIES",DIDCOT MOVE-ON HOME,CATERING PROVISIONS,09/09/2019,000008792609599,66.03,TESCO STORE 2994
OXFORDSHIRE CC,ENVIRONMENT AND ECONOMY,"	BUSINESS SYST STAFF",PAYMENTS TO TRANSPORT OPERATORS,18/09/2019,000006598637690,66.04,TRAINLINE.COM
OXFORDSHIRE CC,"CHILDRENS, YOUNG PEOPLE AND FAMILIES",WITNEY,CATERING PROVISIONS,16/09/2019,000006586223190,66.25,SAINSBURYS 0632
OXFORDSHIRE CC,"CHILDRENS, YOUNG PEOPLE AND FAMILIES",CNTL EARLY HELP-BRTN,OTHER EXPENSES,02/09/2019,000008766709505,66.34,WICKES BUILDING
OXFORDSHIRE CC,"CHILDRENS, YOUNG PEOPLE AND FAMILIES",EYNSHAM,CATERING,27/09/2019,000006643216578,66.45,DOMINOS PIZZA UK & IRE
OXFORDSHIRE CC,"CHILDRENS, YOUNG PEOPLE AND FAMILIES","	MUSIC UNALLOCABLE",MATERIALS,03/09/2019,000008773367595,66.53,AMAZON.CO.UK MA8S160I4
OXFORDSHIRE CC,CORPORATE CORE,SNR LEADERSHIP TEAM,PAYMENTS TO TRANSPORT OPERATORS,13/09/2019,000008816587919,66.60,WWW.GWR.COM
OXFORDSHIRE CC,"CHILDRENS, YOUNG PEOPLE AND FAMILIES",NTH FAM SUPRT-BCSTR,PAYMENTS TO TRANSPORT OPERATORS,11/09/2019,000008804871149,66.60,WWW.GWR.COM
OXFORDSHIRE CC,"CHILDRENS, YOUNG PEOPLE AND FAMILIES","	FAMILY SUPPORT CITY3",OTHER TRANSPORT ARRANGEMENTS,29/08/2019,000008754026001,66.60,WWW.GWR.COM
OXFORDSHIRE CC,"CHILDRENS, YOUNG PEOPLE AND FAMILIES",FPT SOUTH/VALE,EQUIPMENT,03/09/2019,000008773367765,66.72,THE PLASTIC BOX COMPAN
OXFORDSHIRE CC,CORPORATE CORE,"	COMMUNICATIONS",MATERIALS,19/09/2019,000006604610860,66.80,AMZNMKTPLACE AMAZON.CO
OXFORDSHIRE CC,CORPORATE CORE,"	COMMUNICATIONS",MATERIALS,18/09/2019,000006598637250,66.80,AMZNMKTPLACE
OXFORDSHIRE CC,SOCIAL AND COMMUNITY SERVICES,SCHOOLS FM,CATERING PROVISIONS,13/09/2019,000008816587655,66.95,SAINSBURYS 0745
OXFORDSHIRE CC,SOCIAL AND COMMUNITY SERVICES,ADULT SERVICES IMPROVEMENT BOARD,CATERING PROVISIONS,20/09/2019,000006610418256,67.00,WAITROSE 211
OXFORDSHIRE CC,ENVIRONMENT AND ECONOMY,HARD FM,EQUIPMENT,05/09/2019,000008780513607,67.18,WILTS ELECTRICAL
OXFORDSHIRE CC,SOCIAL AND COMMUNITY SERVICES,CSS BICESTER,CATERING PROVISIONS,18/09/2019,000006598636824,67.20,MARTIN MCCOLL
OXFORDSHIRE CC,"CHILDRENS, YOUNG PEOPLE AND FAMILIES","	RESIDENTIAL STRATEGY",OTHER TRANSPORT ARRANGEMENTS,04/09/2019,000008776304119,67.20,001 TAXIS
OXFORDSHIRE CC,"CHILDRENS, YOUNG PEOPLE AND FAMILIES",THAME E&A HOME,CATERING,03/09/2019,000008773367459,67.35,TGI FRIDAY'S
OXFORDSHIRE CC,"CHILDRENS, YOUNG PEOPLE AND FAMILIES",THAME E&A HOME,CATERING PROVISIONS,23/09/2019,000006618484738,67.47,SAINSBURYS TO YOU 0600
OXFORDSHIRE CC,ENVIRONMENT AND ECONOMY,HARD FM,EQUIPMENT,05/09/2019,000008780513639,67.68,WILTS ELECTRICAL
OXFORDSHIRE CC,"CHILDRENS, YOUNG PEOPLE AND FAMILIES",STH EARLY HELP-DDCOT,CLOTHING AND UNIFORMS,05/09/2019,000008780513847,67.96,IZ  MY SCHOOLWEAR LIMI
OXFORDSHIRE CC,"CHILDRENS, YOUNG PEOPLE AND FAMILIES",FPT SOUTH/VALE,CLOTHING AND UNIFORMS,13/09/2019,000008816587883,67.97,WWW.MYSCHOOLWEAR.CO.UK
OXFORDSHIRE CC,ENTERPRISEVC,VOXY,CATERING,06/09/2019,000008785349041,68.21,WWW.DOMINOS.CO.UK
OXFORDSHIRE CC,"CHILDRENS, YOUNG PEOPLE AND FAMILIES",FAMILY SUPPORT 2,HIRE OF ACCOMMODATION AND FACILITIES,19/09/2019,000006604611044,68.63,HOTEL ON BOOKING.COM C
OXFORDSHIRE CC,SOCIAL AND COMMUNITY SERVICES,"	PUBLIC HEALTH GENERA","SUPPLIES, STATIONERY AND MATERIALS",19/09/2019,000006604610862,68.93,RYMAN 1172
OXFORDSHIRE CC,"CHILDRENS, YOUNG PEOPLE AND FAMILIES","	LOOKED AFTER CITY 1",MATERIALS,16/09/2019,000006586223444,69.00,ARGOS RETAIL GROUP
OXFORDSHIRE CC,"CHILDRENS, YOUNG PEOPLE AND FAMILIES","	40 THE MOORS",MATERIALS,02/09/2019,000008766709453,69.00,J D SPORTS FASHION
OXFORDSHIRE CC,"CHILDRENS, YOUNG PEOPLE AND FAMILIES","	LEAVING CARE NORTH",OTHER EXPENSES,30/08/2019,000008759618079,69.00,BENNETTS DRIVING SCHOO
OXFORDSHIRE CC,ENTERPRISEVC,,CAR LEASING - PRIVATE RENTALS,18/09/2019,000006598638002,69.12,ENTERPRISE RENT-A-CAR
OXFORDSHIRE CC,"CHILDRENS, YOUNG PEOPLE AND FAMILIES",THAME E&A HOME,CATERING PROVISIONS,04/09/2019,000008776303977,69.40,TESCO STORE 2994
OXFORDSHIRE CC,SOCIAL AND COMMUNITY SERVICES,CSS WITNEY,MATERIALS,27/09/2019,000006643216140,69.43,AMZNMKTPLACE
OXFORDSHIRE CC,ENTERPRISEVC,,CAR LEASING - PRIVATE RENTALS,25/09/2019,000006631084168,69.55,ENTERPRISE RENT-A-CAR
OXFORDSHIRE CC,"CHILDRENS, YOUNG PEOPLE AND FAMILIES","	OSCB",PAYMENTS TO TRANSPORT OPERATORS,12/09/2019,000008810411927,69.70,TRAINLINE.COM
OXFORDSHIRE CC,SOCIAL AND COMMUNITY SERVICES,FLEET OPERATIONS,STATIONERY,26/09/2019,000006636682080,69.98,CARTRIDGE SAVE
OXFORDSHIRE CC,"CHILDRENS, YOUNG PEOPLE AND FAMILIES","	LOOKED AFTER NORTH",HIRE OF ACCOMMODATION AND FACILITIES,18/09/2019,000006598636924,70.00,STFC-COSENERS HOUSE BA
OXFORDSHIRE CC,"CHILDRENS, YOUNG PEOPLE AND FAMILIES","	FAMILY SUPPORT S'TH2",CLIENT LODGINGS AND ACCOMMODATION,13/09/2019,000008816587541,70.00,THE GEORGE HOTEL
OXFORDSHIRE CC,"CHILDRENS, YOUNG PEOPLE AND FAMILIES","	FAMILY SUPPORT S'TH2",CLIENT LODGINGS AND ACCOMMODATION,05/09/2019,000008780513261,70.00,THE GEORGE HOTEL
OXFORDSHIRE CC,CORPORATE CORE,INCOME TEAM,PAYMENT TO GOVERNMENT DEPARTMENTS,02/09/2019,000008766709341,70.00,WWW.MONEYCLAIM.GOV
OXFORDSHIRE CC,"CHILDRENS, YOUNG PEOPLE AND FAMILIES","	FAMILY SUPPORT S'TH2",CLIENT LODGINGS AND ACCOMMODATION,29/08/2019,000008754025859,70.00,THE GEORGE HOTEL
OXFORDSHIRE CC,ENVIRONMENT AND ECONOMY,HARD FM,EQUIPMENT,25/09/2019,000006631083860,70.11,WILTS ELECTRICAL
OXFORDSHIRE CC,CORPORATE CORE,,"SUPPLIES, STATIONERY AND MATERIALS",03/09/2019,000008773367769,70.16,LYRECO UK LTD
OXFORDSHIRE CC,"CHILDRENS, YOUNG PEOPLE AND FAMILIES","	LOOKED AFTER NORTH",CATERING PROVISIONS,18/09/2019,000006598637854,70.30,SAINSBURYS 0642
OXFORDSHIRE CC,SOCIAL AND COMMUNITY SERVICES,"	MUSEUMS COLLECTIONS",MATERIALS,18/09/2019,000006598637504,71.39,AMZNMKTPLACE AMAZON.CO
OXFORDSHIRE CC,SOCIAL AND COMMUNITY SERVICES,"	MUSEUMS COLLECTIONS",CONTRACT CLEANING,30/08/2019,000008759618007,71.59,KILLGERMS CHEMICAL
OXFORDSHIRE CC,"CHILDRENS, YOUNG PEOPLE AND FAMILIES",THAME E&A HOME,CATERING PROVISIONS,09/09/2019,000008792609439,71.67,SAINSBURYS TO YOU 0600
OXFORDSHIRE CC,"CHILDRENS, YOUNG PEOPLE AND FAMILIES",EYNSHAM,CATERING PROVISIONS,04/09/2019,000008776304279,71.74,TESCO STORES 2008
OXFORDSHIRE CC,"CHILDRENS, YOUNG PEOPLE AND FAMILIES","	MANAGEMENT & ADMIN",PAYMENTS TO TRANSPORT OPERATORS,17/09/2019,000006594363460,72.00,TRAINLINE
OXFORDSHIRE CC,"CHILDRENS, YOUNG PEOPLE AND FAMILIES",THAME E&A HOME,ENTERTAINMENT EXPENSES,05/09/2019,000008780513663,72.00,ROGUE KARTING
OXFORDSHIRE CC,SOCIAL AND COMMUNITY SERVICES,CSS - DIDCOT,CATERING PROVISIONS,09/09/2019,000008792609137,72.19,THE OLD FARM SHOP
OXFORDSHIRE CC,"CHILDRENS, YOUNG PEOPLE AND FAMILIES","	40 THE MOORS",MATERIALS,10/09/2019,000008800226275,72.99,AMZNMKTPLACE AMAZON.CO
OXFORDSHIRE CC,ENVIRONMENT AND ECONOMY,SIP MANAGEMENT,PAYMENTS TO TRANSPORT OPERATORS,25/09/2019,000006631084130,73.26,TRAINLINE
OXFORDSHIRE CC,CORPORATE CORE,"	ORGANISATIONAL DEV'T",PAYMENTS TO TRANSPORT OPERATORS,27/09/2019,000006643215966,73.30,WWW.GWR.COM
OXFORDSHIRE CC,ENVIRONMENT AND ECONOMY,"	E&I STAFF",STAFF USE OF PUBLIC TRANSPORT,25/09/2019,000006631083908,73.30,TRAINLINE.COM
OXFORDSHIRE CC,ENVIRONMENT AND ECONOMY,"	WASTE MNGMNT GEN",PAYMENTS TO TRANSPORT OPERATORS,17/09/2019,000006594363642,73.30,WWW.GWR.COM
OXFORDSHIRE CC,SOCIAL AND COMMUNITY SERVICES,"	PUBLIC HEALTH GENERA",PAYMENTS TO TRANSPORT OPERATORS,16/09/2019,000006586223836,73.30,WWW.GWR.COM
OXFORDSHIRE CC,"CHILDRENS, YOUNG PEOPLE AND FAMILIES","	FAMILY SUPPORT CITY3",OTHER TRANSPORT ARRANGEMENTS,13/09/2019,000008816587817,73.30,WWW.GWR.COM
OXFORDSHIRE CC,CORPORATE CORE,"	PERSONNEL",PAYMENTS TO TRANSPORT OPERATORS,12/09/2019,000008810412321,73.30,WWW.GWR.COM
OXFORDSHIRE CC,"CHILDRENS, YOUNG PEOPLE AND FAMILIES","	FAMILY SUPPORT CITY3",OTHER TRANSPORT ARRANGEMENTS,11/09/2019,000008804871307,73.30,WWW.GWR.COM
OXFORDSHIRE CC,CORPORATE CORE,"	CC TRAINING",TRAINING RELATED EXPENDITURE,03/09/2019,000008773367627,73.30,WWW.GWR.COM
OXFORDSHIRE CC,SOCIAL AND COMMUNITY SERVICES,"	PUBLIC HEALTH GENERA",PAYMENTS TO TRANSPORT OPERATORS,03/09/2019,000008773367761,73.30,WWW.GWR.COM
OXFORDSHIRE CC,"CHILDRENS, YOUNG PEOPLE AND FAMILIES",NORTH FSS- BANBURY,STATIONERY,13/09/2019,000008816587621,73.35,WWW.POSTOFFICESHOP.CO.
OXFORDSHIRE CC,ENTERPRISEVC,,CAR LEASING - PRIVATE RENTALS,18/09/2019,000006598637970,73.78,ENTERPRISE RENT-A-CAR
OXFORDSHIRE CC,"CHILDRENS, YOUNG PEOPLE AND FAMILIES","	FAM SUPP CITY 1",CATERING PROVISIONS,16/09/2019,000006586223730,73.80,MILK&MORE
OXFORDSHIRE CC,CORPORATE CORE,SCHOOLS FM,CATERING PROVISIONS,23/09/2019,000006618484666,74.00,TESCO STORE 2413
OXFORDSHIRE CC,CORPORATE CORE,,"SUPPLIES, STATIONERY AND MATERIALS",26/09/2019,000006636682064,74.16,LYRECO UK LTD
OXFORDSHIRE CC,ENVIRONMENT AND ECONOMY,"	NAT TRAILS GENERAL",CATERING PROVISIONS,16/09/2019,000006586223230,74.20,GOLSBY BUTCHERS
OXFORDSHIRE CC,SOCIAL AND COMMUNITY SERVICES,LEAVING CARE NORTH,PAYMENTS TO TRANSPORT OPERATORS,11/09/2019,000008804871265,74.89,TRAINLINE.COM
